Workbook

Sheet RefTables (hidden)
A1: Category Txt | B1: Code Id | C1: Code Txt | D1: Formatted Text | E1: Code Id | G1: ODOT Fips Cd | H1: Fips Nme | I1: Cvt Cd
A2: AREA_CODE | B2: 766 | C2: AKRON | D2: AKRON | E2: 766 | G2: 100 | H2: ABANAKA | I2: 3
A3: AREA_CODE | B3: 13375 | C3: CANTON | D3: CANTON | E3: 13375 | G3: 115 | H3: ABBEYVILLE | I3: 3
A4: AREA_CODE | B4: 16885 | C4: CINCINNATI | D4: CINCINNATI | E4: 16885 | G4: 128 | H4: ABBOTTSVILLE | I4: 3
A5: AREA_CODE | B5: 17668 | C5: CLEVELAND | D5: CLEVELAND | E5: 17668 | G5: 142 | H5: ABERDEEN | I5: 2
A6: AREA_CODE | B6: 19234 | C6: COLUMBUS | D6: COLUMBUS | E6: 19234 | G6: 156 | H6: ACADEMIA | I6: 3
A7: AREA_CODE | B7: 22528 | C7: DAYTON | D7: DAYTON | E7: 22528 | G7: 170 | H7: ACHOR | I7: 3
A8: AREA_CODE | B8: 40753 | C8: HUNTINGTON-ASHLAND | D8: HUNTINGTON-ASHLAND | E8: 40753 | G8: 184 | H8: ACME | I8: 3
A9: AREA_CODE | B9: 49852 | C9: LIMA | D9: LIMA | E9: 49852 | G9: 198 | H9: ADA | I9: 1
A10: AREA_CODE | B10: 51364 | C10: LORAIN-ELYRIA | D10: LORAIN-ELYRIA | E10: 51364 | G10: 205 | H10: ADAIR | I10: 3
A11: AREA_CODE | B11: 54091 | C11: MANSFIELD | D11: MANSFIELD | E11: 54091 | G11: 212 | H11: ADAMS TOWNSHIP | I11: 3
A12: AREA_CODE | B12: 56926 | C12: MIDDLETOWN | D12: MIDDLETOWN | E12: 56926 | G12: 226 | H12: ADAMS TOWNSHIP | I12: 3
A13: AREA_CODE | B13: 61705 | C13: NEWARK-HEATH | D13: NEWARK-HEATH | E13: 61705 | G13: 240 | H13: ADAMS TOWNSHIP | I13: 3
A14: AREA_CODE | B14: 67672 | C14: PARKERSBURG-BELPRE | D14: PARKERSBURG-BELPRE | E14: 67672 | G14: 254 | H14: ADAMS TOWNSHIP | I14: 3
A15: AREA_CODE | B15: 83980 | C15: SPRINGFIELD | D15: SPRINGFIELD | E15: 83980 | G15: 268 | H15: ADAMS TOWNSHIP | I15: 3
A16: AREA_CODE | B16: 87868 | C16: TOLEDO | D16: TOLEDO | E16: 87868 | G16: 282 | H16: ADAMS TOWNSHIP | I16: 3
A17: AREA_CODE | B17: 93592 | C17: STEUBENVILLE-WEIRTON | D17: STEUBENVILLE-WEIRTON | E17: 93592 | G17: 296 | H17: ADAMS TOWNSHIP | I17: 3
A18: AREA_CODE | B18: 94726 | C18: WHEELING-BRIDGEPORT | D18: WHEELING-BRIDGEPORT | E18: 94726 | G18: 310 | H18: ADAMS TOWNSHIP | I18: 3
A19: AREA_CODE | B19: 97831 | C19: YOUNGSTOWN-WARREN | D19: YOUNGSTOWN-WARREN | E19: 97831 | G19: 324 | H19: ADAMS TOWNSHIP | I19: 3
A20: AREA_CODE | B20: 99490 | C20: SANDUSKY | D20: SANDUSKY | E20: 99490 | G20: 338 | H20: ADAMS TOWNSHIP | I20: 3
A21: AREA_CODE | B21: 99701 | C21: ADA | D21: ADA | E21: 99701 | G21: 352 | H21: ADAMS MILLS | I21: 3
A22: AREA_CODE | B22: 99702 | C22: ALLIANCE | D22: ALLIANCE | E22: 99702 | G22: 366 | H22: ADAMSVILLE | I22: 3
A23: AREA_CODE | B23: 99703 | C23: ASHLAND | D23: ASHLAND | E23: 99703 | G23: 380 | H23: ADAMSVILLE | I23: 2
A24: AREA_CODE | B24: 99704 | C24: ASHTABULA | D24: ASHTABULA | E24: 99704 | G24: 394 | H24: ADARIO | I24: 3
A25: AREA_CODE | B25: 99705 | C25: ATHENS | D25: ATHENS | E25: 99705 | G25: 408 | H25: ADDISON | I25: 3
A26: AREA_CODE | B26: 99706 | C26: BELLEFONTAINE | D26: BELLEFONTAINE | E26: 99706 | G26: 422 | H26: ADDISON TOWNSHIP | I26: 3
A27: AREA_CODE | B27: 99707 | C27: BELLEVUE | D27: BELLEVUE | E27: 99707 | G27: 436 | H27: ADDYSTON | I27: 2
A28: AREA_CODE | B28: 99708 | C28: BOWLING GREEN | D28: BOWLING GREEN | E28: 99708 | G28: 450 | H28: ADELPHI | I28: 2
A29: AREA_CODE | B29: 99709 | C29: BRYAN | D29: BRYAN | E29: 99709 | G29: 464 | H29: ADENA | I29: 2
A30: AREA_CODE | B30: 99710 | C30: BUCYRUS | D30: BUCYRUS | E30: 99710 | G30: 478 | H30: ADRIAN | I30: 3
A31: AREA_CODE | B31: 99711 | C31: CAMBRIDGE | D31: CAMBRIDGE | E31: 99711 | G31: 485 | H31: ADVANCE | I31: 3
A32: AREA_CODE | B32: 99712 | C32: CELINA | D32: CELINA | E32: 99712 | G32: 492 | H32: AETNAVILLE | I32: 3
A33: AREA_CODE | B33: 99713 | C33: CHILLICOTHE | D33: CHILLICOTHE | E33: 99713 | G33: 506 | H33: AFRICA | I33: 3
A34: AREA_CODE | B34: 99714 | C34: CIRCLEVILLE | D34: CIRCLEVILLE | E34: 99714 | G34: 520 | H34: AFTON | I34: 3
A35: AREA_CODE | B35: 99715 | C35: CLYDE | D35: CLYDE | E35: 99715 | G35: 541 | H35: AI | I35: 3
A36: AREA_CODE | B36: 99718 | C36: COSHOCTON | D36: COSHOCTON | E36: 99718 | G36: 548 | H36: AID | I36: 3
A37: AREA_CODE | B37: 99720 | C37: DEFIANCE | D37: DEFIANCE | E37: 99720 | G37: 562 | H37: AID TOWNSHIP | I37: 3
A38: AREA_CODE | B38: 99722 | C38: DELPHOS | D38: DELPHOS | E38: 99722 | G38: 576 | H38: AINGER | I38: 3
A39: AREA_CODE | B39: 99723 | C39: DOVER-NEW PHILADELPHIA | D39: DOVER-NEW PHILADELPHIA | E39: 99723 | G39: 587 | H39: AIRHILL | I39: 3
A40: AREA_CODE | B40: 99724 | C40: EAST LIVERPOOL | D40: EAST LIVERPOOL | E40: 99724 | G40: 590 | H40: AIR LINE JUNCTION | I40: 3
A41: AREA_CODE | B41: 99726 | C41: EATON | D41: EATON | E41: 99726 | G41: 1000 | H41: AKRON | I41: 1
A42: AREA_CODE | B42: 99727 | C42: FINDLAY | D42: FINDLAY | E42: 99727 | G42: 1035 | H42: ALABAMA HILL | I42: 3
A43: AREA_CODE | B43: 99728 | C43: FOSTORIA | D43: FOSTORIA | E43: 99728 | G43: 1042 | H43: ALBANY | I43: 2
A44: AREA_CODE | B44: 99729 | C44: FREMONT | D44: FREMONT | E44: 99729 | G44: 1056 | H44: AL BAR MEADOWS | I44: 3
A45: AREA_CODE | B45: 99730 | C45: GALION | D45: GALION | E45: 99730 | G45: 1070 | H45: ALBION | I45: 3
A46: AREA_CODE | B46: 99731 | C46: GALLIPOLIS | D46: GALLIPOLIS | E46: 99731 | G46: 1084 | H46: ALCONY | I46: 3
A47: AREA_CODE | B47: 99734 | C47: GREENFIELD | D47: GREENFIELD | E47: 99734 | G47: 1098 | H47: ALDEN | I47: 3
A48: AREA_CODE | B48: 99735 | C48: GREENVILLE | D48: GREENVILLE | E48: 99735 | G48: 1105 | H48: ALERT | I48: 3
A49: AREA_CODE | B49: 99737 | C49: HILLSBORO | D49: HILLSBORO | E49: 99737 | G49: 1112 | H49: ALEXANDER TOWNSHIP | I49: 3
A50: AREA_CODE | B50: 99739 | C50: JACKSON | D50: JACKSON | E50: 99739 | G50: 1154 | H50: ALEXANDRIA | I50: 2
A51: AREA_CODE | B51: 99740 | C51: KENTON | D51: KENTON | E51: 99740 | G51: 1175 | H51: ALEXIS ADDITION | I51: 3
A52: AREA_CODE | B52: 99741 | C52: LANCASTER | D52: LANCASTER | E52: 99741 | G52: 1196 | H52: ALFRED | I52: 3
A53: AREA_CODE | B53: 99743 | C53: LOGAN | D53: LOGAN | E53: 99743 | G53: 1210 | H53: ALGER | I53: 2
A54: AREA_CODE | B54: 99744 | C54: LONDON | D54: LONDON | E54: 99744 | G54: 1230 | H54: ALICE | I54: 3
A55: AREA_CODE | B55: 99745 | C55: MARIETTA | D55: MARIETTA | E55: 99745 | G55: 1238 | H55: ALIKANNA | I55: 3
A56: AREA_CODE | B56: 99746 | C56: MARION | D56: MARION | E56: 99746 | G56: 1280 | H56: ALLEDONIA | I56: 3
A57: AREA_CODE | B57: 99747 | C57: MARYSVILLE | D57: MARYSVILLE | E57: 99747 | G57: 1294 | H57: ALLEN TOWNSHIP | I57: 3
A58: AREA_CODE | B58: 99749 | C58: MT VERNON | D58: MT VERNON | E58: 99749 | G58: 1308 | H58: ALLEN TOWNSHIP | I58: 3
A59: AREA_CODE | B59: 99750 | C59: NAPOLEON | D59: NAPOLEON | E59: 99750 | G59: 1322 | H59: ALLEN TOWNSHIP | I59: 3
A60: AREA_CODE | B60: 99754 | C60: NORWALK | D60: NORWALK | E60: 99754 | G60: 1336 | H60: ALLEN TOWNSHIP | I60: 3
A61: AREA_CODE | B61: 99756 | C61: ORRVILLE | D61: ORRVILLE | E61: 99756 | G61: 1350 | H61: ALLEN CENTER | I61: 3
A62: AREA_CODE | B62: 99757 | C62: OXFORD | D62: OXFORD | E62: 99757 | G62: 1364 | H62: ALLENSBURG | I62: 3
A63: AREA_CODE | B63: 99759 | C63: PIQUA | D63: PIQUA | E63: 99759 | G63: 1378 | H63: ALLENSVILLE | I63: 3
A64: AREA_CODE | B64: 99760 | C64: PORT CLINTON | D64: PORT CLINTON | E64: 99760 | G64: 1392 | H64: ALLENTOWN | I64: 3
A65: AREA_CODE | B65: 99761 | C65: PORTSMOUTH | D65: PORTSMOUTH | E65: 99761 | G65: 1406 | H65: ALLENTOWN | I65: 3
A66: AREA_CODE | B66: 99764 | C66: ST. MARYS | D66: ST. MARYS | E66: 99764 | G66: 1420 | H66: ALLIANCE | I66: 1
A67: AREA_CODE | B67: 99765 | C67: SALEM | D67: SALEM | E67: 99765 | G67: 1425 | H67: ALLIANCE JUNCTION | I67: 3
A68: AREA_CODE | B68: 99768 | C68: SHELBY | D68: SHELBY | E68: 99768 | G68: 1434 | H68: ALMA | I68: 3
A69: AREA_CODE | B69: 99769 | C69: SIDNEY | D69: SIDNEY | E69: 99769 | G69: 1448 | H69: ALPHA | I69: 3
A70: AREA_CODE | B70: 99770 | C70: TIFFIN | D70: TIFFIN | E70: 99770 | G70: 1462 | H70: ALPINE TERRACE | I70: 3
A71: AREA_CODE | B71: 99775 | C71: UPPER SANDUSKY | D71: UPPER SANDUSKY | E71: 99775 | G71: 1490 | H71: ALTA | I71: 3
A72: AREA_CODE | B72: 99776 | C72: URBANA | D72: URBANA | E72: 99776 | G72: 1495 | H72: ALTAMONT | I72: 3
A73: AREA_CODE | B73: 99777 | C73: VAN WERT | D73: VAN WERT | E73: 99777 | G73: 1525 | H73: ALTITUDE | I73: 3
A74: AREA_CODE | B74: 99778 | C74: WAPAKONETA | D74: WAPAKONETA | E74: 99778 | G74: 1532 | H74: ALTON | I74: 3
A75: AREA_CODE | B75: 99779 | C75: WASHINGTON C.H. | D75: WASHINGTON C.H. | E75: 99779 | G75: 1546 | H75: ALTOONA | I75: 3
A76: AREA_CODE | B76: 99780 | C76: WAUSEON | D76: WAUSEON | E76: 99780 | G76: 1560 | H76: ALVADA | I76: 3
A77: AREA_CODE | B77: 99783 | C77: WILLARD | D77: WILLARD | E77: 99783 | G77: 1588 | H77: ALVORDTON | I77: 2
A78: AREA_CODE | B78: 99784 | C78: WILMINGTON | D78: WILMINGTON | E78: 99784 | G78: 1602 | H78: AMANDA TOWNSHIP | I78: 3
A79: AREA_CODE | B79: 99785 | C79: WOOSTER | D79: WOOSTER | E79: 99785 | G79: 1630 | H79: AMANDA | I79: 2
A80: AREA_CODE | B80: 99786 | C80: ZANESVILLE | D80: ZANESVILLE | E80: 99786 | G80: 1637 | H80: AMANDA TOWNSHIP | I80: 3
A81: AREA_CODE | B81: 99787 | C81: ASHVILLE-S. BLOOMFIELD | D81: ASHVILLE-S. BLOOMFIELD | E81: 99787 | G81: 1644 | H81: AMANDA TOWNSHIP | I81: 3
A82: AREA_CODE | B82: 99789 | C82: COLUMBIANA | D82: COLUMBIANA | E82: 99789 | G82: 1672 | H82: AMBERLEY | I82: 2
A83: AREA_CODE | B83: 99791 | C83: LISBON | D83: LISBON | E83: 99791 | G83: 1705 | H83: AM-BETH ACRES | I83: 3
A84: AREA_CODE | B84: 99792 | C84: MAYSVILLE, KY | D84: MAYSVILLE, KY | E84: 99792 | G84: 1714 | H84: AMBOY | I84: 3
A85: AREA_CODE | B85: 99794 | C85: NELSONVILLE | D85: NELSONVILLE | E85: 99794 | G85: 1728 | H85: AMBOY TOWNSHIP | I85: 3
A86: AREA_CODE | B86: 99795 | C86: NEW BREMEN | D86: NEW BREMEN | E86: 99795 | G86: 1742 | H86: AMELIA | I86: 2
A87: AREA_CODE | B87: 99796 | C87: NEW MARTINSVILLE, WVA | D87: NEW MARTINSVILLE, WVA | E87: 99796 | G87: 1756 | H87: AMERICAN TOWNSHIP | I87: 3
A88: AREA_CODE | B88: 99797 | C88: OTTAWA-GLANDORF | D88: OTTAWA-GLANDORF | E88: 99797 | G88: 1770 | H88: AMES TOWNSHIP | I88: 3
A89: AREA_CODE | B89: 99798 | C89: RUSSELLS POINT | D89: RUSSELLS POINT | E89: 99798 | G89: 1784 | H89: AMESVILLE | I89: 2
A90: AREA_CODE | B90: 99800 | C90: UNION CITY | D90: UNION CITY | E90: 99800 | G90: 1798 | H90: AMHERST | I90: 1
A91: AREA_CODE | B91: 99801 | C91: WAVERLY | D91: WAVERLY | E91: 99801 | G91: 1812 | H91: AMHERST TOWNSHIP | I91: 3
A92: AREA_CODE | B92: 99802 | C92: GARRETTSVILLE | D92: GARRETTSVILLE | E92: 99802 | G92: 1826 | H92: AMHERST HEIGHTS | I92: 3
A93: AREA_CODE | B93: 99803 | C93: SEVILLE | D93: SEVILLE | E93: 99803 | G93: 1830 | H93: AMITY | I93: 3
A94: AREA_CODE | B94: 99804 | C94: CALDWELL | D94: CALDWELL | E94: 99804 | G94: 1840 | H94: AMITY | I94: 3
A95: AREA_CODE | B95: 99805 | C95: CONNEAUT | D95: CONNEAUT | E95: 99805 | G95: 1854 | H95: AMITY | I95: 3
A96: AREA_CODE | B96: 99806 | C96: DARBYDALE | D96: DARBYDALE | E96: 99806 | G96: 1868 | H96: AMITY | I96: 3
A97: AREA_CODE | B97: 99807 | C97: GENEVA | D97: GENEVA | E97: 99807 | G97: 1882 | H97: AMLIN | I97: 3
A98: AREA_CODE | B98: 99808 | C98: MIDDLEPORT | D98: MIDDLEPORT | E98: 99808 | G98: 1910 | H98: AMOY | I98: 3
A99: AREA_CODE | B99: 99809 | C99: POMEROY | D99: POMEROY | E99: 99809 | G99: 1924 | H99: AMSDEN | I99: 3
A100: AREA_CODE | B100: 99810 | C100: CHARDON | D100: CHARDON | E100: 99810 | G100: 1938 | H100: AMSTERDAM | I100: 2
A101: AREA_CODE | B101: 99811 | C101: RICHMOND, IN | D101: RICHMOND, IN | E101: 99811 | G101: 1952 | H101: AMSTERDAM | I101: 3
A102: AREA_CODE | B102: 99999 | C102: RURAL | D102: RURAL | E102: 99999 | G102: 1966 | H102: ANCOR | I102: 3
A103: CRASH_TYPE_CD | B103: 0 | C103: Unknown | D103: Unknown | E103: 0 | G103: 1980 | H103: ANDERSON TOWNSHIP | I103: 3
A104: CRASH_TYPE_CD | B104: 1 | C104: Head On | D104: Head On | E104: 1 | G104: 1990 | H104: ANDERSON | I104: 3
A105: CRASH_TYPE_CD | B105: 2 | C105: Rear End | D105: Rear End | E105: 2 | G105: 2008 | H105: ANDERSON FERRY | I105: 3
A106: CRASH_TYPE_CD | B106: 3 | C106: Backing | D106: Backing | E106: 3 | G106: 2022 | H106: ANDERSONVILLE | I106: 2
A107: CRASH_TYPE_CD | B107: 4 | C107: Sideswipe - Meeting | D107: Sideswipe - Meeting | E107: 4 | G107: 2036 | H107: ANDIS | I107: 3
A108: CRASH_TYPE_CD | B108: 5 | C108: Sideswipe - Passing | D108: Sideswipe - Passing | E108: 5 | G108: 2050 | H108: ANDOVER | I108: 2
A109: CRASH_TYPE_CD | B109: 6 | C109: Angle | D109: Angle | E109: 6 | G109: 2064 | H109: ANDOVER TOWNSHIP | I109: 3
A110: CRASH_TYPE_CD | B110: 7 | C110: Parked Vehicle | D110: Parked Vehicle | E110: 7 | G110: 2070 | H110: ANGEL | I110: 3
A111: CRASH_TYPE_CD | B111: 8 | C111: Pedestrian | D111: Pedestrian | E111: 8 | G111: 2074 | H111: ANGUS | I111: 3
A112: CRASH_TYPE_CD | B112: 9 | C112: Animal | D112: Animal | E112: 9 | G112: 2078 | H112: ANKENYTOWN | I112: 3
A113: CRASH_TYPE_CD | B113: 10 | C113: Train | D113: Train | E113: 10 | G113: 2085 | H113: ANLO | I113: 3
A114: CRASH_TYPE_CD | B114: 11 | C114: Pedalcycles | D114: Pedalcycles | E114: 11 | G114: 2092 | H114: ANNA | I114: 2
A115: CRASH_TYPE_CD | B115: 12 | C115: Other Non-Vehicle | D115: Other Non-Vehicle | E115: 12 | G115: 2106 | H115: ANNAPOLIS | I115: 3
A116: CRASH_TYPE_CD | B116: 13 | C116: Fixed Object | D116: Fixed Object | E116: 13 | G116: 2120 | H116: ANSONIA | I116: 2
A117: CRASH_TYPE_CD | B117: 14 | C117: Other Object | D117: Other Object | E117: 14 | G117: 2125 | H117: ANTHONY | I117: 3
A118: CRASH_TYPE_CD | B118: 15 | C118: Falling From Or In Vehicle | D118: Falling From Or In Vehicle | E118: 15 | G118: 2134 | H118: ANTIOCH | I118: 3
A119: CRASH_TYPE_CD | B119: 16 | C119: Overturning | D119: Overturning | E119: 16 | G119: 2148 | H119: ANTIOCH | I119: 2
A120: CRASH_TYPE_CD | B120: 17 | C120: Other Non-Collision | D120: Other Non-Collision | E120: 17 | G120: 2162 | H120: ANTIQUITY | I120: 3
A121: CRASH_TYPE_CD | B121: 18 | C121: Left Turn | D121: Left Turn | E121: 18 | G121: 2170 | H121: ANTONIS | I121: 3
A122: CRASH_TYPE_CD | B122: 19 | C122: Right Turn | D122: Right Turn | E122: 19 | G122: 2176 | H122: ANTRIM | I122: 3
A123: DAY_IN_WEEK_CD | B123: 1 | C123: Sunday | D123: Sunday | E123: 1 | G123: 2190 | H123: ANTRIM TOWNSHIP | I123: 3
A124: DAY_IN_WEEK_CD | B124: 2 | C124: Monday | D124: Monday | E124: 2 | G124: 2204 | H124: ANTWERP | I124: 2
A125: DAY_IN_WEEK_CD | B125: 3 | C125: Tuesday | D125: Tuesday | E125: 3 | G125: 2225 | H125: APEX | I125: 3
A126: DAY_IN_WEEK_CD | B126: 4 | C126: Wednesday | D126: Wednesday | E126: 4 | G126: 2228 | H126: APPLE | I126: 3
A127: DAY_IN_WEEK_CD | B127: 5 | C127: Thursday | D127: Thursday | E127: 5 | G127: 2232 | H127: APPLE CREEK | I127: 2
A128: DAY_IN_WEEK_CD | B128: 6 | C128: Friday | D128: Friday | E128: 6 | G128: 2246 | H128: APPLE GROVE | I128: 3
A129: DAY_IN_WEEK_CD | B129: 7 | C129: Saturday | D129: Saturday | E129: 7 | G129: 2260 | H129: APPLETON | I129: 3
A130: DAY_IN_WEEK_CD | G130: 2266 | H130: APPLE VALLEY | I130: 1
A131: DAY_IN_WEEK_CD | G131: 2274 | H131: AQUILLA | I131: 2
A132: DAY_IN_WEEK_CD | G132: 2288 | H132: ARABIA | I132: 3
A133: DAY_IN_WEEK_CD | G133: 2295 | H133: ARBAUGH | I133: 3
A134: DAY_IN_WEEK_CD | G134: 2302 | H134: ARBOCREST ACRES | I134: 3
A135: DAY_IN_WEEK_CD | G135: 2316 | H135: ARCADIA | I135: 2
A136: DAY_IN_WEEK_CD | G136: 2330 | H136: ARCANUM | I136: 2
A137: DISTRACTED_DRIVER_IND | B137: N | C137: No | D137: No | E137: N | G137: 2344 | H137: ARCHBOLD | I137: 2
A138: DISTRACTED_DRIVER_IND | B138: Y | C138: Yes | D138: Yes | E138: Y | G138: 2358 | H138: ARCHER TOWNSHIP | I138: 3
A139: FACILITY_TYPE_CD | B139: 1 | C139: One Way Roadway | D139: One Way Roadway | E139: 1 | G139: 2372 | H139: ARCHERS FORK | I139: 3
A140: FACILITY_TYPE_CD | B140: 2 | C140: Two Way Roadway | D140: Two Way Roadway | E140: 2 | G140: 2386 | H140: ARION | I140: 3
A141: FACILITY_TYPE_CD | B141: 3 | C141: Couplet | D141: Couplet | E141: 3 | G141: 2395 | H141: ARKOE | I141: 3
A142: FACILITY_TYPE_CD | B142: 4 | C142: Ramp | D142: Ramp | E142: 4 | G142: 2400 | H142: ARLINGTON | I142: 2
A143: FACILITY_TYPE_CD | B143: 5 | C143: Non-Mainline | D143: Non-Mainline | E143: 5 | G143: 2414 | H143: ARLINGTON | I143: 3
A144: FACILITY_TYPE_CD | B144: 6 | C144: Non-Inventory | D144: Non-Inventory | E144: 6 | G144: 2420 | H144: ARLINGTON | I144: 3
A145: FHWA_RDWY_DEPARTURE_IND | B145: N | C145: No | D145: No | E145: N | G145: 2428 | H145: ARLINGTON HEIGHTS | I145: 2
A146: FHWA_RDWY_DEPARTURE_IND | B146: Y | C146: Yes | D146: Yes | E146: Y | G146: 2460 | H146: ARMADALE | I146: 3
A147: FREEWAY_IND | B147: N | C147: No | D147: No | E147: N | G147: 2470 | H147: ARMITAGE | I147: 3
A148: FREEWAY_IND | B148: Y | C148: Yes | D148: Yes | E148: Y | G148: 2478 | H148: ARMSTRONG | I148: 3
A149: FUNCTIONAL_CLASS_CD | B149: 1 | C149: Interstate Route | D149: Interstate Route | E149: 1 | G149: 2484 | H149: ARMSTRONGS MILLS | I149: 3
A150: FUNCTIONAL_CLASS_CD | B150: 2 | C150: Other Freeways or Expressways | D150: Other Freeways or Expressways | E150: 2 | G150: 2498 | H150: ARNHEIM | I150: 3
A151: FUNCTIONAL_CLASS_CD | B151: 3 | C151: Other Principal Arterial Roads | D151: Other Principal Arterial Roads | E151: 3 | G151: 2512 | H151: ARNOLD | I151: 3
A152: FUNCTIONAL_CLASS_CD | B152: 4 | C152: Minor Arterial Roads | D152: Minor Arterial Roads | E152: 4 | G152: 2526 | H152: ARTANNA | I152: 3
A153: FUNCTIONAL_CLASS_CD | B153: 5 | C153: Major Collector Roads | D153: Major Collector Roads | E153: 5 | G153: 2540 | H153: ARTHUR | I153: 3
A154: FUNCTIONAL_CLASS_CD | B154: 6 | C154: Minor Collector Roads | D154: Minor Collector Roads | E154: 6 | G154: 2555 | H154: ASBURY | I154: 3
A155: FUNCTIONAL_CLASS_CD | B155: 7 | C155: Local Roads | D155: Local Roads | E155: 7 | G155: 2559 | H155: ASH | I155: 3
A156: INTERSTATE_IND | B156: N | C156: No | D156: No | E156: N | G156: 2568 | H156: ASHLAND | I156: 1
A157: INTERSTATE_IND | B157: Y | C157: Yes | D157: Yes | E157: Y | G157: 2582 | H157: ASHLEY | I157: 2
A158: LIGHT_COND_PRIMARY_CD | B158: 1 | C158: Daylight | D158: Daylight | E158: 1 | G158: 2596 | H158: ASHLEY CORNER | I158: 3
A159: LIGHT_COND_PRIMARY_CD | B159: 2 | C159: Dawn/Dusk | D159: Dawn/Dusk | E159: 2 | G159: 2624 | H159: ASH RIDGE | I159: 3
A160: LIGHT_COND_PRIMARY_CD | B160: 3 | C160: Dark - Lighted Roadway | D160: Dark - Lighted Roadway | E160: 3 | G160: 2638 | H160: ASHTABULA | I160: 1
A161: LIGHT_COND_PRIMARY_CD | B161: 4 | C161: Dark - Roadway Not Lighted | D161: Dark - Roadway Not Lighted | E161: 4 | G161: 2652 | H161: ASHTABULA TOWNSHIP | I161: 3
A162: LIGHT_COND_PRIMARY_CD | B162: 5 | C162: Dark - Unknown Roadway Lighting | D162: Dark - Unknown Roadway Lighting | E162: 5 | G162: 2675 | H162: ASHTON | I162: 3
A163: LIGHT_COND_PRIMARY_CD | B163: 9 | C163: Other / Unknown | D163: Other / Unknown | E163: 9 | G163: 2680 | H163: ASHVILLE | I163: 2
A164: LIGHT_COND_PRIMARY_CD | G164: 2708 | H164: ASSUMPTION | I164: 3
A165: LIGHT_COND_PRIMARY_CD | G165: 2715 | H165: ASTORIA | I165: 3
A166: LIGHT_COND_PRIMARY_CD | G166: 2722 | H166: ATHALIA | I166: 2
A167: NHS_CD | B167: 2 | C167: Major Airport | D167: Major Airport | E167: 2 | G167: 2736 | H167: ATHENS | I167: 1
A168: NHS_CD | B168: 3 | C168: Major Port Facility | D168: Major Port Facility | E168: 3 | G168: 2750 | H168: ATHENS TOWNSHIP | I168: 3
A169: NHS_CD | B169: 4 | C169: Major Amtrak Station | D169: Major Amtrak Station | E169: 4 | G169: 2764 | H169: ATHENS TOWNSHIP | I169: 3
A170: NHS_CD | B170: 5 | C170: Major Rail/Truck Terminal | D170: Major Rail/Truck Terminal | E170: 5 | G170: 2770 | H170: ATHERTON | I170: 3
A171: NHS_CD | B171: 6 | C171: Major Intercity Bus Terminal | D171: Major Intercity Bus Terminal | E171: 6 | G171: 2778 | H171: ATLANTA | I171: 3
A172: NHS_CD | B172: 7 | C172: Major Public Transit Terminal or Multi-modal Passenger Terminal | D172: Major Public Transit Terminal or Multi-modal Passenger Terminal | E172: 7 | G172: 2820 | H172: ATTICA | I172: 2
A173: NHS_CD | B173: 8 | C173: Major Pipeline Terminal | D173: Major Pipeline Terminal | E173: 8 | G173: 2834 | H173: ATTICA JUNCTION | I173: 3
A174: NHS_CD | B174: 9 | C174: Major Ferry Terminal | D174: Major Ferry Terminal | E174: 9 | G174: 2848 | H174: ATWATER | I174: 2
A175: NHS_CD | B175: C | C175: Strahnet Connectors | D175: Strahnet Connectors | E175: C | G175: 2862 | H175: ATWATER TOWNSHIP | I175: 3
A176: NHS_CD | B176: H | C176: Congressional Corridors | D176: Congressional Corridors | E176: H | G176: 2869 | H176: ATWATER CENTER | I176: 3
A177: NHS_CD | B177: N | C177: National Highway System (regular) | D177: National Highway System (regular) | E177: N | G177: 2876 | H177: AUBURN | I177: 3
A178: NHS_CD | B178: S | C178: Strahnet | D178: Strahnet | E178: S | G178: 2890 | H178: AUBURN TOWNSHIP | I178: 3
A179: ODOT_CRASH_LOCATION_CD | B179: 0 | C179: Data Not Valid or Not Provided | D179: Data Not Valid or Not Provided | E179: 0 | G179: 2904 | H179: AUBURN TOWNSHIP | I179: 3
A180: ODOT_CRASH_LOCATION_CD | B180: 1 | C180: Not An Intersection | D180: Not An Intersection | E180: 1 | G180: 2918 | H180: AUBURN TOWNSHIP | I180: 3
A181: ODOT_CRASH_LOCATION_CD | B181: 2 | C181: Four-Way Intersection | D181: Four-Way Intersection | E181: 2 | G181: 2932 | H181: AUBURN CENTER | I181: 3
A182: ODOT_CRASH_LOCATION_CD | B182: 3 | C182: T-Intersection | D182: T-Intersection | E182: 3 | G182: 2946 | H182: AUBURN CENTER | I182: 3
A183: ODOT_CRASH_LOCATION_CD | B183: 4 | C183: Y-Intersection | D183: Y-Intersection | E183: 4 | G183: 2960 | H183: AUBURN CORNERS | I183: 3
A184: ODOT_CRASH_LOCATION_CD | B184: 5 | C184: Traffic Circle/Roundabout | D184: Traffic Circle/Roundabout | E184: 5 | G184: 2970 | H184: AUGERBURG | I184: 3
A185: ODOT_CRASH_LOCATION_CD | B185: 6 | C185: 5 Or More Point Intersection | D185: 5 Or More Point Intersection | E185: 6 | G185: 2988 | H185: AUGLAIZE TOWNSHIP | I185: 3
A186: ODOT_CRASH_LOCATION_CD | B186: 7 | C186: On Ramp | D186: On Ramp | E186: 7 | G186: 3002 | H186: AUGLAIZE TOWNSHIP | I186: 3
A187: ODOT_CRASH_LOCATION_CD | B187: 8 | C187: Off Ramp | D187: Off Ramp | E187: 8 | G187: 3016 | H187: AUGUSTA | I187: 3
A188: ODOT_CRASH_LOCATION_CD | B188: 9 | C188: Crossover | D188: Crossover | E188: 9 | G188: 3030 | H188: AUGUSTA TOWNSHIP | I188: 3
A189: ODOT_CRASH_LOCATION_CD | B189: 10 | C189: Driveway/Alley Access | D189: Driveway/Alley Access | E189: 10 | G189: 3037 | H189: AUKERMAN | I189: 3
A190: ODOT_CRASH_LOCATION_CD | B190: 11 | C190: Railroad Grade Crossing | D190: Railroad Grade Crossing | E190: 11 | G190: 3058 | H190: AULTMAN | I190: 3
A191: ODOT_CRASH_LOCATION_CD | B191: 12 | C191: Shared-Use Paths Or Trails | D191: Shared-Use Paths Or Trails | E191: 12 | G191: 3072 | H191: AURELIUS TOWNSHIP | I191: 3
A192: ODOT_CRASH_LOCATION_CD | B192: 99 | C192: Unknown | D192: Unknown | E192: 99 | G192: 3086 | H192: AURORA | I192: 1
A193: ODOT_DIV_UNDIV_IND | B193: Y | C193: Divided | D193: Divided | E193: Y | G193: 3128 | H193: AUSTIN | I193: 3
A194: ODOT_DIV_UNDIV_IND | B194: N | C194: Undivided | D194: Undivided | E194: N | G194: 3142 | H194: AUSTINBURG | I194: 2
A195: ODOT_DIV_UNDIV_IND | B195: U | C195: Unknown/Missing | D195: Unknown/Missing | E195: U | G195: 3156 | H195: AUSTINBURG TOWNSHIP | I195: 3
A196: ODOT_INTERSECTION_REL_IND | B196: N | C196: No | D196: No | E196: N | G196: 3184 | H196: AUSTINTOWN | I196: 1
A197: ODOT_INTERSECTION_REL_IND | B197: Y | C197: Yes | D197: Yes | E197: Y | G197: 3198 | H197: AUSTINTOWN TOWNSHIP | I197: 3
A198: ODOT_MAINTAINED_HWY_IND | B198: N | C198: No | D198: No | E198: N | G198: 3220 | H198: AUSTIN VILLAGE | I198: 3
A199: ODOT_MAINTAINED_HWY_IND | B199: Y | C199: Yes | D199: Yes | E199: Y | G199: 3226 | H199: AUTUMN ACRES | I199: 3
A200: ODOT_YOUNG_DRIVER_IND | B200: N | C200: No | D200: No | E200: N | G200: 3240 | H200: AVA | I200: 3
... 5737 more rows

Sheet Metadata (hidden)
A1: Metadata
A2: 43907
A4: Column Name | B4: Definition
A5: Document Number | B5: Unique number assigned to each crash. It will be the same for the crash level record, unit level record and people level record. The first four numbers will designate the crash year.
A6: Year | B6: Year of Crash
A7: Local Report Number | B7: The unique identifier within a given year that identifies a given crash within a reporting agency.
A8: User Defined | B8: User Defined - Can be used to code crashes as necessary
A9: Severity | B9: Indicates the five-level severity of the crash
A10: Crash Type | B10: ODOT's calculated crash type similar to manner of collision but has been expanded for engineering purposes.
A11: ODOT District | B11: ODOT District
A12: County Cd | B12: County abbreviation for the section of roadway in which the crash occurred.
A13: ODOT Crash Location | B13: The type of location that best describes where the first event of the crash occurred.
A14: NLFID | B14: ODOT’s graphic roadway network geometric segments unique identifier upon which the crash occurred
A15: County True Log | B15: The county based straight line mileage of the route, at which the crash occurred based on three decimals.
A16: State True Log | B16: The state based straight line mileage of the route, at which the crash occurred based on three decimals.
A17: On Road | B17: The street name upon which the crash occurred
A18: At Road | B18: The street name upon which the crash occurred at
A19: ODOT Latitude | B19: The angular distance, measured in degrees, north or south from the equator at which the crash occurred and is directly related to ODOT's LRS.
A20: ODOT Longitude | B20: Distance East or West on the Earth's surface measured as an arc of the equator (in degrees up to 180 degrees) between the meridian passing through a particular place and a standard or prime meridian, usually the one passing through Greenwich, England, at which the crash occurred and is directly related to ODOT's LRS.
A21: ODOT FIPS | B21: Jurisdictional boundary code corresponding to a named place recognized by the U.S. Bureau of the Census based on information provided by State, county, and local governments.
A22: ODOT FIPS Name | B22: Jurisdiction Name Related to FIPS Code
A23: ODOT FIPS CVT Code | B23: Code related to type jurisdiction on the crash report form
A24: Fatalities | B24: Total Number of Fatalities
A25: Serious Injuries | B25: Total Number of Suspected Serious Injuries
A26: Non Serious Injuries | B26: Total Number of Suspected Minor Injuries
A27: Possible Injuries | B27: Total Number of Possible Injuries
A28: No Injuries | B28: Total Number of no Injuries reported
A29: Unrestrained Occupants | B29: Total number of unrestrained occupants in the crash
A30: Number of Units | B30: Total number of units involved in the crash
A31: NLFID Jurisdiction | B31: Jurisdiction of the section of roadway upon which the crash occurred.
A32: NLFID Route Type | B32: The route type associated with the route upon which the crash occurred.
A33: Facility Type | B33: The operational characteristics of the section of roadway (i.e. one way, two way, ramp).
A34: Urban Area | B34: U.S. Census Urban Area Code associated with the section of roadway where the crash occurred.
A35: Functional Class | B35: The roadway classes for the FHWA approved Functional Class system. This is based upon assignment of roads into systems according to the character of service they provide in relation to the total road network upon which the crash occurred.
A36: NHS | B36: Indicates the Roadway section that is part of the National Highway System upon which the crash occurred.
A37: Divided Hwy | B37: Indicates whether a roadway section is part of a divided highway upon which the crash occurred.
A38: ODOT Number of Lanes | B38: The number of lanes in both directions carrying through traffic upon which the crash occurred.
A39: Operational Access Control | B39: The control as it actually exists on the roadway where the crash occurred.
A40: Freeway | B40: Flag that indicates that the crash occurred on a freeway or freeway look a like facility
A41: Interstate | B41: Flag that indicates the crash occurred on an interstate route.
A42: ODOT Maintained | B42: Flag that indicates the crash occurred upon a segment of roadway maintained by ODOT.
A43: Maintenance Authority | B43: Maintenance Authority Code of the roadway segment on which the crash was located.
A44: Date | B44: Date of Crash
A45: Month | B45: Month of Crash
A46: Hour | B46: Hour of Crash
A47: Day in Week | B47: Number associated with the day of week the crash occurred.
A48: Weather Condition | B48: The prevailing atmospheric conditions at the time of the crash.
A49: Road Condition | B49: The roadway surface condition at the location of the first event.
A50: Light Condition | B50: The lighting conditions at the time of the crash
A51: Road Contour | B51: The alignment and grade characteristics that best describe the roadway at the location of the first event
A52: Roadway Departure | B52: Indicates when a vehicles leaves its lane of travel (left or right).
A53: ODOT Intersection Related | B53: ODOT's calculated intersection related based on ODPS's intersection related flag and if a unit had traffic control that occurs at intersections.
A54: Alcohol Related | B54: Flag indicating alcohol involved
A55: Marijuana Related | B55: Flag indicating marijuana involved
A56: Drug Related | B56: Flag indicating other drugs involved
A57: School Zone Related | B57: Flag indicating that the crash occurred in an active school zone
A58: Motorcycle Involved | B58: Flag indicating motorcycle involved
A59: Speed Related | B59: Flag indicating excessive speed involved
A60: Senior Driver Involved | B60: Flag indicating a senor driver (age 65 and older) was involved.
A61: ODOT Young Driver | B61: Flag indicating a youthful driver (age 15-25) was involved.
A62: Work Zone Related | B62: Flag indicating the crash occurred in a work zone.
A63: Location in Work Zone | B63: Codes indicating where in the work zone the crash occurred.
A64: Type of Work Zone | B64: Codes indicating what type of work zone was in place at the time of the crash.
A65: Distracted Driver | B65: Flag indicating the driver was distracted
A66: ODPS FIPS Name | B66: Jurisdictional boundary named place recognized by the U.S. Bureau of the Census based on information provided by State, county, and local governments.
A67: ODPS On Road Name Prefix | B67: The street name prefix or direction upon which the crash occurred
A68: ODPS On Road Name | B68: The street name upon which the crash occurred
A69: ODPS On Road Name Suffix | B69: The street name suffix upon which the crash occurred
A70: ODPS On Road Name Directional Suffix | B70: ODPS street name directional suffix (i.e. NW, SE) upon which the crash occurred.
A71: ODPS On Route Type | B71: The route prefix upon which the crash occurred
A72: ODPS On Route Number | B72: The route ID upon which the crash occurred
A73: ODPS On Route Suffix | B73: ODPS routes suffix upon which the crash occurred (state or local).
A74: ODPS At Road Name Prefix | B74: The street name prefix or direction at which the crash occurred
A75: ODPS At Road Name | B75: Street Name or House Number or Mile Post Number
A76: ODPS At Road Name Suffix | B76: The street name suffix at which the crash occurred.
A77: ODPS At Road Name Directional Suffix | B77: ODPS street name directional suffix (i.e. NW, SE) at which the crash occurred (intersection reference type).
A78: ODPS At Route Type | B78: The route prefix or type at which the crash occurred
A79: ODPS At Route Number | B79: The route ID at which the crash occurred.
A80: ODPS At Route Suffix | B80: ODPS routes suffix at which the crash occurred (state or local) (intersection reference type).
A81: ODPS Address Reference | B81: ODPS address box number at which crash occurred (address reference type)
A82: ODPS Mile Post Reference | B82: ODPS milepost sign number at which the crash occurred (milepost reference type)
A83: ODPS Reference Point Used | B83: Type of reference used (includes converted codes form the 2001 crash report form).
A84: Unit 1 At Fault Ind | B84: Flag indicating that ODO Unit 1 (U1) was identified as fault
A85: Unit 1 ODPS Unit Nbr | B85: ODPS Unit Number for ODOT Unit 1
A86: Unit 1 Direction From Cd | B86: Direction from which the vehicle/non-motorist was traveling.
A87: Unit 1 Direction To Cd | B87: Direction toward which the vehicle/non-motorist was traveling.
A88: Unit 1 Turn Cd | B88: ODOT's calculated Unit 1 derived action prior to the crash based on officer provided pre-crash actions or from/to directions.
A89: Unit 1 Traffic Control Cd | B89: Codes indicating the type of Roadway Traffic Control device for Unit 1.
A90: Unit 1 Type Of Unit Cd | B90: Codes indicating the general configuration or shape of Unit 1 distinguished by characteristics such as number of doors, rows of seats, windows, or roof line.
A91: Unit 1 Special Function Cd | B91: Codes indicating the special function served by Unit 1, whether or not the function is marked on the vehicle.
A92: Unit 1 Unit Speed Nbr | B92: Actual or estimated speed of Unit 1 at time of crash.
A93: Unit 1 Posted Speed Nbr | B93: Posted Speed for Unit 1 at the time of the crash.
A94: Unit 1 Precrash Action Cd | B94: Unit 1's activity immediately prior to the crash.
A95: Unit 1 Cont Cir Primary Cd | B95: Actions of Unit 1 that may have contributed to the crash.
A96: Unit 1 Object Struck | B96: Code indicating that Unit 1 struck an object as part of one of the six sequence of events. (codes relate solely to sequence of events)
A97: Unit 1 Seq Of Events 1 Cd | B97: Unit 1's sequence 1 of 6 for the events of the crash.
A98: Unit 1 Seq Of Events 2 Cd | B98: Unit 1's sequence 2 of 6 for the events of the crash.
A99: Unit 1 Seq Of Events 3 Cd | B99: Unit 1's sequence 3 of 6 for the events of the crash.
A100: Unit 1 Seq Of Events 4 Cd | B100: Unit 1's sequence 4 of 6 for the events of the crash.
A101: Unit 1 Seq Of Events 5 Cd | B101: Unit 1's sequence 5 of 6 for the events of the crash.
A102: Unit 1 Seq Of Events 6 Cd | B102: Unit 1's sequence 6 of 6 for the events of the crash.
A103: Unit 1 Non Motorist Loc Cd | B103: The location of the non-motorist with respect to the roadway prior to the time of the crash.
A104: Unit 1 Age Nbr | B104: Age of the Driver of Unit 1
A105: Unit 1 Gender Cd | B105: Codes indicating the gender of the Driver of Unit 1
A106: Unit 1 Distracted By 1 Cd | B106: Codes indicating the distractions which may have influenced the driver's performance of Unit 1.
A107: Unit 2 ODPS Unit Nbr | B107: ODPS number for ODOT Unit 2
A108: Unit 2 Direction From Cd | B108: Direction from which the vehicle/non-motorist was traveling.
A109: Unit 2 Direction To Cd | B109: Direction toward which the vehicle/non-motorist was traveling.
A110: Unit 2 Turn Cd | B110: ODOT's calculated Unit 2 derived action prior to the crash based on officer provided pre-crash actions or from/to directions.
A111: Unit 2 Traffic Control Cd | B111: Codes indicating the type of Roadway Traffic Control device for Unit 2.
A112: Unit 2 Type Of Unit Cd | B112: Codes indicating the general configuration or shape of Unit 2 distinguished by characteristics such as number of doors, rows of seats, windows, or roof line.
A113: Unit 2 Special Function Cd | B113: Codes indicating the special function served by Unit 2, whether or not the function is marked on the vehicle.
A114: Unit 2 Unit Speed Nbr | B114: Actual or estimated speed of Unit 2 at time of crash.
A115: Unit 2 Posted Speed Nbr | B115: Posted Speed for Unit 2 at the time of the crash.
A116: Unit 2 Precrash Action Cd | B116: Unit 2's activity immediately prior to the crash.
A117: Unit 2 Cont Cir Primary Cd | B117: Actions of Unit 2 that may have contributed to the crash.
A118: Unit 2 Seq Of Events 1 Cd | B118: Unit 2's sequence 1 of 6 for the events of the crash.
A119: Unit 2 Seq Of Events 2 Cd | B119: Unit 2's sequence 2 of 6 for the events of the crash.
A120: Unit 2 Seq Of Events 3 Cd | B120: Unit 2's sequence 3 of 6 for the events of the crash.
A121: Unit 2 Seq Of Events 4 Cd | B121: Unit 2's sequence 4 of 6 for the events of the crash.
A122: Unit 2 Seq Of Events 5 Cd | B122: Unit 2's sequence 5 of 6 for the events of the crash.
A123: Unit 2 Seq Of Events 6 Cd | B123: Unit 2's sequence 6 of 6 for the events of the crash.
A124: Unit 2 Non Motorist Loc Cd | B124: The location of the non-motorist with respect to the roadway prior to the time of the crash.
A125: Unit 2 Age Nbr | B125: Age of the Driver of Unit 2
A126: Unit 2 Gender Cd | B126: Codes indicating the gender of the Driver of Unit 2
A127: Unit 2 Distracted By 1 Cd | B127: Codes indicating the distractions which may have influenced the driver's performance of Unit 2.
A128: Unit 3 ODPS Unit Nbr | B128: ODPS number for ODOT Unit 3
A129: Unit 3 Traffic Control Cd | B129: Codes indicating the type of Roadway Traffic Control device for Unit 3.
A130: Unit 3 Type Of Unit Cd | B130: Codes indicating the general configuration or shape of Unit 3 distinguished by characteristics such as number of doors, rows of seats, windows, or roof line.
A131: Unit 3 Special Function Cd | B131: Codes indicating the special function served by Unit 3, whether or not the function is marked on the vehicle.
A132: Unit 3 Precrash Action Cd | B132: Unit 3's activity immediately prior to the crash.
A133: Unit 3 Cont Cir Primary Cd | B133: Actions of Unit 3 that may have contributed to the crash.
A134: Unit 3 Seq Of Events 1 Cd | B134: Unit 3's sequence 1 of 6 for the events of the crash.
A135: Unit 3 Seq Of Events 2 Cd | B135: Unit 3's sequence 2 of 6 for the events of the crash.
A136: Unit 3 Seq Of Events 3 Cd | B136: Unit 3's sequence 3 of 6 for the events of the crash.
A137: Unit 3 Seq Of Events 4 Cd | B137: Unit 3's sequence 4 of 6 for the events of the crash.
A138: Unit 3 Seq Of Events 5 Cd | B138: Unit 3's sequence 5 of 6 for the events of the crash.
A139: Unit 3 Seq Of Events 6 Cd | B139: Unit 3's sequence 6 of 6 for the events of the crash.
A140: Intersection ID | B140: Unique Intersection ID that associates the crash with the intersection referenced or by a spatial join of the crash to the intersection
A141: Intersection Leg | B141: Leg ID of the Intersection upon which the crash occurred (from Intersection Inventory)
A142: Interchange ID | B142: Unique Interchange ID that associates the crash with the intersection referenced or by a spatial join of the crash to the interchange.
A143: SA Ramp ID | B143: Ramp ID from SA Inventory
A144: SA Segment ID | B144: Segment ID from SA Inventory
A145: Jurisdiction Type | B145: Aggregated Jurisdiction
A146: Crash Report Link | B146: Calculated field to display the crash image
A147: HistoricalImagePath | B147: Historical path to display the crash image
A148: Roadview | B148: Link to Pathways Roadviewer
A149: Google | B149: Link to Google Maps
A150: Mashed Map | B150: Link to Mashed Map

Sheet Instructions
B1: Crash Analysis Planning and Evaluation Tool 1.2
B5: version 20210407 build 1.2.6
B8: Overview
B9: The Crash Analysis Planning and Evaluation (CAPE) Tool has been developed to assist in the analysis of crash data and the development of charts and figures for use in the safety planning process. This tool is intended to provide users with long term trends for county/ region-wide analysis. The CAPE tool is not intended for short term spot location analysis or as a replacement to ODOT's CAM tool.
B11: Data Color Guidelines
C13: Required user input data
B14: Do not overwrite | C14: Calculated fields. Do not insert text or overwrite.
C15: Indicates the Highest value in a column, where applicable.
B16: Column1 | C16: Generated pivot table data. Do not overwrite.
B21: Upon Opening the File
B22: 1. Ensure that macros are enabled in Excel. (Refer to Microsoft Help for more information about enabling macros.)
B23: 2. Read the Disclaimer and follow the instructions below.
B24: 3. Read all instructions before proceeding.
B28: Instructions to Complete the Analysis Process
B30: 1. Begin by launching the CAPE toolbar by clicking the green box to the right, also available in the top left corner of most sheets. Macros must be enable to launch CAPE toolbar.
B33: 2. In the toolbar on the 'Import and Base Analysis' tab, click the orange 'TIMS - GCAT Import (.csv or .xls)' button under Step 1. Clicking this button will clear any previously imported crash data on the 'Full Crash Data' worksheet. The user will be prompted to selected a GCAT crash data file to import into the current CAPE tool. The file must be an unaltered crash data file from TIMS/ GCAT. For more information on extracting crash data from TIMS/ GCAT, please see the GCAT webpage at http://www.dot.state.oh.us/Divisions/Planning/ProgramManagement/HighwaySafety/HSIP/Pages/GCAT.aspx. When the user selects the file, a notice will appear indicating that a NEW FILE will be created converting the GCAT output to the required CAPE tool format. The new file will be the located in the same location as the GCAT output file with 'CAPE_' added to the beginning of the file name. The user must click 'OK" to proceed. Data conversion and import may take several minutes depending on the size of the GCAT file being used. The status bar in the lower left corner of the screen will display the current analysis step. DO NOT attempt to navigate through the tool until the status bar is empty.
B49: 3. Once the data has been successfully imported, the status bar will clear while the toolbar remains open. Click the blue button under Step 2 to update charts on the green labeled worksheets. This may take several minutes and the status bar will update to indicate the basic analysis update process.
B53: 4. To develop specific crash type charts, open the toolbar and navigate to the 'Focus Crash Type' tab within the toolbar. To select a crash type for analysis, click the box to the left of the crash type name. Users may select any number of crash types for analysis. Note, selecting a large number of crash types for analysis will greatly impact file size and processing speed. To generate the sheets, click the green button at the bottom of the tab.
B58: 5. To develop specific emphasis area charts, open the toolbar and navigate to the 'Emphasis Area' tab within the toolbar. To select an emphasis area for analysis, click the box to the left of the emphasis area name. Users may select any number of emphasis areas for analysis. Note, selecting a large number of emphasis areas for analysis will greatly impact file size and processing speed. To generate the sheets, click the green button at the bottom of the tab.

Sheet Full Crash Data
A1: Crash Analysis Planning and Evaluation Tool 1.2
A2: version 20210407
G16: HL | I16: HL | J16: HL | K16: HL | L16: HL | P16: HL | Q16: HL | R16: HL | AW16: HL | AX16: HL | BL16: HL | BM16: HL | BN16: HL | BO16: HL | BP16: HL | BQ16: HL | BR16: HL | BS16: HL | BT16: HL | BU16: HL | BV16: HL | BW16: HL | BX16: HL | BY16: HL | BZ16: HL | CA16: HL | CB16: HL
A18: 1 | C18: 4 | D18: 75 | F18: 14 | G18: 22 | H18: 5 | I18: 8 | J18: 25 | K18: 6 | L18: 10 | M18: 137 | P18: 11 | Q18: 12 | R18: 13 | S18: 37 | U18: 15 | V18: 16 | W18: 17 | X18: 18 | Y18: 19 | Z18: 20 | AA18: 21 | AB18: 7 | AC18: 9 | AD18: 26 | AE18: 27 | AF18: 28 | AG18: 29 | AH18: 30 | AI18: 31 | AJ18: 32 | AK18: 33 | AL18: 34 | AM18: 35 | AN18: 36 | AO18: 38 | AP18: 39 | AQ18: 40 | AR18: 41 | AS18: 42 | AT18: 43 | AU18: 44 | AV18: 45 | AW18: 23 | AX18: 24 | AY18: 46 | BA18: 47 | BB18: 48 | BC18: 49 | BD18: 50 | BE18: 51 | BF18: 55 | BG18: 52 | BH18: 53 | BI18: 54 | BJ18: 56 | BK18: 57 | BL18: 58 | BM18: 59 | BN18: 60 | BO18: 61 | BP18: 62 | BQ18: 63 | BR18: 64 | BS18: 65 | BT18: 66 | BU18: 67 | BV18: 68 | BW18: 69 | BX18: 70 | BY18: 71 | BZ18: 72 | CA18: 73 | CB18: 74 | CC18: 76 | CD18: 77 | CE18: 78 | CF18: 79 | CG18: 80 | CH18: 81 | CI18: 82 | CJ18: 83 | CK18: 84 | CL18: 85 | CM18: 86

Sheet Background Information
C1: Background Information
B8: Fatality and Serious Injury Trends By Population | W8: Fatality and Serious Injury Trends By Vehicle Miles Traveled (VMT)
D9: ="Fatalities and Population, "&'Emphasis Area Template'!$AK$248&"-"&'Emphasis Area Template'!$AL$248 -> Fatalities and Population, 0-0 | Y9: ="Fatalities and VMT, "&'Emphasis Area Template'!$AK$248&"-"&'Emphasis Area Template'!$AL$248 -> Fatalities and VMT, 0-0
P10: YEAR | Q10: FATALITIES | R10: SERIOUS INJURIES | S10: POPULATION ESTIMATE | AK10: YEAR | AL10: FATALITIES | AM10: SERIOUS INJURIES | AN10: 100 MVMT
P11: =B85 -> 2010 | Q11: =GETPIVOTDATA("Fatalities",$B$84,"Year",P11) -> 5 | R11: =GETPIVOTDATA("Serious Injuries",$B$84,"Year",P11) -> 23 | S11: 0 | AK11: =P58 -> 2010 | AL11: =GETPIVOTDATA("FATALITIES ",$P$57,"Year",AK11) -> 5 | AM11: =GETPIVOTDATA("SERIOUS INJURIES ",$P$57,"Year",AK11) -> 23 | AN11: 0
P12: =P11+1 -> 2011 | Q12: =IFERROR(GETPIVOTDATA("Fatalities",$B$84,"Year",P12),0) -> 3 | R12: =IFERROR(GETPIVOTDATA("Serious Injuries",$B$84,"Year",P12),0) -> 29 | S12: 0 | AK12: =AK11+1 -> 2011 | AL12: =IFERROR(GETPIVOTDATA("FATALITIES ",$P$57,"Year",AK12),0) -> 3 | AM12: =IFERROR(GETPIVOTDATA("SERIOUS INJURIES ",$P$57,"Year",AK12),0) -> 29 | AN12: 0
P13: 2012 | Q13: 3 | R13: 20 | S13: 0 | AK13: =AK12+1 -> 2012 | AL13: =IFERROR(GETPIVOTDATA("FATALITIES ",$P$57,"Year",AK13),0) -> 3 | AM13: =IFERROR(GETPIVOTDATA("SERIOUS INJURIES ",$P$57,"Year",AK13),0) -> 20 | AN13: 0
P14: 2013 | Q14: 3 | R14: 21 | S14: 0 | AK14: 2013 | AL14: 3 | AM14: 21 | AN14: 0
P15: 2014 | Q15: 5 | R15: 15 | S15: 0 | AK15: 2014 | AL15: 5 | AM15: 15 | AN15: 0
P16: 2015 | Q16: 3 | R16: 13 | S16: 0 | AK16: 2015 | AL16: 3 | AM16: 13 | AN16: 0
P17: 2016 | Q17: 4 | R17: 15 | S17: 0 | AK17: 2016 | AL17: 4 | AM17: 15 | AN17: 0
P18: 2017 | Q18: 5 | R18: 30 | S18: 0 | AK18: 2017 | AL18: 5 | AM18: 30 | AN18: 0
P19: 2018 | Q19: 3 | R19: 14 | S19: 0 | AK19: 2018 | AL19: 3 | AM19: 14 | AN19: 0
P20: 2019 | Q20: 2 | R20: 25 | S20: 0 | AK20: 2019 | AL20: =IFERROR(GETPIVOTDATA("FATALITIES ",$P$57,"Year",AK20),0) -> 2 | AM20: =IFERROR(GETPIVOTDATA("SERIOUS INJURIES ",$P$57,"Year",AK20),0) -> 25 | AN20: 0
P21: Grand Total | Q21: =SUM(Q11:Q20) -> 36 | R21: =SUM(R11:R20) -> 205 | S21: =SUM(S11:S20) -> 0 | AK21: Total | AL21: =SUM(AL11:AL20) -> 36 | AM21: =SUM(AM11:AM20) -> 205 | AN21: 0
O23: Note: Population to be entered by user in the orange cells in the table above. | AJ23: Note: VMT to be entered by user in the orange cells in the table above.
O24: Population information can be obtained from the US Census Bureau -
O25: https://www.census.gov/quickfacts/OH?
D32: ="Serious Injuries and Population, "&'Emphasis Area Template'!$AK$248&"-"&'Emphasis Area Template'!$AL$248 -> Serious Injuries and Population, 0-0 | Y32: ="Serious Injuries and VMT, "&'Emphasis Area Template'!$AK$248&"-"&'Emphasis Area Template'!$AL$248 -> Serious Injuries and VMT, 0-0
P57: YEAR | Q57: FATALITIES | R57: SERIOUS INJURIES | S57: VMT
P58: 2010 | Q58: 5 | R58: 23
P59: 2011 | Q59: 3 | R59: 29
P60: 2012 | Q60: 3 | R60: 20
P61: 2013 | Q61: 3 | R61: 21
P62: 2014 | Q62: 5 | R62: 15
P63: 2015 | Q63: 3 | R63: 13
P64: 2016 | Q64: 4 | R64: 15
P65: 2017 | Q65: 5 | R65: 30
P66: 2018 | Q66: 3 | R66: 14
P67: 2019 | Q67: 2 | R67: 25
P68: Grand Total | Q68: 36 | R68: 205
B84: YEAR | C84: FATALITIES | D84: SERIOUS INJURIES | E84: POPULATION
B85: 2010 | C85: 5 | D85: 23
B86: 2011 | C86: 3 | D86: 29
B87: 2012 | C87: 3 | D87: 20
B88: 2013 | C88: 3 | D88: 21
B89: 2014 | C89: 5 | D89: 15
B90: 2015 | C90: 3 | D90: 13
B91: 2016 | C91: 4 | D91: 15
B92: 2017 | C92: 5 | D92: 30
B93: 2018 | C93: 3 | D93: 14
B94: 2019 | C94: 2 | D94: 25
B95: Grand Total | C95: 36 | D95: 205

Sheet Crash Forecast
C1: Crash Forecast
B7: Forecast and Target Setting Fatalities | H7: Input Target Reduction in Orange Cells Below | P7: Forecast and Target Setting Serious Injuries | V7: Input Target Reduction in Orange Cells Below
H8: Aggressive | I8: Moderate | J8: Minimal | K8: Do Nothing | V8: Aggressive | W8: Moderate | X8: Minimal | Y8: Do Nothing
H9: -0.05 | I9: -0.02 | J9: -0.01 | K9: =SLOPE(C70:C79,B70:B79)/100 -> -0.0009696969697 | V9: -0.05 | W9: -0.02 | X9: -0.01 | Y9: =SLOPE(N70:N79,M70:M79)/100 -> -0.003454545455
B68: Pass through table | L68: Pass through table
B69: Column1 | C69: FATALITIES | D69: ROLLING AVERAGE | E69: AGGRESSIVE REDUCTION | F69: MODERATE REDUCTION | G69: MINIMALREDUCTION | H69: DO NOTHING | M69: Column1 | N69: SERIOUS INJURIES | O69: ROLLING AVERAGE | P69: AGGRESSIVE REDUCTION | Q69: MODERATE REDUCTION | R69: MINIMALREDUCTION | S69: DO NOTHING
B70: ='Background Information'!P11 -> 2010 | C70: =IFERROR(GETPIVOTDATA("Document Number",$B$117,"Year",B70,"Severity","Fatal"),0) -> 5 | M70: ='Background Information'!P11 -> 2010 | N70: =IFERROR(GETPIVOTDATA("Document Number",$B$117,"Year",B119,"Severity","Serious Injury Suspected"),0) -> 20
B71: =B70+1 -> 2011 | C71: 3 | M71: =M70+1 -> 2011 | N71: 24
B72: =B71+1 -> 2012 | C72: 3 | M72: =M71+1 -> 2012 | N72: 17
B73: 2013 | C73: 3 | M73: 2013 | N73: 17
B74: 2014 | C74: 5 | D74: =AVERAGE(C70:C74) -> 3.8 | M74: 2014 | N74: 13 | O74: =AVERAGE(N70:N74) -> 18.2
B75: 2015 | C75: 3 | D75: 3.4 | M75: 2015 | N75: 13 | O75: 16.8
B76: 2016 | C76: 4 | D76: 3.6 | M76: 2016 | N76: 13 | O76: 14.6
B77: 2017 | C77: 5 | D77: 4 | M77: 2017 | N77: 22 | O77: 15.6
B78: 2018 | C78: 3 | D78: 4 | M78: 2018 | N78: 14 | O78: 15
B79: 2019 | C79: 2 | D79: =AVERAGE(C75:C79) -> 3.4 | E79: =AVERAGE($C$75:$C$79) -> 3.4 | F79: =AVERAGE($C$75:$C$79) -> 3.4 | G79: =AVERAGE($C$75:$C$79) -> 3.4 | H79: =AVERAGE($C$75:$C$79) -> 3.4 | M79: 2019 | N79: 20 | O79: =AVERAGE(N75:N79) -> 16.4 | P79: =AVERAGE($N$75:$N$79) -> 16.4 | Q79: =AVERAGE($N$75:$N$79) -> 16.4 | R79: =AVERAGE($N$75:$N$79) -> 16.4 | S79: =AVERAGE($N$75:$N$79) -> 16.4
B80: 2020 | E80: =E79*(1+$H$9) -> 3.23 | F80: =F79*(1+$I$9) -> 3.332 | G80: =G79*(1+$J$9) -> 3.366 | H80: =H79*(1+$K$9) -> 3.39670303 | M80: 2020 | P80: =P79*(1+$V$9) -> 15.58 | Q80: =Q79*(1+$W$9) -> 16.072 | R80: =R79*(1+$X$9) -> 16.236 | S80: =S79*(1+$Y$9) -> 16.34334545
B81: 2021 | E81: =E80*(1+$H$9) -> 3.0685 | F81: =F80*(1+$I$9) -> 3.26536 | G81: =G80*(1+$J$9) -> 3.33234 | H81: =H80*(1+$K$9) -> 3.393409258 | M81: 2021 | P81: =P80*(1+$V$9) -> 14.801 | Q81: =Q80*(1+$W$9) -> 15.75056 | R81: =R80*(1+$X$9) -> 16.07364 | S81: =S80*(1+$Y$9) -> 16.28688662
B82: 2022 | E82: 2.915075 | F82: 3.2000528 | G82: 3.2990166 | H82: 3.390118679 | M82: 2022 | P82: 14.06095 | Q82: 15.4355488 | R82: 15.9129036 | S82: 16.23062283
B83: 2023 | E83: 2.76932125 | F83: 3.136051744 | G83: 3.266026434 | H83: 3.386831291 | M83: 2023 | P83: 13.3579025 | Q83: 15.12683782 | R83: 15.75377456 | S83: 16.17455341
B84: 2024 | E84: 2.630855187 | F84: 3.073330709 | G84: 3.23336617 | H84: 3.383547091 | M84: 2024 | P84: 12.69000737 | Q84: 14.82430107 | R84: 15.59623682 | S84: 16.11867768
B85: 2025 | E85: 2.499312428 | F85: 3.011864095 | G85: 3.201032508 | H85: 3.380266076 | M85: 2025 | P85: 12.05550701 | Q85: 14.52781505 | R85: 15.44027445 | S85: 16.06299498
B86: 2026 | E86: 2.374346807 | F86: 2.951626813 | G86: 3.169022183 | H86: 3.376988242 | M86: 2026 | P86: 11.45273166 | Q86: 14.23725875 | R86: 15.28587171 | S86: 16.00750463
B87: 2027 | E87: 2.255629466 | F87: 2.892594277 | G87: 3.137331961 | H87: 3.373713587 | M87: 2027 | P87: 10.88009507 | Q87: 13.95251357 | R87: 15.13301299 | S87: 15.95220598
B88: 2028 | E88: 2.142847993 | F88: 2.834742391 | G88: 3.105958641 | H88: 3.370442107 | M88: 2028 | P88: 10.33609032 | Q88: 13.6734633 | R88: 14.98168286 | S88: 15.89709836
B89: 2029 | E89: 2.035705593 | F89: 2.778047543 | G89: 3.074899055 | H89: 3.367173799 | M89: 2029 | P89: 9.819285804 | Q89: 13.39999403 | R89: 14.83186603 | S89: 15.84218111
B90: 2030 | E90: 1.933920314 | F90: 2.722486593 | G90: 3.044150064 | H90: 3.363908661 | M90: 2030 | P90: 9.328321513 | Q90: 13.13199415 | R90: 14.68354737 | S90: 15.78745357
B91: 2031 | E91: 1.837224298 | F91: 2.668036861 | G91: 3.013708564 | H91: 3.360646689 | M91: 2031 | P91: 8.861905438 | Q91: 12.86935427 | R91: 14.5367119 | S91: 15.7329151
B92: 2032 | E92: 1.745363083 | F92: 2.614676123 | G92: 2.983571478 | H92: 3.35738788 | M92: 2032 | P92: 8.418810166 | Q92: 12.61196718 | R92: 14.39134478 | S92: 15.67856503
B93: 2033 | E93: 1.658094929 | F93: 2.562382601 | G93: 2.953735763 | H93: 3.354132231 | M93: 2033 | P93: 7.997869657 | Q93: 12.35972784 | R93: 14.24743133 | S93: 15.62440271
B94: 2034 | E94: 1.575190183 | F94: 2.511134949 | G94: 2.924198406 | H94: 3.35087974 | M94: 2034 | P94: 7.597976175 | Q94: 12.11253328 | R94: 14.10495702 | S94: 15.5704275
B95: 2035 | E95: 1.496430673 | F95: 2.46091225 | G95: 2.894956422 | H95: 3.347630402 | M95: 2035 | P95: 7.218077366 | Q95: 11.87028262 | R95: 13.96390745 | S95: 15.51663875
B96: 2036 | E96: 1.42160914 | F96: 2.411694005 | G96: 2.866006858 | H96: 3.344384215 | M96: 2036 | P96: 6.857173498 | Q96: 11.63287697 | R96: 13.82426837 | S96: 15.46303582
B97: 2037 | E97: 1.350528683 | F97: 2.363460125 | G97: 2.837346789 | H97: 3.341141175 | M97: 2037 | P97: 6.514314823 | Q97: 11.40021943 | R97: 13.68602569 | S97: 15.40961806
B98: 2038 | E98: 1.283002249 | F98: 2.316190922 | G98: 2.808973321 | H98: 3.337901281 | M98: 2038 | P98: 6.188599082 | Q98: 11.17221504 | R98: 13.54916543 | S98: 15.35638483
B99: 2039 | E99: 1.218852136 | F99: 2.269867104 | G99: 2.780883588 | H99: 3.334664528 | M99: 2039 | P99: 5.879169128 | Q99: 10.94877074 | R99: 13.41367378 | S99: 15.3033355
B117: Total Crashes | C117: Severity
B118: Year | C118: Fatal | D118: Serious Injury Suspected | E118: Grand Total
B119: 2010 | C119: 5 | D119: 20 | E119: 25
B120: 2011 | C120: 3 | D120: 24 | E120: 27
B121: 2012 | C121: 3 | D121: 17 | E121: 20
B122: 2013 | C122: 3 | D122: 17 | E122: 20
B123: 2014 | C123: 5 | D123: 13 | E123: 18
B124: 2015 | C124: 3 | D124: 13 | E124: 16
B125: 2016 | C125: 4 | D125: 13 | E125: 17
B126: 2017 | C126: 5 | D126: 22 | E126: 27
B127: 2018 | C127: 3 | D127: 14 | E127: 17
B128: 2019 | C128: 2 | D128: 20 | E128: 22
B129: Grand Total | C129: 36 | D129: 173 | E129: 209

Sheet Existing Crash Conditions
C1: Existing Crash Conditions
B8: Crash Trends Fatal and Injury crashes | L8: Occupant Trends Fatalities, Serious Injurie, and Minor Injuries
X9: Crash Type Statistics All Severities | AJ9: Crash Type by Road Contour All Severities
D10: ="Crash Statistics, "&'Emphasis Area Template'!$AK$248&"-"&'Emphasis Area Template'!$AL$248 -> Crash Statistics, 0-0 | N10: ="Occupant Statistics, "&'Emphasis Area Template'!$AK$248&"-"&'Emphasis Area Template'!$AL$248 -> Occupant Statistics, 0-0 | Z10: ="Crash Type Statistics, "&'Emphasis Area Template'!$AK$248&"-"&'Emphasis Area Template'!$AL$248 -> Crash Type Statistics, 0-0 | AL10: Crash Type Breakdown by Road Contour (curve/grade)
AJ42: Crashes by Road Contour and Severity All Severities
D43: ="Crash Statistics, "&'Emphasis Area Template'!$AK$248&"-"&'Emphasis Area Template'!$AL$248 -> Crash Statistics, 0-0 | N43: ="Occupant Statistics, "&'Emphasis Area Template'!$AK$248&"-"&'Emphasis Area Template'!$AL$248 -> Occupant Statistics, 0-0 | Z43: ="Crash Type Statistics, "&'Emphasis Area Template'!$AK$248&"-"&'Emphasis Area Template'!$AL$248 -> Crash Type Statistics, 0-0
D44: YEAR | E44: FATAL CRASHES | F44: INJURY CRASHES | G44: PROPERTY DAMAGE CRASHES | H44: TOTAL CRASHES | N44: YEAR | O44: FATALITIES | P44: SERIOUS INJURIES | Q44: MINOR INJURIES | R44: POSSIBLE INJURIES | S44: PDO/ NO INJURIES | T44: TOTAL PEOPLE INVOLVED | Z44: Total Crashes | AA44: Injury Level | AL44: Crash Type Breakdown by Road Contour (curve/grade)
D45: =B79 -> 2010 | E45: =IFERROR(GETPIVOTDATA("Document Number",$B$77,"YEAR ",D45,"Severity","Fatal"),"0") -> 5 | F45: =IFERROR(GETPIVOTDATA("Document Number",$B$77,"YEAR ",D45,"Severity","Injury Possible")+GETPIVOTDATA("Document Number",$B$77,"YEAR ",D45,"Severity","Minor Injury Suspected")+GETPIVOTDATA("Document Number",$B$77,"YEAR ",D45,"Severity","Serious Injury Suspected"),"0") -> 137 | G45: =IFERROR(GETPIVOTDATA("Document Number",$B$77,"YEAR ",D45,"Severity","PDO/No Injury"),"0") -> 377 | H45: =IFERROR(GETPIVOTDATA("Document Number",$B$77,"YEAR ",D45),"0") -> 519 | N45: =L78 -> 2010 | O45: =IFERROR(GETPIVOTDATA("Fatalities ",$L$77,"Year",N45),"0") -> 5 | P45: =IFERROR(GETPIVOTDATA("Serious Injuries ",$L$77,"Year",N45),"0") -> 23 | Q45: =IFERROR(GETPIVOTDATA("Minor Serious Injuries ",$L$77,"Year",N45),"0") -> 87 | R45: =IFERROR(GETPIVOTDATA("Possible Injuries ",$L$77,"Year",N45),"0") -> 82 | S45: =IFERROR(GETPIVOTDATA("No Injuries ",$L$77,"Year",N45),0) -> 849 | T45: =SUM(O45:S45) -> 1046 | Z45: Crash Type | AA45: PDO/No Injury | AB45: Injury Possible | AC45: Minor Injury Suspected | AD45: Serious Injury Suspected | AE45: Fatal | AF45: Grand Total | AL45: Total Crashes | AM45: Severity
D46: =D45+1 -> 2011 | E46: 3 | F46: 157 | G46: 336 | H46: 496 | N46: =N45+1 -> 2011 | O46: 3 | P46: 29 | Q46: =IFERROR(GETPIVOTDATA("Minor Serious Injuries ",$L$77,"Year",N46),"0") -> 105 | R46: 92 | S46: 839 | T46: =SUM(O46:S46) -> 1068 | Z46: Train | AA46: 1 | AB46: 0 | AC46: 0 | AD46: 0 | AE46: 0 | AF46: 1 | AL46: Road Contour | AM46: PDO/No Injury | AN46: Injury Possible | AO46: Minor Injury Suspected | AP46: Serious Injury Suspected | AQ46: Fatal | AR46: Grand Total
D47: =D46+1 -> 2012 | E47: 3 | F47: 153 | G47: 386 | H47: 542 | N47: =N46+1 -> 2012 | O47: 3 | P47: 20 | Q47: 101 | R47: 97 | S47: 828 | T47: 1049 | Z47: Other Non-Vehicle | AA47: 0 | AB47: 0 | AC47: 1 | AD47: 0 | AE47: 0 | AF47: 1 | AL47: Other / Unknown | AM47: 15 | AN47: 2 | AO47: 1 | AP47: 0 | AQ47: 0 | AR47: 18
D48: 2013 | E48: 3 | F48: 136 | G48: 398 | H48: 537 | N48: 2013 | O48: 3 | P48: 21 | Q48: 91 | R48: 80 | S48: 804 | T48: 999 | Z48: Pedalcycles | AA48: 1 | AB48: 2 | AC48: 1 | AD48: 1 | AE48: 0 | AF48: 5 | AL48: Curve Level | AM48: 236 | AN48: 66 | AO48: 47 | AP48: 15 | AQ48: 6 | AR48: 370
D49: 2014 | E49: 5 | F49: 113 | G49: 328 | H49: 446 | N49: 2014 | O49: 5 | P49: 15 | Q49: 41 | R49: 110 | S49: 691 | T49: 862 | Z49: Unknown | AA49: 13 | AB49: 1 | AC49: 1 | AD49: 0 | AE49: 0 | AF49: 15 | AL49: Curve Grade | AM49: 787 | AN49: 149 | AO49: 154 | AP49: 65 | AQ49: 15 | AR49: 1170
D50: 2015 | E50: 3 | F50: 115 | G50: 349 | H50: 467 | N50: 2015 | O50: 3 | P50: 13 | Q50: 39 | R50: 108 | S50: 728 | T50: 891 | Z50: Pedestrian | AA50: 2 | AB50: 3 | AC50: 6 | AD50: 5 | AE50: 1 | AF50: 17 | AL50: Straight Level | AM50: 1138 | AN50: 176 | AO50: 124 | AP50: 35 | AQ50: 4 | AR50: 1477
D51: 2016 | E51: 4 | F51: 115 | G51: 268 | H51: 387 | N51: 2016 | O51: 4 | P51: 15 | Q51: 50 | R51: 93 | S51: 566 | T51: 728 | Z51: Sideswipe - Meeting | AA51: 12 | AB51: 2 | AC51: 2 | AD51: 0 | AE51: 2 | AF51: 18 | AL51: Straight Grade | AM51: 1157 | AN51: 174 | AO51: 175 | AP51: 58 | AQ51: 11 | AR51: 1575
D52: 2017 | E52: 5 | F52: 122 | G52: 264 | H52: 391 | N52: 2017 | O52: 5 | P52: 30 | Q52: 52 | R52: 103 | S52: 597 | T52: 787 | Z52: Other Object | AA52: 32 | AB52: 3 | AC52: 0 | AD52: 1 | AE52: 0 | AF52: 36 | AL52: Grand Total | AM52: 3333 | AN52: 567 | AO52: 501 | AP52: 173 | AQ52: 36 | AR52: 4610
D53: 2018 | E53: 3 | F53: 90 | G53: 325 | H53: 418 | N53: 2018 | O53: 3 | P53: 14 | Q53: 51 | R53: 75 | S53: 725 | T53: 868 | Z53: Other Non-Collision | AA53: 56 | AB53: 6 | AC53: 6 | AD53: 3 | AE53: 0 | AF53: 71
D54: 2019 | E54: 2 | F54: 103 | G54: 302 | H54: 407 | N54: 2019 | O54: 2 | P54: 25 | Q54: 76 | R54: 41 | S54: 635 | T54: 779 | Z54: Right Turn | AA54: 68 | AB54: 8 | AC54: 8 | AD54: 0 | AE54: 0 | AF54: 84
D55: 10-YEAR TOTAL | E55: =SUM(E45:E54) -> 36 | F55: =SUM(F45:F54) -> 1241 | G55: =SUM(G45:G54) -> 3333 | H55: =SUM(H45:H54) -> 4610 | N55: 10-YEAR TOTAL | O55: =SUBTOTAL(109,O45:O54) -> 36 | P55: =SUBTOTAL(109,P45:P54) -> 205 | Q55: 693 | R55: 881 | S55: 7262 | T55: =SUM(O55:S55) -> 9077 | Z55: Parked Vehicle | AA55: 73 | AB55: 8 | AC55: 4 | AD55: 4 | AE55: 0 | AF55: 89
D56: ANNUAL AVERAGE | E56: =IFERROR(AVERAGE(E45:E54),"N/A") -> 3.6 | F56: =IFERROR(AVERAGE(F45:F54),"N/A") -> 124.1 | G56: 333.3 | H56: 461 | N56: ANNUAL AVERAGE | O56: =AVERAGE(O45:O54) -> 3.6 | P56: =AVERAGE(P45:P54) -> 20.5 | Q56: =IFERROR(AVERAGE(Q45:Q54),"-") -> 69.3 | R56: =AVERAGE(R45:R54) -> 88.1 | S56: 726.2 | T56: 907.7 | Z56: Head On | AA56: 68 | AB56: 17 | AC56: 21 | AD56: 16 | AE56: 7 | AF56: 129
D57: YEAR WITH THE HIGHEST VALUE FOR EACH RESPECTIVE COLUMN | N57: YEAR WITH THE HIGHEST VALUE FOR EACH RESPECTIVE COLUMN | Z57: Sideswipe - Passing | AA57: 148 | AB57: 11 | AC57: 12 | AD57: 6 | AE57: 1 | AF57: 178
Z58: Overturning | AA58: 87 | AB58: 30 | AC58: 58 | AD58: 20 | AE58: 4 | AF58: 199
Z59: Backing | AA59: 198 | AB59: 7 | AC59: 1 | AD59: 1 | AE59: 0 | AF59: 207
Z60: Left Turn | AA60: 199 | AB60: 19 | AC60: 21 | AD60: 9 | AE60: 0 | AF60: 248
Z61: Animal | AA61: 335 | AB61: 12 | AC61: 18 | AD61: 8 | AE61: 1 | AF61: 374
Z62: Angle | AA62: 297 | AB62: 64 | AC62: 53 | AD62: 18 | AE62: 5 | AF62: 437
Z63: Rear End | AA63: 481 | AB63: 124 | AC63: 73 | AD63: 10 | AE63: 0 | AF63: 688
Z64: Fixed Object | AA64: 1262 | AB64: 250 | AC64: 215 | AD64: 71 | AE64: 15 | AF64: 1813
Z65: Grand Total | AA65: 3333 | AB65: 567 | AC65: 501 | AD65: 173 | AE65: 36 | AF65: 4610
B77: Total Crashes | C77: Severity | L77: YEAR | M77: No Injuries | N77: Possible Injuries | O77: Minor Serious Injuries | P77: Serious Injuries | Q77: Fatalities | R77: TOTAL PEOPLE INVOLVED
B78: Year | C78: Fatal | D78: Serious Injury Suspected | E78: Minor Injury Suspected | F78: Injury Possible | G78: PDO/No Injury | H78: Grand Total | L78: 2010 | M78: 849 | N78: 82 | O78: 87 | P78: 23 | Q78: 5 | R78: 1046
B79: 2010 | C79: 5 | D79: 20 | E79: 65 | F79: 52 | G79: 377 | H79: 519 | L79: 2011 | M79: 839 | N79: 92 | O79: 105 | P79: 29 | Q79: 3 | R79: 1068
B80: 2011 | C80: 3 | D80: 24 | E80: 71 | F80: 62 | G80: 336 | H80: 496 | L80: 2012 | M80: 828 | N80: 97 | O80: 101 | P80: 20 | Q80: 3 | R80: 1049
B81: 2012 | C81: 3 | D81: 17 | E81: 71 | F81: 65 | G81: 386 | H81: 542 | L81: 2013 | M81: 804 | N81: 80 | O81: 91 | P81: 21 | Q81: 3 | R81: 999
B82: 2013 | C82: 3 | D82: 17 | E82: 67 | F82: 52 | G82: 398 | H82: 537 | L82: 2014 | M82: 691 | N82: 110 | O82: 41 | P82: 15 | Q82: 5 | R82: 862
B83: 2014 | C83: 5 | D83: 13 | E83: 33 | F83: 67 | G83: 328 | H83: 446 | L83: 2015 | M83: 728 | N83: 108 | O83: 39 | P83: 13 | Q83: 3 | R83: 891
B84: 2015 | C84: 3 | D84: 13 | E84: 29 | F84: 73 | G84: 349 | H84: 467 | L84: 2016 | M84: 566 | N84: 93 | O84: 50 | P84: 15 | Q84: 4 | R84: 728
B85: 2016 | C85: 4 | D85: 13 | E85: 43 | F85: 59 | G85: 268 | H85: 387 | L85: 2017 | M85: 597 | N85: 103 | O85: 52 | P85: 30 | Q85: 5 | R85: 787
B86: 2017 | C86: 5 | D86: 22 | E86: 36 | F86: 64 | G86: 264 | H86: 391 | L86: 2018 | M86: 725 | N86: 75 | O86: 51 | P86: 14 | Q86: 3 | R86: 868
B87: 2018 | C87: 3 | D87: 14 | E87: 31 | F87: 45 | G87: 325 | H87: 418 | L87: 2019 | M87: 635 | N87: 41 | O87: 76 | P87: 25 | Q87: 2 | R87: 779
B88: 2019 | C88: 2 | D88: 20 | E88: 55 | F88: 28 | G88: 302 | H88: 407 | L88: Grand Total | M88: 7262 | N88: 881 | O88: 693 | P88: 205 | Q88: 36 | R88: 9077
B89: Grand Total | C89: 36 | D89: 173 | E89: 501 | F89: 567 | G89: 3333 | H89: 4610

Sheet Crashes by Jurisdiction
C1: Crashes by Jurisdiction
B8: Crash Type Overview Crash severity | N8: Crash Type Overview Fatal and Serious Injury Crash Rate | Y8: Crash Type Overview Equivalent Property Damage Only (EDPO) Rates | AL8: Crash Types by Maintenance Authority Fatal and Serious Injury Crashes | AY8: Crashes by Object Struck Fatal and Serioius Injury Crashes | BL8: Crashes by Seveeity by Jurisdiction and Crash Type
AN9: ="Crash Types for Severe Crashes by Maintaining Authority, "&'Emphasis Area Template'!$AK$248&"-"&'Emphasis Area Template'!$AL$248 -> Crash Types for Severe Crashes by Maintaining Authority, 0-0 | BZ9: Crashes by Seveeity By Jurisdiction and Maintaining Authority
D10: Crashes Statistics by Maintaining Authority | P10: ="Areawide Crash Types, "&'Emphasis Area Template'!$AK$248&"-"&'Emphasis Area Template'!$AL$248 -> Areawide Crash Types, 0-0 | AA10: ="EDPO for Crash Types, "&'Emphasis Area Template'!$AK$248&"-"&'Emphasis Area Template'!$AL$248 -> EDPO for Crash Types, 0-0 | BA10: ="Fixed Object Related Fatal and Serious Injury Crashes by Object Struck, "&'Emphasis Area Template'!$AK$248&"-"&'Emphasis Area Template'!$AL$248 -> Fixed Object Related Fatal and Serious Injury Crashes by Object Struck, 0-0
BN11: Total Crashes | BO11: Crash Type | CB11: Crashes by Jurisdiction and Maintaining Authority
BN12: Jurisdiction | BO12: Fixed Object | BP12: Rear End | BQ12: Angle | BR12: Animal | BS12: Grand Total
BN13: CENTER TOWNSHIP | BO13: 165 | BP13: 71 | BQ13: 21 | BR13: 32 | BS13: 289 | CC13: Maintenance Authority
BN14: UNION TOWNSHIP | BO14: 108 | BP14: 13 | BQ14: 5 | BR14: 19 | BS14: 145 | CC14: County Highway Agency | CE14: State Highway Agency | CG14: City or Village Highway Agency | CI14: Total Fatal Injury | CJ14: Total Serious Injury
BN15: WASHINGTON TOWNSHIP | BO15: 83 | BP15: 10 | BQ15: 20 | BR15: 22 | BS15: 135 | CB15: Jurisdiction | CC15: Fatal Injury | CD15: Serious Injury | CE15: Fatal Injury | CF15: Serious Injury | CG15: Fatal Injury | CH15: Serious Injury
BN16: PERRY TOWNSHIP | BO16: 75 | BP16: 7 | BQ16: 9 | BR16: 14 | BS16: 105 | CB16: CENTER TOWNSHIP | CC16: 0 | CD16: 1 | CE16: 2 | CF16: 12 | CG16: 0 | CH16: 0 | CI16: 2 | CJ16: 13
BN17: LEE TOWNSHIP | BO17: 95 | BP17: 25 | BQ17: 7 | BR17: 15 | BS17: 142 | CB17: UNION TOWNSHIP | CC17: 0 | CD17: 3 | CE17: 1 | CF17: 9 | CG17: 0 | CH17: 0 | CI17: 1 | CJ17: 12
BN18: FOX TOWNSHIP | BO18: 61 | BP18: 7 | BQ18: 8 | BR18: 17 | BS18: 93 | CB18: WASHINGTON TOWNSHIP | CC18: 0 | CD18: 4 | CE18: 5 | CF18: 5 | CG18: 0 | CH18: 0 | CI18: 5 | CJ18: 9
BN19: BROWN TOWNSHIP | BO19: 238 | BP19: 120 | BQ19: 44 | BR19: 66 | BS19: 468 | CB19: PERRY TOWNSHIP | CC19: 0 | CD19: 3 | CE19: 0 | CF19: 3 | CG19: 0 | CH19: 0 | CI19: 0 | CJ19: 6
BN20: LOUDON TOWNSHIP | BO20: 76 | BP20: 10 | BQ20: 4 | BR20: 6 | BS20: 96 | CB20: LEE TOWNSHIP | CC20: 0 | CD20: 4 | CE20: 1 | CF20: 5 | CG20: 0 | CH20: 0 | CI20: 1 | CJ20: 9
BN21: HARRISON TOWNSHIP | BO21: 211 | BP21: 54 | BQ21: 41 | BR21: 47 | BS21: 353 | CB21: FOX TOWNSHIP | CC21: 0 | CD21: 0 | CE21: 0 | CF21: 2 | CG21: 0 | CH21: 0 | CI21: 0 | CJ21: 2
BN22: AUGUSTA TOWNSHIP | BO22: 130 | BP22: 21 | BQ22: 11 | BR22: 13 | BS22: 175 | CB22: BROWN TOWNSHIP | CC22: 2 | CD22: 10 | CE22: 7 | CF22: 6 | CG22: 0 | CH22: 1 | CI22: 9 | CJ22: 17
BN23: MONROE TOWNSHIP | BO23: 136 | BP23: 18 | BQ23: 20 | BR23: 47 | BS23: 221 | CB23: LOUDON TOWNSHIP | CC23: 0 | CD23: 1 | CE23: 1 | CF23: 2 | CG23: 0 | CH23: 0 | CI23: 1 | CJ23: 3
BN24: ORANGE TOWNSHIP | BO24: 63 | BP24: 10 | BQ24: 5 | BR24: 22 | BS24: 100 | CB24: HARRISON TOWNSHIP | CC24: 0 | CD24: 6 | CE24: 4 | CF24: 14 | CG24: 0 | CH24: 1 | CI24: 4 | CJ24: 21
BN25: SHERRODSVILLE | BO25: 16 | BP25: 7 | BQ25: 1 | BR25: 1 | BS25: 25 | CB25: AUGUSTA TOWNSHIP | CC25: 1 | CD25: 6 | CE25: 4 | CF25: 6 | CG25: 0 | CH25: 0 | CI25: 5 | CJ25: 12
BN26: EAST TOWNSHIP | BO26: 36 | BP26: 4 | BQ26: 6 | BR26: 9 | BS26: 55 | CB26: MONROE TOWNSHIP | CC26: 0 | CD26: 0 | CE26: 0 | CF26: 12 | CG26: 0 | CH26: 1 | CI26: 0 | CJ26: 13
BN27: CARROLLTON | BO27: 61 | BP27: 148 | BQ27: 115 | BR27: 4 | BS27: 328 | CB27: ORANGE TOWNSHIP | CC27: 0 | CD27: 1 | CE27: 1 | CF27: 2 | CG27: 0 | CH27: 0 | CI27: 1 | CJ27: 3
BN28: MALVERN | BO28: 26 | BP28: 64 | BQ28: 33 | BR28: 3 | BS28: 126 | CB28: SHERRODSVILLE | CC28: 0 | CD28: 0 | CE28: 0 | CF28: 0 | CG28: 0 | CH28: 1 | CI28: 0 | CJ28: 1
BN29: ROSE TOWNSHIP | BO29: 152 | BP29: 24 | BQ29: 21 | BR29: 31 | BS29: 228 | CB29: EAST TOWNSHIP | CC29: 0 | CD29: 1 | CE29: 0 | CF29: 0 | CG29: 0 | CH29: 0 | CI29: 0 | CJ29: 1
BN30: CARROLL COUNTY | BO30: 5 | BP30: 0 | BQ30: 0 | BR30: 1 | BS30: 6 | CB30: CARROLLTON | CC30: 0 | CD30: 0 | CE30: 0 | CF30: 0 | CG30: 1 | CH30: 15 | CI30: 1 | CJ30: 15
BN31: MAGNOLIA | BO31: 6 | BP31: 1 | BQ31: 2 | BR31: 2 | BS31: 11 | CB31: MALVERN | CC31: 0 | CD31: 0 | CE31: 0 | CF31: 0 | CG31: 0 | CH31: 6 | CI31: 0 | CJ31: 6
BN32: LEESVILLE | BO32: 3 | BP32: 0 | BQ32: 1 | BR32: 1 | BS32: 5 | CB32: ROSE TOWNSHIP | CC32: 1 | CD32: 3 | CE32: 2 | CF32: 10 | CG32: 0 | CH32: 0 | CI32: 3 | CJ32: 13
BN33: MINERVA | BO33: 56 | BP33: 65 | BQ33: 60 | BR33: 2 | BS33: 183 | CB33: CARROLL COUNTY | CC33: 0 | CD33: 0 | CE33: 0 | CF33: 0 | CG33: 0 | CH33: 0 | CI33: 0 | CJ33: 0
BN34: DELLROY | BO34: 6 | BP34: 9 | BQ34: 3 | BR34: 0 | BS34: 18 | CB34: MAGNOLIA | CC34: 0 | CD34: 0 | CE34: 0 | CF34: 0 | CG34: 2 | CH34: 0 | CI34: 2 | CJ34: 0
BN35: PARIS TOWNSHIP | BO35: 2 | BP35: 0 | BQ35: 0 | BR35: 0 | BS35: 2 | CB35: LEESVILLE | CC35: 0 | CD35: 0 | CE35: 0 | CF35: 0 | CG35: 0 | CH35: 0 | CI35: 0 | CJ35: 0
AA36: EPDO Rate is weighted injury severity crashes divided by the total number of crashes. | BN36: CADIZ | BO36: 1 | BP36: 0 | BQ36: 0 | BR36: 0 | BS36: 1 | CB36: MINERVA | CC36: 0 | CD36: 0 | CE36: 0 | CF36: 0 | CG36: 0 | CH36: 4 | CI36: 0 | CJ36: 4
BN37: EAST LIVERPOOL | BO37: 1 | BP37: 0 | BQ37: 0 | BR37: 0 | BS37: 1 | CB37: DELLROY | CC37: 0 | CD37: 0 | CE37: 0 | CF37: 0 | CG37: 0 | CH37: 0 | CI37: 0 | CJ37: 0
P38: FSI Rate is the proportion of fatal and serious injury crashes to total crashes. | BN38: SALEM | BO38: 1 | BP38: 0 | BQ38: 0 | BR38: 0 | BS38: 1 | CB38: CADIZ | CC38: 0 | CD38: 0 | CE38: 0 | CF38: 0 | CG38: 0 | CH38: 0 | CI38: 0 | CJ38: 0
BN39: Grand Total | BO39: 1813 | BP39: 688 | BQ39: 437 | BR39: 374 | BS39: 3312 | CB39: EAST LIVERPOOL | CC39: 0 | CD39: 0 | CE39: 0 | CF39: 0 | CG39: 0 | CH39: 0 | CI39: 0 | CJ39: 0
CB40: SALEM | CC40: 0 | CD40: 0 | CE40: 0 | CF40: 0 | CG40: 0 | CH40: 0 | CI40: 0 | CJ40: 0
P41: ="Areawide Crash Types, "&'Emphasis Area Template'!$AK$248&"-"&'Emphasis Area Template'!$AL$248 -> Areawide Crash Types, 0-0 | AA41: ="EDPO for Crash Types, "&'Emphasis Area Template'!$AK$248&"-"&'Emphasis Area Template'!$AL$248 -> EDPO for Crash Types, 0-0 | AN41: ="Crash Types for Severe Crashes by Maintaining Authority, "&'Emphasis Area Template'!$AK$248&"-"&'Emphasis Area Template'!$AL$248 -> Crash Types for Severe Crashes by Maintaining Authority, 0-0 | BA41: ="Fixed Object Related Fatal and Serious Injury Crashes by Object Struck, "&'Emphasis Area Template'!$AK$248&"-"&'Emphasis Area Template'!$AL$248 -> Fixed Object Related Fatal and Serious Injury Crashes by Object Struck, 0-0 | CB41: Grand Total | CC41: 4 | CD41: 43 | CE41: 28 | CF41: 88 | CG41: 3 | CH41: 29 | CI41: 35 | CJ41: 160
P42: Crash Type | Q42: Total Crashes | R42: FSI RATE | AA42: Crash Type | AB42: FATAL | AC42: SERIOUS INJURY | AD42: MINOR INJURY CRASHES | AE42: POSSIBLE INJURY CRASHES | AF42: PROPERTY DAMAGE ONLY CRASHES | AG42: TOTAL CRASHES | AH42: EPDO | AN42: Severity | AO42: (Multiple Items)
P43: Other Non-Vehicle | Q43: 1 | R43: 0 | AA43: =CUBEMEMBER("ThisWorkbookDataModel","[Range 30].[Crash Type].&[Backing]") -> Backing | AB43: =IFERROR(GETPIVOTDATA("Document Number",$Z$90,"Severity","Fatal","Crash Type",AA43),"0") -> 0 | AC43: =IFERROR(GETPIVOTDATA("Document Number",$Z$90,"Severity","Serious Injury Suspected","Crash Type",AA43),"0") -> 1 | AD43: =IFERROR(GETPIVOTDATA("Document Number",$Z$90,"Severity","Minor Injury Suspected","Crash Type",AA43),"0") -> 1 | AE43: =IFERROR(GETPIVOTDATA("Document Number",$Z$90,"Severity","Injury Possible","Crash Type",AA43),"0") -> 7 | AF43: =IFERROR(GETPIVOTDATA("Document Number",$Z$90,"Severity","PDO/No Injury","Crash Type",AA43),"0") -> 198 | AG43: =IFERROR(GETPIVOTDATA("Document Number",$Z$90,"Crash Type",AA43),"0") -> 207 | AH43: =IFERROR(((41.18*(AB43+AC43))+(6.55*AD43)+(4.44*AE43)+AF43)/AG43,"0") -> 1.337246377 | AN43: Crash type for Severe crashes by Maintaining Authority | BA43: Count of Document Number | BB43: Column Labels
P44: Train | Q44: 1 | R44: 0 | AA44: =CUBEMEMBER("ThisWorkbookDataModel","[Range 30].[Crash Type].&[Unknown]") -> Unknown | AB44: =IFERROR(GETPIVOTDATA("Document Number",$Z$90,"Severity","Fatal","Crash Type",AA44),"0") -> 0 | AC44: =IFERROR(GETPIVOTDATA("Document Number",$Z$90,"Severity","Serious Injury Suspected","Crash Type",AA44),"0") -> 0 | AD44: 1 | AE44: 1 | AF44: 13 | AG44: =IFERROR(GETPIVOTDATA("Document Number",$Z$90,"Crash Type",AA44),"0") -> 15 | AH44: =IFERROR(((41.18*(AB44+AC44))+(6.55*AD44)+(4.44*AE44)+AF44)/AG44,"0") -> 1.599333333 | AN44: Total Crashes | AO44: Maintenance Authority | BA44: OBJECT STRUCK | BB44: Serious Injury | BC44: Fatal | BD44: Grand Total
D45: Crashes by Severity and Maintaining Authority | P45: Unknown | Q45: 15 | R45: 0 | AA45: =CUBEMEMBER("ThisWorkbookDataModel","[Range 30].[Crash Type].&[Right Turn]") -> Right Turn | AB45: =IFERROR(GETPIVOTDATA("Document Number",$Z$90,"Severity","Fatal","Crash Type",AA45),"0") -> 0 | AC45: =IFERROR(GETPIVOTDATA("Document Number",$Z$90,"Severity","Serious Injury Suspected","Crash Type",AA45),"0") -> 0 | AD45: 8 | AE45: 8 | AF45: 68 | AG45: =IFERROR(GETPIVOTDATA("Document Number",$Z$90,"Crash Type",AA45),"0") -> 84 | AH45: 1.856190476 | AN45: Crash type | AO45: State Highway Agency | AP45: County Highway Agency | AQ45: City or Village Highway Agency | AR45: Township Highway Agency | AS45: Grand Total | BA45: Other / Unknown | BB45: 1 | BC45: 0 | BD45: 1
D46: Total Crashes | E46: Severity | P46: Right Turn | Q46: 84 | R46: 0 | AA46: ALL CRASHES | AB46: =IFERROR(GETPIVOTDATA("Document Number",$Z$90,"Severity","Fatal"),0) -> 36 | AC46: =IFERROR(GETPIVOTDATA("Document Number",$Z$90,"Severity","Serious Injury Suspected"),0) -> 173 | AD46: 0 | AE46: 0 | AF46: 0 | AG46: =GETPIVOTDATA("Document Number",$Z$90) -> 4610 | AH46: 1.86694577 | AN46: Angle | AO46: 14 | AP46: 4 | AQ46: 5 | AR46: 0 | AS46: 23 | BA46: Guardrail End | BB46: 2 | BC46: 0 | BD46: 2
D47: Maintenance Authority | E47: Fatal | F47: Serious Injury | G47: Minor Injury | H47: Possible Injury | I47: PDO/No Injury | J47: Grand Total | P47: Backing | Q47: 207 | R47: 0.004830917874 | AA47: =CUBEMEMBER("ThisWorkbookDataModel","[Range 30].[Crash Type].&[Animal]") -> Animal | AB47: =IFERROR(GETPIVOTDATA("Document Number",$Z$90,"Severity","Fatal","Crash Type",AA47),"0") -> 1 | AC47: =IFERROR(GETPIVOTDATA("Document Number",$Z$90,"Severity","Serious Injury Suspected","Crash Type",AA47),"0") -> 8 | AD47: 18 | AE47: 12 | AF47: 335 | AG47: =IFERROR(GETPIVOTDATA("Document Number",$Z$90,"Crash Type",AA47),"0") -> 374 | AH47: 2.344385027 | AN47: Animal | AO47: 5 | AP47: 4 | AQ47: 0 | AR47: 0 | AS47: 9 | BA47: Other Post, Pole Or Support | BB47: 1 | BC47: 1 | BD47: 2
D48: Township Highway Agency | E48: 1 | F48: 13 | G48: 35 | H48: 34 | I48: 292 | J48: 375 | P48: Rear End | Q48: 688 | R48: 0.01453488372 | AA48: =CUBEMEMBER("ThisWorkbookDataModel","[Range 30].[Crash Type].&[Other Object]") -> Other Object | AB48: 0 | AC48: 1 | AD48: 0 | AE48: 3 | AF48: 32 | AG48: 36 | AH48: 2.402777778 | AN48: Backing | AO48: 0 | AP48: 0 | AQ48: 1 | AR48: 0 | AS48: 1 | BA48: Wall | BB48: 3 | BC48: 0 | BD48: 3
D49: County Highway Agency | E49: 4 | F49: 43 | G49: 111 | H49: 121 | I49: 678 | J49: 957 | P49: Animal | Q49: 374 | R49: 0.02406417112 | AA49: =CUBEMEMBER("ThisWorkbookDataModel","[Range 30].[Crash Type].&[Rear End]") -> Rear End | AB49: 0 | AC49: 10 | AD49: 73 | AE49: 124 | AF49: 481 | AG49: 688 | AH49: 2.792892442 | AN49: Fixed Object | AO49: 48 | AP49: 22 | AQ49: 6 | AR49: 10 | AS49: 86 | BA49: Other Fixed Object | BB49: 1 | BC49: 2 | BD49: 3
D50: City or Village Highway Agency | E50: 3 | F50: 29 | G50: 91 | H50: 134 | I50: 943 | J50: 1200 | P50: Other Object | Q50: 36 | R50: 0.02777777778 | AA50: =CUBEMEMBER("ThisWorkbookDataModel","[Range 30].[Crash Type].&[Sideswipe - Passing]") -> Sideswipe - Passing | AB50: 1 | AC50: 6 | AD50: 12 | AE50: 11 | AF50: 148 | AG50: 178 | AH50: 3.166853933 | AN50: Head On | AO50: 12 | AP50: 7 | AQ50: 4 | AR50: 0 | AS50: 23 | BA50: Culvert | BB50: 3 | BC50: 1 | BD50: 4
D51: State Highway Agency | E51: 28 | F51: 88 | G51: 264 | H51: 278 | I51: 1420 | J51: 2078 | P51: Left Turn | Q51: 248 | R51: 0.03629032258 | AA51: =CUBEMEMBER("ThisWorkbookDataModel","[Range 30].[Crash Type].&[Left Turn]") -> Left Turn | AB51: 0 | AC51: 9 | AD51: 21 | AE51: 19 | AF51: 199 | AG51: 248 | AH51: 3.191653226 | AN51: Left Turn | AO51: 7 | AP51: 1 | AQ51: 1 | AR51: 0 | AS51: 9 | BA51: Fence | BB51: 5 | BC51: 0 | BD51: 5
D52: Grand Total | E52: 36 | F52: 173 | G52: 501 | H52: 567 | I52: 3333 | J52: 4610 | P52: Sideswipe - Passing | Q52: 178 | R52: 0.0393258427 | AA52: =CUBEMEMBER("ThisWorkbookDataModel","[Range 30].[Crash Type].&[Parked Vehicle]") -> Parked Vehicle | AB52: 0 | AC52: 4 | AD52: 4 | AE52: 8 | AF52: 73 | AG52: 89 | AH52: 3.364494382 | AN52: Other Non-Collision | AO52: 2 | AP52: 1 | AQ52: 0 | AR52: 0 | AS52: 3 | BA52: Utility Pole | BB52: 6 | BC52: 3 | BD52: 9
P53: Other Non-Collision | Q53: 71 | R53: 0.04225352113 | AA53: =CUBEMEMBER("ThisWorkbookDataModel","[Range 30].[Crash Type].&[Other Non-Collision]") -> Other Non-Collision | AB53: 0 | AC53: 3 | AD53: 6 | AE53: 6 | AF53: 56 | AG53: 71 | AH53: 3.457464789 | AN53: Other Object | AO53: 0 | AP53: 1 | AQ53: 0 | AR53: 0 | AS53: 1 | BA53: Guardrail Face | BB53: 9 | BC53: 1 | BD53: 10
P54: Parked Vehicle | Q54: 89 | R54: 0.04494382022 | AA54: =CUBEMEMBER("ThisWorkbookDataModel","[Range 30].[Crash Type].&[Fixed Object]") -> Fixed Object | AB54: 15 | AC54: 71 | AD54: 215 | AE54: 250 | AF54: 1262 | AG54: 1813 | AH54: 4.038461114 | AN54: Overturning | AO54: 14 | AP54: 5 | AQ54: 2 | AR54: 3 | AS54: 24 | BA54: Ditch | BB54: 12 | BC54: 3 | BD54: 15
P55: Fixed Object | Q55: 1813 | R55: 0.04743519029 | AA55: =CUBEMEMBER("ThisWorkbookDataModel","[Range 30].[Crash Type].&[Angle]") -> Angle | AB55: 5 | AC55: 18 | AD55: 53 | AE55: 64 | AF55: 297 | AG55: 437 | AH55: 4.291647597 | AN55: Parked Vehicle | AO55: 0 | AP55: 1 | AQ55: 2 | AR55: 1 | AS55: 4 | BA55: Embankment | BB55: 19 | BC55: 6 | BD55: 25
P56: Angle | Q56: 437 | R56: 0.05263157895 | AA56: =CUBEMEMBER("ThisWorkbookDataModel","[Range 30].[Crash Type].&[Sideswipe - Meeting]") -> Sideswipe - Meeting | AB56: 2 | AC56: 0 | AD56: 2 | AE56: 2 | AF56: 12 | AG56: 18 | AH56: 6.463333333 | AN56: Pedalcycles | AO56: 1 | AP56: 0 | AQ56: 0 | AR56: 0 | AS56: 1 | BA56: Tree | BB56: 28 | BC56: 5 | BD56: 33
P57: Sideswipe - Meeting | Q57: 18 | R57: 0.1111111111 | AA57: =CUBEMEMBER("ThisWorkbookDataModel","[Range 30].[Crash Type].&[Overturning]") -> Overturning | AB57: 4 | AC57: 20 | AD57: 58 | AE57: 30 | AF57: 87 | AG57: 199 | AH57: 7.98201005 | AN57: Pedestrian | AO57: 1 | AP57: 0 | AQ57: 5 | AR57: 0 | AS57: 6 | BA57: Grand Total | BB57: 90 | BC57: 22 | BD57: 112
P58: Overturning | Q58: 199 | R58: 0.1206030151 | AA58: =CUBEMEMBER("ThisWorkbookDataModel","[Range 30].[Crash Type].&[Head On]") -> Head On | AB58: 7 | AC58: 16 | AD58: 21 | AE58: 17 | AF58: 68 | AG58: 129 | AH58: 9.520697674 | AN58: Rear End | AO58: 5 | AP58: 0 | AQ58: 5 | AR58: 0 | AS58: 10
P59: Head On | Q59: 129 | R59: 0.1782945736 | AA59: =CUBEMEMBER("ThisWorkbookDataModel","[Range 30].[Crash Type].&[Pedalcycles]") -> Pedalcycles | AB59: 0 | AC59: 1 | AD59: 1 | AE59: 2 | AF59: 1 | AG59: 5 | AH59: 11.522 | AN59: Sideswipe - Meeting | AO59: 2 | AP59: 0 | AQ59: 0 | AR59: 0 | AS59: 2
P60: Pedalcycles | Q60: 5 | R60: 0.2 | AA60: =CUBEMEMBER("ThisWorkbookDataModel","[Range 30].[Crash Type].&[Pedestrian]") -> Pedestrian | AB60: 1 | AC60: 5 | AD60: 6 | AE60: 3 | AF60: 2 | AG60: 17 | AH60: 17.74705882 | AN60: Sideswipe - Passing | AO60: 5 | AP60: 1 | AQ60: 1 | AR60: 0 | AS60: 7
P61: Pedestrian | Q61: 17 | R61: 0.3529411765 | AN61: Grand Total | AO61: 116 | AP61: 47 | AQ61: 32 | AR61: 14 | AS61: 209
P62: TOTAL | Q62: 4610 | R62: 0.0453362256
O88: Pass through table | Z88: Pivot table
O89: Row Labels | P89: FSI RATE | Z89: EPDO fro crash type
O90: =P43 -> Other Non-Vehicle | P90: =GETPIVOTDATA("FSI RATE ",$P$42,"Crash Type",P43) -> 0 | Z90: Count of Document Number | AA90: Severity
O91: Train | P91: 0 | Z91: Crash Type | AA91: Fatal | AB91: Serious Injury Suspected | AC91: Minor Injury Suspected | AD91: Injury Possible | AE91: PDO/No Injury | AF91: Grand Total
O92: Unknown | P92: 0 | Z92: Angle | AA92: 5 | AB92: 18 | AC92: 53 | AD92: 64 | AE92: 297 | AF92: 437
O93: Right Turn | P93: 0 | Z93: Animal | AA93: 1 | AB93: 8 | AC93: 18 | AD93: 12 | AE93: 335 | AF93: 374
O94: Backing | P94: 0.004830917874 | Z94: Backing | AA94: 0 | AB94: 1 | AC94: 1 | AD94: 7 | AE94: 198 | AF94: 207
O95: Rear End | P95: 0.01453488372 | Z95: Fixed Object | AA95: 15 | AB95: 71 | AC95: 215 | AD95: 250 | AE95: 1262 | AF95: 1813
O96: Animal | P96: 0.02406417112 | Z96: Head On | AA96: 7 | AB96: 16 | AC96: 21 | AD96: 17 | AE96: 68 | AF96: 129
O97: Other Object | P97: 0.02777777778 | Z97: Left Turn | AA97: 0 | AB97: 9 | AC97: 21 | AD97: 19 | AE97: 199 | AF97: 248
O98: Left Turn | P98: 0.03629032258 | Z98: Other Non-Collision | AA98: 0 | AB98: 3 | AC98: 6 | AD98: 6 | AE98: 56 | AF98: 71
O99: Sideswipe - Passing | P99: 0.0393258427 | Z99: Other Non-Vehicle | AA99: 0 | AB99: 0 | AC99: 1 | AD99: 0 | AE99: 0 | AF99: 1
O100: Other Non-Collision | P100: 0.04225352113 | Z100: Other Object | AA100: 0 | AB100: 1 | AC100: 0 | AD100: 3 | AE100: 32 | AF100: 36
O101: Parked Vehicle | P101: 0.04494382022 | Z101: Overturning | AA101: 4 | AB101: 20 | AC101: 58 | AD101: 30 | AE101: 87 | AF101: 199
O102: Fixed Object | P102: 0.04743519029 | Z102: Parked Vehicle | AA102: 0 | AB102: 4 | AC102: 4 | AD102: 8 | AE102: 73 | AF102: 89
O103: Angle | P103: 0.05263157895 | Z103: Pedalcycles | AA103: 0 | AB103: 1 | AC103: 1 | AD103: 2 | AE103: 1 | AF103: 5
O104: Sideswipe - Meeting | P104: 0.1111111111 | Z104: Pedestrian | AA104: 1 | AB104: 5 | AC104: 6 | AD104: 3 | AE104: 2 | AF104: 17
O105: Overturning | P105: 0.1206030151 | Z105: Rear End | AA105: 0 | AB105: 10 | AC105: 73 | AD105: 124 | AE105: 481 | AF105: 688
O106: Head On | P106: 0.1782945736 | Z106: Right Turn | AA106: 0 | AB106: 0 | AC106: 8 | AD106: 8 | AE106: 68 | AF106: 84
Z107: Sideswipe - Meeting | AA107: 2 | AB107: 0 | AC107: 2 | AD107: 2 | AE107: 12 | AF107: 18
Z108: Sideswipe - Passing | AA108: 1 | AB108: 6 | AC108: 12 | AD108: 11 | AE108: 148 | AF108: 178
Z109: Train | AA109: 0 | AB109: 0 | AC109: 0 | AD109: 0 | AE109: 1 | AF109: 1
Z110: Unknown | AA110: 0 | AB110: 0 | AC110: 1 | AD110: 1 | AE110: 13 | AF110: 15
Z111: Grand Total | AA111: 36 | AB111: 173 | AC111: 501 | AD111: 567 | AE111: 3333 | AF111: 4610

Sheet Focus Crash Type (hidden)
C1: =_xlfn.CONCAT(MID(CELL("filename",A1),FIND("]",CELL("filename",A1))+1,255), " Detail") -> Focus Crash Type Detail
B7: =_xlfn.CONCAT(MID(CELL("filename",A1),FIND("]",CELL("filename",A1))+1,255), " Detail - Crashes by Year and Severity") -> Focus Crash Type Detail - Crashes by Year and Severity | N7: =_xlfn.CONCAT(MID(CELL("filename",A30),FIND("]",CELL("filename",A30))+1,255), " Detail - Crashes by Maintenance Authority and Severity") -> Focus Crash Type Detail - Crashes by Maintenance Authority and Severity | AC7: =_xlfn.CONCAT(MID(CELL("filename",A103),FIND("]",CELL("filename",A103))+1,255), " Detail - Crashes by Road Contour and Severity") -> Focus Crash Type Detail - Crashes by Road Contour and Severity | AR7: =_xlfn.CONCAT(MID(CELL("filename",A134),FIND("]",CELL("filename",A134))+1,255), " Detail - Crashes by Posted Speed Limit and Severity") -> Focus Crash Type Detail - Crashes by Posted Speed Limit and Severity | BG7: =_xlfn.CONCAT(MID(CELL("filename",A237),FIND("]",CELL("filename",A237))+1,255), " Detail - Crashes by Location and Severity") -> Focus Crash Type Detail - Crashes by Location and Severity | BV7: =_xlfn.CONCAT(MID(CELL("filename",A272),FIND("]",CELL("filename",A272))+1,255), " Detail - Crashes by Time of Day and Severity") -> Focus Crash Type Detail - Crashes by Time of Day and Severity | CK7: =_xlfn.CONCAT(MID(CELL("filename",A309),FIND("]",CELL("filename",A309))+1,255), " Detail - Crashes by Jurisdiction and Severity") -> Focus Crash Type Detail - Crashes by Jurisdiction and Severity
CM8: Crash by Severity and Jurisdiction
D9: Crash by Severity | P9: Crash by Severity and Maintenance Authority | AE9: Crash Type Breakdown by Road Contour (curve/grade) | AT9: Crash Type Breakdown by Speed Limit | BI9: Crash Type Breakdown by Crash Location (Intersection vs Segment) | BW9: ="Fatal and Serious Injury Injury Crashes Time of Day Chart, "&'Emphasis Area Template'!$AK$248&"-"&'Emphasis Area Template'!$AL$248 -> Fatal and Serious Injury Injury Crashes Time of Day Chart, 0-0
D36: Crash by Severity | P36: Crash by Severity and Maintenance Authority | AE36: Crash Type Breakdown by Road Contour (curve/grade) | AT36: Crash Type Breakdown by Speed Limit | BI36: Crash Type Breakdown by Crash Location (Intersection vs Segment) | BX36: ="Fatal and Severe Injury Crashes Time of Day Chart, "&'Emphasis Area Template'!$AK$248&"-"&'Emphasis Area Template'!$AL$248 -> Fatal and Severe Injury Crashes Time of Day Chart, 0-0 | CM36: Crash by Severity and Jurisdiction
D37: Total Crashes | E37: Severity | P37: Total Crashes | Q37: Severity | AE37: Total Crashes | AF37: Severity | AT37: Total Crashes | AU37: Severity | BI37: Total Crashes | BJ37: Severity | BX37: Severity | BY37: (Multiple Items) | CM37: Total Crashes | CN37: Severity
D38: Year | E38: Fatal | F38: Serious Injury Suspected | G38: Minor Injury Suspected | H38: Injury Possible | I38: PDO/No Injury | J38: Grand Total | P38: Maintenance Authority | Q38: PDO/No Injury | R38: Injury Possible | S38: Minor Injury Suspected | T38: Serious Injury Suspected | U38: Fatal | V38: Grand Total | AE38: Road Contour | AF38: PDO/No Injury | AG38: Injury Possible | AH38: Minor Injury Suspected | AI38: Serious Injury Suspected | AJ38: Fatal | AK38: Grand Total | AT38: Speed Limit | AU38: PDO/No Injury | AV38: Injury Possible | AW38: Minor Injury Suspected | AX38: Serious Injury Suspected | AY38: Fatal | AZ38: Grand Total | BI38: Crash Location | BJ38: PDO/No Injury | BK38: Injury Possible | BL38: Minor Injury Suspected | BM38: Serious Injury Suspected | BN38: Fatal | BO38: Grand Total | CM38: Jurisdiction | CN38: PDO/No Injury | CO38: Injury Possible | CP38: Minor Injury Suspected | CQ38: Serious Injury Suspected | CR38: Fatal | CS38: Grand Total
D39: 2010 | E39: 5 | F39: 20 | G39: 65 | H39: 52 | I39: 377 | J39: 519 | P39: County Highway Agency | Q39: 678 | R39: 121 | S39: 111 | T39: 43 | U39: 4 | V39: 957 | AE39: Curve Grade | AF39: 787 | AG39: 149 | AH39: 154 | AI39: 65 | AJ39: 15 | AK39: 1170 | AT39: 0 | AU39: 206 | AV39: 31 | AW39: 21 | AX39: 5 | AY39: 2 | AZ39: 265 | BI39: Crossover | BJ39: 2 | BK39: 1 | BL39: 0 | BM39: 0 | BN39: 0 | BO39: 3 | BX39: Hour | BY39: Total Crashes | BZ39: Time of Day | CA39: Total Crashes | CM39: CENTER TOWNSHIP | CN39: 255 | CO39: 57 | CP39: 32 | CQ39: 15 | CR39: 2 | CS39: 361
D40: 2011 | E40: 3 | F40: 24 | G40: 71 | H40: 62 | I40: 336 | J40: 496 | P40: State Highway Agency | Q40: 1420 | R40: 278 | S40: 264 | T40: 88 | U40: 28 | V40: 2078 | AE40: Curve Level | AF40: 236 | AG40: 66 | AH40: 47 | AI40: 15 | AJ40: 6 | AK40: 370 | AT40: 5 | AU40: 4 | AV40: 1 | AW40: 0 | AX40: 0 | AY40: 0 | AZ40: 5 | BI40: Driveway/Alley Access | BJ40: 142 | BK40: 17 | BL40: 8 | BM40: 7 | BN40: 1 | BO40: 175 | BX40: Fixed Object | BY40: 551 | CM40: UNION TOWNSHIP | CN40: 144 | CO40: 15 | CP40: 19 | CQ40: 12 | CR40: 1 | CS40: 191
D41: 2012 | E41: 3 | F41: 17 | G41: 71 | H41: 65 | I41: 386 | J41: 542 | P41: City or Village Highway Agency | Q41: 943 | R41: 134 | S41: 91 | T41: 29 | U41: 3 | V41: 1200 | AE41: Other / Unknown | AF41: 15 | AG41: 2 | AH41: 1 | AI41: 0 | AJ41: 0 | AK41: 18 | AT41: 10 | AU41: 3 | AV41: 0 | AW41: 0 | AX41: 0 | AY41: 0 | AZ41: 3 | BI41: Four-Way Intersection | BJ41: 348 | BK41: 80 | BL41: 45 | BM41: 11 | BN41: 4 | BO41: 488 | BX41: 0 | BY41: 16 | BZ41: =IFERROR(IF(BX41=0,"12 am","12 am"),"12 am") -> 12 am | CA41: =IFERROR(GETPIVOTDATA("Document Number",$BX$39,"Crash Type",$BX$40,"Hour",0),"0") -> 16 | CM41: WASHINGTON TOWNSHIP | CN41: 111 | CO41: 20 | CP41: 24 | CQ41: 10 | CR41: 5 | CS41: 170
D42: 2013 | E42: 3 | F42: 17 | G42: 67 | H42: 52 | I42: 398 | J42: 537 | P42: Township Highway Agency | Q42: 292 | R42: 34 | S42: 35 | T42: 13 | U42: 1 | V42: 375 | AE42: Straight Grade | AF42: 1157 | AG42: 174 | AH42: 175 | AI42: 58 | AJ42: 11 | AK42: 1575 | AT42: 15 | AU42: 17 | AV42: 1 | AW42: 0 | AX42: 0 | AY42: 0 | AZ42: 18 | BI42: Not An Intersection | BJ42: 2284 | BK42: 361 | BL42: 397 | BM42: 131 | BN42: 27 | BO42: 3200 | BX42: 1 | BY42: 16 | BZ42: =IFERROR(IF(BX42=0,"1 am","1 am"),"1 am") -> 1 am | CA42: =IFERROR(GETPIVOTDATA("Document Number",$BX$39,"Crash Type",$BX$40,"Hour",1),"0") -> 16 | CM42: PERRY TOWNSHIP | CN42: 116 | CO42: 12 | CP42: 16 | CQ42: 6 | CR42: 0 | CS42: 150
D43: 2014 | E43: 5 | F43: 13 | G43: 33 | H43: 67 | I43: 328 | J43: 446 | P43: Grand Total | Q43: 3333 | R43: 567 | S43: 501 | T43: 173 | U43: 36 | V43: 4610 | AE43: Straight Level | AF43: 1138 | AG43: 176 | AH43: 124 | AI43: 35 | AJ43: 4 | AK43: 1477 | AT43: 20 | AU43: 10 | AV43: 1 | AW43: 1 | AX43: 0 | AY43: 0 | AZ43: 12 | BI43: Railroad Grade Crossing | BJ43: 7 | BK43: 1 | BL43: 1 | BM43: 0 | BN43: 0 | BO43: 9 | BX43: 2 | BY43: 24 | BZ43: =IFERROR(IF(BX43=0,"2 am","2 am"),"2 am") -> 2 am | CA43: =IFERROR(GETPIVOTDATA("Document Number",$BX$39,"Crash Type",$BX$40,"Hour",2),"0") -> 24 | CM43: LEE TOWNSHIP | CN43: 125 | CO43: 28 | CP43: 38 | CQ43: 9 | CR43: 1 | CS43: 201
D44: 2015 | E44: 3 | F44: 13 | G44: 29 | H44: 73 | I44: 349 | J44: 467 | AE44: Grand Total | AF44: 3333 | AG44: 567 | AH44: 501 | AI44: 173 | AJ44: 36 | AK44: 4610 | AT44: 25 | AU44: 428 | AV44: 43 | AW44: 26 | AX44: 7 | AY44: 2 | AZ44: 506 | BI44: T-Intersection | BJ44: 452 | BK44: 94 | BL44: 42 | BM44: 21 | BN44: 4 | BO44: 613 | BX44: 3 | BY44: 16 | BZ44: =IFERROR(IF(BX44=0,"3 am","3 am"),"3 am") -> 3 am | CA44: =IFERROR(GETPIVOTDATA("Document Number",$BX$39,"Crash Type",$BX$40,"Hour",3),"0") -> 16 | CM44: FOX TOWNSHIP | CN44: 100 | CO44: 11 | CP44: 13 | CQ44: 3 | CR44: 0 | CS44: 127
D45: 2016 | E45: 4 | F45: 13 | G45: 43 | H45: 59 | I45: 268 | J45: 387 | AT45: 35 | AU45: 390 | AV45: 79 | AW45: 47 | AX45: 16 | AY45: 0 | AZ45: 532 | BI45: Unknown | BJ45: 13 | BK45: 2 | BL45: 0 | BM45: 0 | BN45: 0 | BO45: 15 | BX45: 4 | BY45: 13 | BZ45: =IFERROR(IF(BX45=0,"4 am","4 am"),"4 am") -> 4 am | CA45: =IFERROR(GETPIVOTDATA("Document Number",$BX$39,"Crash Type",$BX$40,"Hour",4),"0") -> 13 | CM45: BROWN TOWNSHIP | CN45: 444 | CO45: 95 | CP45: 73 | CQ45: 20 | CR45: 9 | CS45: 641
D46: 2017 | E46: 5 | F46: 22 | G46: 36 | H46: 64 | I46: 264 | J46: 391 | AT46: 40 | AU46: 20 | AV46: 4 | AW46: 3 | AX46: 2 | AY46: 0 | AZ46: 29 | BI46: Y-Intersection | BJ46: 70 | BK46: 11 | BL46: 7 | BM46: 3 | BN46: 0 | BO46: 91 | BX46: 5 | BY46: 16 | BZ46: =IFERROR(IF(BX46=0,"5 am","5 am"),"5 am") -> 5 am | CA46: =IFERROR(GETPIVOTDATA("Document Number",$BX$39,"Crash Type",$BX$40,"Hour",5),"0") -> 16 | CM46: LOUDON TOWNSHIP | CN46: 106 | CO46: 10 | CP46: 21 | CQ46: 4 | CR46: 1 | CS46: 142
D47: 2018 | E47: 3 | F47: 14 | G47: 31 | H47: 45 | I47: 325 | J47: 418 | AT47: 45 | AU47: 369 | AV47: 62 | AW47: 43 | AX47: 19 | AY47: 1 | AZ47: 494 | BI47: Off Ramp | BJ47: 1 | BK47: 0 | BL47: 0 | BM47: 0 | BN47: 0 | BO47: 1 | BX47: 6 | BY47: 29 | BZ47: =IFERROR(IF(BX47=0,"6 am","6 am"),"6 am") -> 6 am | CA47: =IFERROR(GETPIVOTDATA("Document Number",$BX$39,"Crash Type",$BX$40,"Hour",6),"0") -> 29 | CM47: HARRISON TOWNSHIP | CN47: 315 | CO47: 69 | CP47: 65 | CQ47: 24 | CR47: 4 | CS47: 477
D48: 2019 | E48: 2 | F48: 20 | G48: 55 | H48: 28 | I48: 302 | J48: 407 | AT48: 50 | AU48: 52 | AV48: 15 | AW48: 11 | AX48: 5 | AY48: 1 | AZ48: 84 | BI48: Traffic Circle/Roundabout | BJ48: 13 | BK48: 0 | BL48: 1 | BM48: 0 | BN48: 0 | BO48: 14 | BX48: 7 | BY48: 25 | BZ48: =IFERROR(IF(BX48=0,"7 am","7 am"),"7 am") -> 7 am | CA48: =IFERROR(GETPIVOTDATA("Document Number",$BX$39,"Crash Type",$BX$40,"Hour",7),"0") -> 25 | CM48: AUGUSTA TOWNSHIP | CN48: 163 | CO48: 28 | CP48: 19 | CQ48: 12 | CR48: 6 | CS48: 228
D49: Grand Total | E49: 36 | F49: 173 | G49: 501 | H49: 567 | I49: 3333 | J49: 4610 | AT49: 55 | AU49: 1831 | AV49: 330 | AW49: 349 | AX49: 119 | AY49: 30 | AZ49: 2659 | BI49: On Ramp | BJ49: 1 | BK49: 0 | BL49: 0 | BM49: 0 | BN49: 0 | BO49: 1 | BX49: 8 | BY49: 22 | BZ49: =IFERROR(IF(BX49=0,"8 am","8 am"),"8 am") -> 8 am | CA49: =GETPIVOTDATA("Document Number",$BX$39,"Crash Type",$BX$40,"Hour",8) -> 22 | CM49: MONROE TOWNSHIP | CN49: 201 | CO49: 36 | CP49: 30 | CQ49: 14 | CR49: 0 | CS49: 281
AT50: 60 | AU50: 1 | AV50: 0 | AW50: 0 | AX50: 0 | AY50: 0 | AZ50: 1 | BI50: Grand Total | BJ50: 3333 | BK50: 567 | BL50: 501 | BM50: 173 | BN50: 36 | BO50: 4610 | BX50: 9 | BY50: 17 | BZ50: =IFERROR(IF(BX50=0,"9 am","9 am"),"9 am") -> 9 am | CA50: =GETPIVOTDATA("Document Number",$BX$39,"Crash Type",$BX$40,"Hour",9) -> 17 | CM50: ORANGE TOWNSHIP | CN50: 103 | CO50: 11 | CP50: 22 | CQ50: 3 | CR50: 1 | CS50: 140
AT51: 12 | AU51: 1 | AV51: 0 | AW51: 0 | AX51: 0 | AY51: 0 | AZ51: 1 | BX51: 10 | BY51: 23 | BZ51: =IFERROR(IF(BX51=0,"10 am","10 am"),"10 am") -> 10 am | CA51: =GETPIVOTDATA("Document Number",$BX$39,"Crash Type",$BX$40,"Hour",10) -> 23 | CM51: SHERRODSVILLE | CN51: 30 | CO51: 0 | CP51: 4 | CQ51: 1 | CR51: 0 | CS51: 35
AT52: 51 | AU52: 1 | AV52: 0 | AW52: 0 | AX52: 0 | AY52: 0 | AZ52: 1 | BX52: 11 | BY52: 19 | BZ52: =IFERROR(IF(BX52=0,"11 am","11 am"),"11 am") -> 11 am | CA52: =GETPIVOTDATA("Document Number",$BX$39,"Crash Type",$BX$40,"Hour",11) -> 19 | CM52: EAST TOWNSHIP | CN52: 56 | CO52: 11 | CP52: 10 | CQ52: 1 | CR52: 0 | CS52: 78
AT53: Grand Total | AU53: 3333 | AV53: 567 | AW53: 501 | AX53: 173 | AY53: 36 | AZ53: 4610 | BX53: 12 | BY53: 24 | BZ53: =IFERROR(IF(BX53=0,"12 pm","12 pm"),"12 pm") -> 12 pm | CA53: =GETPIVOTDATA("Document Number",$BX$39,"Crash Type",$BX$40,"Hour",12) -> 24 | CM53: CARROLLTON | CN53: 423 | CO53: 64 | CP53: 42 | CQ53: 15 | CR53: 1 | CS53: 545
BX54: 13 | BY54: 24 | BZ54: =IFERROR(IF(BX54=0,"1 pm","1 pm"),"1 pm") -> 1 pm | CA54: =GETPIVOTDATA("Document Number",$BX$39,"Crash Type",$BX$40,"Hour",13) -> 24 | CM54: MALVERN | CN54: 141 | CO54: 27 | CP54: 17 | CQ54: 6 | CR54: 0 | CS54: 191
BX55: 14 | BY55: 37 | BZ55: =IFERROR(IF(BX55=0,"2 pm","2 pm"),"2 pm") -> 2 pm | CA55: =GETPIVOTDATA("Document Number",$BX$39,"Crash Type",$BX$40,"Hour",14) -> 37 | CM55: ROSE TOWNSHIP | CN55: 204 | CO55: 38 | CP55: 37 | CQ55: 14 | CR55: 3 | CS55: 296
BX56: 15 | BY56: 38 | BZ56: =IFERROR(IF(BX56=0,"3 pm","3 pm"),"3 pm") -> 3 pm | CA56: =GETPIVOTDATA("Document Number",$BX$39,"Crash Type",$BX$40,"Hour",15) -> 38 | CM56: CARROLL COUNTY | CN56: 6 | CO56: 1 | CP56: 1 | CQ56: 0 | CR56: 0 | CS56: 8
BX57: 16 | BY57: 37 | BZ57: =IFERROR(IF(BX57=0,"4 pm","4 pm"),"4 pm") -> 4 pm | CA57: =GETPIVOTDATA("Document Number",$BX$39,"Crash Type",$BX$40,"Hour",16) -> 37 | CM57: MAGNOLIA | CN57: 11 | CO57: 1 | CP57: 2 | CQ57: 0 | CR57: 2 | CS57: 16
BX58: 17 | BY58: 30 | BZ58: =IFERROR(IF(BX58=0,"5 pm","5 pm"),"5 pm") -> 5 pm | CA58: =GETPIVOTDATA("Document Number",$BX$39,"Crash Type",$BX$40,"Hour",17) -> 30 | CM58: LEESVILLE | CN58: 6 | CO58: 2 | CP58: 1 | CQ58: 0 | CR58: 0 | CS58: 9
BX59: 18 | BY59: 19 | BZ59: =IFERROR(IF(BX59=0,"6 pm","6 pm"),"6 pm") -> 6 pm | CA59: =GETPIVOTDATA("Document Number",$BX$39,"Crash Type",$BX$40,"Hour",18) -> 19 | CM59: MINERVA | CN59: 236 | CO59: 29 | CP59: 10 | CQ59: 4 | CR59: 0 | CS59: 279
BX60: 19 | BY60: 19 | BZ60: =IFERROR(IF(BX60=0,"7 pm","7 pm"),"7 pm") -> 7 pm | CA60: =GETPIVOTDATA("Document Number",$BX$39,"Crash Type",$BX$40,"Hour",19) -> 19 | CM60: DELLROY | CN60: 34 | CO60: 2 | CP60: 3 | CQ60: 0 | CR60: 0 | CS60: 39
BX61: 20 | BY61: 25 | BZ61: =IFERROR(IF(BX61=0,"8 pm","8 pm"),"8 pm") -> 8 pm | CA61: =GETPIVOTDATA("Document Number",$BX$39,"Crash Type",$BX$40,"Hour",20) -> 25 | CM61: PARIS TOWNSHIP | CN61: 1 | CO61: 0 | CP61: 1 | CQ61: 0 | CR61: 0 | CS61: 2
BX62: 21 | BY62: 21 | BZ62: =IFERROR(IF(BX62=0,"9 pm","9 pm"),"9 pm") -> 9 pm | CA62: =GETPIVOTDATA("Document Number",$BX$39,"Crash Type",$BX$40,"Hour",21) -> 21 | CM62: CADIZ | CN62: 1 | CO62: 0 | CP62: 0 | CQ62: 0 | CR62: 0 | CS62: 1
BX63: 22 | BY63: 25 | BZ63: =IFERROR(IF(BX63=0,"10 pm","10 pm"),"10 pm") -> 10 pm | CA63: =GETPIVOTDATA("Document Number",$BX$39,"Crash Type",$BX$40,"Hour",22) -> 25 | CM63: EAST LIVERPOOL | CN63: 0 | CO63: 0 | CP63: 1 | CQ63: 0 | CR63: 0 | CS63: 1
BX64: 23 | BY64: 16 | BZ64: =IFERROR(IF(BX64=0,"11 pm","11 pm"),"11 pm") -> 11 pm | CA64: =GETPIVOTDATA("Document Number",$BX$39,"Crash Type",$BX$40,"Hour",23) -> 16 | CM64: SALEM | CN64: 1 | CO64: 0 | CP64: 0 | CQ64: 0 | CR64: 0 | CS64: 1
BX65: Grand Total | BY65: 551 | CM65: Grand Total | CN65: 3333 | CO65: 567 | CP65: 501 | CQ65: 173 | CR65: 36 | CS65: 4610

Sheet Non-Motorized User
C1: Non-Motorized User
B8: Fatality and Injury Trends By Non-Motorist Vehicle Type | N8: Non-Motorist Crash Trends By Severity and Year | AN8: Crash Trends By Severity and Alcohol Involvement | BB8: Crash Trends By Severity and Speed Involvement | BO8: Crash Trends By Severity and Distracted Driver Related | CB8: Crash Trends By Severity and Intersection Related
Z9: Crash Trends By Severity and Functional Class
AB41: Non-motorized crashes by Severity and Functional Class | AP41: Non-motorized crashes by Severity and Alcohol Involvement | BD41: Non-motorized crashes by Severity and Speed Related | BQ41: Non-motorized crashes by Severity and Distracted Driver Related | CD41: Non-motorized crashes by Severity and Intersection Related
AB42: EA_NonMotorist | AC42: Non-Motorist | AP42: EA_NonMotorist | AQ42: Non-Motorist | BD42: EA_NonMotorist | BE42: Non-Motorist | BQ42: EA_NonMotorist | BR42: Non-Motorist | CD42: EA_NonMotorist | CE42: Non-Motorist
D44: Crashes by Non-Motorist Vehicle Type | P44: Non-motorized crashes per year | AB44: Total Crashes | AC44: Severity | AP44: Total Crashes | AQ44: Severity | BD44: Total Crashes | BE44: Severity | BQ44: Total Crashes | BR44: Severity | CD44: Total Crashes | CE44: Severity
P45: YEAR | Q45: FATAL CRASHES | R45: SERIOUS INJURY CRASHES | S45: MINOR INJURY CRASHES | AB45: Year | AC45: PDO/No Injury | AD45: Possible Injury | AE45: Minor Injury | AF45: Serious Injury | AG45: Fatal | AH45: Grand Total | AP45: Alcohol Related | AQ45: PDO/No Injury | AR45: Possible Injury | AS45: Minor Injury | AT45: Serious Injury | AU45: Fatal | AV45: Grand Total | BD45: Speed Related | BE45: PDO/No Injury | BF45: Possible Injury | BG45: Minor Injury | BH45: Serious Injury | BI45: Fatal | BJ45: Grand Total | BQ45: Distracted Driver Related | BR45: PDO/No Injury | BS45: Possible Injury | BT45: Minor Injury | BU45: Serious Injury | BV45: Fatal | BW45: Grand Total | CD45: Intersection Related | CE45: PDO/No Injury | CF45: Possible Injury | CG45: Minor Injury | CH45: Serious Injury | CI45: Fatal | CJ45: Grand Total
D46: Total Crashes | E46: Severity | P46: =P98 -> 2010 | Q46: =IFERROR(GETPIVOTDATA("Document Number",$P$96,"Year",P46,"Severity","Fatal"),"0") -> 0 | R46: =IFERROR(GETPIVOTDATA("Document Number",$P$96,"Year",P46,"Severity","Serious Injury "),"0") -> 1 | S46: =IFERROR(GETPIVOTDATA("Document Number",$P$96,"Year",P46,"Severity","Minor Injury"),"0") -> 3 | AB46: Local Roads | AC46: 0 | AD46: 1 | AE46: 1 | AF46: 1 | AG46: 0 | AH46: 3 | AP46: Alcohol Involved | AQ46: 0 | AR46: 0 | AS46: 0 | AT46: 1 | AU46: 0 | AV46: 1 | BD46: Speed Involved | BE46: 0 | BF46: 0 | BG46: 0 | BH46: 1 | BI46: 0 | BJ46: 1 | BQ46: Distracted Driver Involved | BR46: 0 | BS46: 0 | BT46: 2 | BU46: 1 | BV46: 0 | BW46: 3 | CD46: Intersection Related | CE46: 2 | CF46: 4 | CG46: 4 | CH46: 0 | CI46: 1 | CJ46: 11
D47: Non-Motorist User | E47: PDO/No Injury | F47: Possible Injury | G47: Minor Injury | H47: Serious Injury | I47: Grand Total | P47: =P46+1 -> 2011 | Q47: =IFERROR(GETPIVOTDATA("Document Number",$P$96,"Year",P47,"Severity","Fatal"),"0") -> 0 | R47: =IFERROR(GETPIVOTDATA("Document Number",$P$96,"Year",P47,"Severity","Serious Injury "),"0") -> 1 | S47: =IFERROR(GETPIVOTDATA("Document Number",$P$96,"Year",P47,"Severity","Minor Injury"),"0") -> 1 | AB47: Major Collector Roads | AC47: 2 | AD47: 1 | AE47: 1 | AF47: 0 | AG47: 0 | AH47: 4 | AP47: Alcohol Not Involved | AQ47: 6 | AR47: 5 | AS47: 9 | AT47: 5 | AU47: 1 | AV47: 26 | BD47: Speed Not Involved | BE47: 6 | BF47: 5 | BG47: 9 | BH47: 5 | BI47: 1 | BJ47: 26 | BQ47: Distracted Driver Not Involved | BR47: 6 | BS47: 5 | BT47: 7 | BU47: 5 | BV47: 1 | BW47: 24 | CD47: Non-Intersection Related | CE47: 4 | CF47: 1 | CG47: 5 | CH47: 6 | CI47: 0 | CJ47: 16
D48: Animal with Rider or Animal Drawn Vehicle | E48: 1 | F48: 0 | G48: 1 | H48: 0 | I48: 2 | P48: 2012 | Q48: 0 | R48: 0 | S48: 0 | AB48: Minor Arterial Roads | AC48: 2 | AD48: 2 | AE48: 6 | AF48: 5 | AG48: 1 | AH48: 16 | AP48: Grand Total | AQ48: 6 | AR48: 5 | AS48: 9 | AT48: 6 | AU48: 1 | AV48: 27 | BD48: Grand Total | BE48: 6 | BF48: 5 | BG48: 9 | BH48: 6 | BI48: 1 | BJ48: 27 | BQ48: Grand Total | BR48: 6 | BS48: 5 | BT48: 9 | BU48: 6 | BV48: 1 | BW48: 27 | CD48: Grand Total | CE48: 6 | CF48: 5 | CG48: 9 | CH48: 6 | CI48: 1 | CJ48: 27
D49: Bicycle | E49: 1 | F49: 2 | G49: 1 | H49: 0 | I49: 4 | P49: 2013 | Q49: 0 | R49: 0 | S49: 1 | AB49: Minor Collector Roads | AC49: 0 | AD49: 1 | AE49: 1 | AF49: 0 | AG49: 0 | AH49: 2
D50: Pedestrian/Skater | E50: 0 | F50: 1 | G50: 3 | H50: 1 | I50: 5 | P50: 2014 | Q50: 1 | R50: 1 | S50: 0 | AC50: 2 | AD50: 0 | AE50: 0 | AF50: 0 | AG50: 0 | AH50: 2
D51: Grand Total | E51: 2 | F51: 3 | G51: 5 | H51: 1 | I51: 11 | P51: 2015 | Q51: 0 | R51: 0 | S51: 0 | AB51: Grand Total | AC51: 6 | AD51: 5 | AE51: 9 | AF51: 6 | AG51: 1 | AH51: 27
P52: 2016 | Q52: 0 | R52: 0 | S52: 1
P53: 2017 | Q53: 0 | R53: 0 | S53: 2
P54: 2018 | Q54: 0 | R54: 1 | S54: 1
P55: 2019 | Q55: 0 | R55: 2 | S55: 0
P56: 10-YEAR TOTAL | Q56: =SUM(Q46:Q55) -> 1 | R56: =SUM(R46:R55) -> 6 | S56: 9
P57: ANNUAL AVERAGE | Q57: =IFERROR(AVERAGE(Q46:Q55),"N/A") -> 0.1 | R57: =IFERROR(AVERAGE(R46:R55),"N/A") -> 0.6 | S57: 0.9
P58: YEAR WITH THE HIGHEST VALUE FOR EACH RESPECTIVE COLUMN
P94: EA_NonMotorist | Q94: Non-Motorist
P96: Total Crashes | Q96: Severity
P97: Year | Q97: Fatal | R97: Serious Injury | S97: Minor Injury | T97: Possible Injury | U97: PDO/No Injury | V97: Grand Total
P98: 2010 | Q98: 0 | R98: 1 | S98: 3 | T98: 0 | U98: 2 | V98: 6
P99: 2011 | Q99: 0 | R99: 1 | S99: 1 | T99: 0 | U99: 0 | V99: 2
P100: 2012 | Q100: 0 | R100: 0 | S100: 0 | T100: 0 | U100: 1 | V100: 1
P101: 2013 | Q101: 0 | R101: 0 | S101: 1 | T101: 0 | U101: 3 | V101: 4
P102: 2014 | Q102: 1 | R102: 1 | S102: 0 | T102: 0 | U102: 0 | V102: 2
P103: 2015 | Q103: 0 | R103: 0 | S103: 0 | T103: 2 | U103: 0 | V103: 2
P104: 2016 | Q104: 0 | R104: 0 | S104: 1 | T104: 1 | U104: 0 | V104: 2
P105: 2017 | Q105: 0 | R105: 0 | S105: 2 | T105: 1 | U105: 0 | V105: 3
P106: 2018 | Q106: 0 | R106: 1 | S106: 1 | T106: 1 | U106: 0 | V106: 3
P107: 2019 | Q107: 0 | R107: 2 | S107: 0 | T107: 0 | U107: 0 | V107: 2
P108: Grand Total | Q108: 1 | R108: 6 | S108: 9 | T108: 5 | U108: 6 | V108: 27

Sheet Emphasis Area Overview
C2: Emphasis Area Overview
B8: Emphasis Area Overview Fatal, Serious Injury and Possible Injury Crashes by SHSP EA | K8: Emphasis Area Overview Fatal and Serious Injury Crashes by SHSP EA | Y8: Emphasis Area Overview Total Crashes by SHSP EA
D9: Emphasis Area by Severity
B42: Emphasis Area Overview Contributing Factors | K42: Emphasis Area Overview Contributing Factors by Crash Type
AF43: Emphasis Area Overview - Severe Crashes Contributing Factors by Crash Type
AH44: ="Contributing Factors by Crash Type, "&'Emphasis Area Template'!$AJ$249 -> Contributing Factors by Crash Type, 0-0
AH45: Severity | AI45: (Multiple Items)
D46: ="Contributing Factors, "&'Emphasis Area Template'!$AJ$249 -> Contributing Factors, 0-0 | M46: ="Contributing Factors by Crash Type, "&'Emphasis Area Template'!$AJ$249 -> Contributing Factors by Crash Type, 0-0
E47: STATEWIDE | F47: COUTYWIDE - ALL ROADS | G47: COUNTYWIDE - LOCAL ROADS | N47: Roadway Departure Related | O47: Young Driver Related | P47: Intersection Related | Q47: Speed Involved | R47: Senior Driver Related | S47: Alcohol Involved | T47: Rear End Related | U47: Motorcycle Related | V47: Drugs Involved | W47: Pedestrian Related | X47: Distracted Driver Related | Y47: Bicycle Related | Z47: Railroad Crossing Related | AA47: Work Zone Involved | AB47: Marijuana Involved | AC47: Unrestrained Occupants Involved | AI47: Roadway Departure Related | AJ47: Young Driver Related | AK47: Intersection Related | AL47: Speed Involved | AM47: Senior Driver Related | AN47: Alcohol Involved | AO47: Rear End Related | AP47: Motorcycle Related | AQ47: Drugs Involved | AR47: Pedestrian Related | AS47: Distracted Driver Related | AT47: Bicycle Related | AU47: Railroad Crossing Related | AV47: Work Zone Involved | AW47: Marijuana Involved | AX47: Unrestrained Occupants Involved
D48: ROADWAY DEPARTURE | E48: 0.376 | F48: =GETPIVOTDATA("Sum of EA_RoadwayDep",$AQ$110)/GETPIVOTDATA("Sum of EA_Crashes",$AQ$110) -> 0.507622812 | G48: =GETPIVOTDATA("Sum of EA_RoadwayDep",$AP$110,"Jurisdiction Type","State")/GETPIVOTDATA("Sum of EA_Crashes",$AP$110,"Jurisdiction Type","State") -> 0.537109375 | M48: Angle | N48: 52 | O48: 183 | P48: 292 | Q48: 21 | R48: 135 | S48: 13 | T48: 0 | U48: 9 | V48: 0 | W48: 0 | X48: 23 | Y48: 0 | Z48: 0 | AA48: 2 | AB48: 0 | AC48: 36 | AH48: Angle | AI48: 9 | AJ48: 10 | AK48: 13 | AL48: 4 | AM48: 9 | AN48: 2 | AO48: 0 | AP48: 1 | AQ48: 0 | AR48: 0 | AS48: 1 | AT48: 0 | AU48: 0 | AV48: 0 | AW48: 0 | AX48: 8
D49: YOUNG DRIVER INVOLVEMENT (15-25) | E49: 0.369 | F49: =GETPIVOTDATA("Sum of EA_YoungDr",$AQ$110)/GETPIVOTDATA("Sum of EA_Crashes",$AQ$110) -> 0.3368153586 | G49: =GETPIVOTDATA("Sum of EA_YoungDr",$AP$110,"Jurisdiction Type","Local")/GETPIVOTDATA("Sum of EA_Crashes",$AP$110,"Jurisdiction Type","Local") -> 0.3619142572 | M49: Animal | N49: 17 | O49: 71 | P49: 38 | Q49: 12 | R49: 27 | S49: 4 | T49: 0 | U49: 21 | V49: 0 | W49: 0 | X49: 4 | Y49: 0 | Z49: 0 | AA49: 1 | AB49: 0 | AC49: 8 | AH49: Animal | AI49: 0 | AJ49: 1 | AK49: 1 | AL49: 0 | AM49: 1 | AN49: 1 | AO49: 0 | AP49: 8 | AQ49: 0 | AR49: 0 | AS49: 0 | AT49: 0 | AU49: 0 | AV49: 0 | AW49: 0 | AX49: 0
D50: INTERSECTION | E50: 0.367 | F50: =GETPIVOTDATA("Sum of EA_IntersectionRel",$AQ$110)/GETPIVOTDATA("Sum of EA_Crashes",$AQ$110) -> 0.2936194241 | G50: =GETPIVOTDATA("Sum of EA_IntersectionRel",$AP$110,"Jurisdiction Type","Local")/GETPIVOTDATA("Sum of EA_Crashes",$AP$110,"Jurisdiction Type","Local") -> 0.3265204387 | M50: Backing | N50: 24 | O50: 45 | P50: 69 | Q50: 3 | R50: 57 | S50: 4 | T50: 0 | U50: 0 | V50: 0 | W50: 0 | X50: 15 | Y50: 0 | Z50: 2 | AA50: 3 | AB50: 1 | AC50: 9 | AH50: Backing | AI50: 1 | AJ50: 0 | AK50: 0 | AL50: 0 | AM50: 0 | AN50: 0 | AO50: 0 | AP50: 0 | AQ50: 0 | AR50: 0 | AS50: 0 | AT50: 0 | AU50: 0 | AV50: 0 | AW50: 0 | AX50: 1
D51: SPEED RELATED INVOLVEMENT | E51: 0.24 | F51: =GETPIVOTDATA("Sum of EA_SpeedRel",$AQ$110)/GETPIVOTDATA("Sum of EA_Crashes",$AQ$110) -> 0.1030491248 | G51: =GETPIVOTDATA("Sum of EA_SpeedRel",$AP$110,"Jurisdiction Type","Local")/GETPIVOTDATA("Sum of EA_Crashes",$AP$110,"Jurisdiction Type","Local") -> 0.1026919242 | M51: Fixed Object | N51: 1775 | O51: 659 | P51: 305 | Q51: 350 | R51: 126 | S51: 273 | T51: 0 | U51: 47 | V51: 0 | W51: 0 | X51: 149 | Y51: 0 | Z51: 2 | AA51: 3 | AB51: 1 | AC51: 143 | AH51: Fixed Object | AI51: 86 | AJ51: 23 | AK51: 11 | AL51: 22 | AM51: 7 | AN51: 29 | AO51: 0 | AP51: 15 | AQ51: 0 | AR51: 0 | AS51: 9 | AT51: 0 | AU51: 0 | AV51: 0 | AW51: 0 | AX51: 32
D52: RESTRAINTS NOT USED DRIVER/ OCCUPANTS | E52: 0.189 | F52: =GETPIVOTDATA("Sum of EA_Restraints",$AQ$110)/GETPIVOTDATA("Sum of EA_Crashes",$AQ$110) -> 0.05505364201 | G52: =GETPIVOTDATA("Sum of EA_Restraints",$AP$110,"Jurisdiction Type","Local")/GETPIVOTDATA("Sum of EA_Crashes",$AP$110,"Jurisdiction Type","Local") -> 0.05682951147 | M52: Head On | N52: 59 | O52: 47 | P52: 35 | Q52: 9 | R52: 25 | S52: 7 | T52: 0 | U52: 5 | V52: 0 | W52: 0 | X52: 8 | Y52: 0 | Z52: 0 | AA52: 0 | AB52: 0 | AC52: 16 | AH52: Head On | AI52: 17 | AJ52: 8 | AK52: 4 | AL52: 6 | AM52: 7 | AN52: 5 | AO52: 0 | AP52: 2 | AQ52: 0 | AR52: 0 | AS52: 0 | AT52: 0 | AU52: 0 | AV52: 0 | AW52: 0 | AX52: 6
D53: OLDER DRIVER INVOLVEMENT (65+) | E53: 0.184 | F53: =GETPIVOTDATA("Sum of EA_SeniorDr",$AQ$110)/GETPIVOTDATA("Sum of EA_Crashes",$AQ$110) -> 0.1538678713 | G53: =GETPIVOTDATA("Sum of EA_SeniorDr",$AP$110,"Jurisdiction Type","Local")/GETPIVOTDATA("Sum of EA_Crashes",$AP$110,"Jurisdiction Type","Local") -> 0.1635094716 | M53: Left Turn | N53: 83 | O53: 99 | P53: 88 | Q53: 11 | R53: 59 | S53: 17 | T53: 0 | U53: 3 | V53: 0 | W53: 0 | X53: 24 | Y53: 0 | Z53: 0 | AA53: 3 | AB53: 0 | AC53: 18 | AH53: Left Turn | AI53: 5 | AJ53: 4 | AK53: 3 | AL53: 1 | AM53: 3 | AN53: 1 | AO53: 0 | AP53: 1 | AQ53: 0 | AR53: 0 | AS53: 0 | AT53: 0 | AU53: 0 | AV53: 0 | AW53: 0 | AX53: 2
D54: ALCOHOL RELATED INVOLVEMENT | E54: 0.165 | F54: =GETPIVOTDATA("Sum of EA_AlcoholRel",$AQ$110)/GETPIVOTDATA("Sum of EA_Crashes",$AQ$110) -> 0.07961603614 | G54: =GETPIVOTDATA("Sum of EA_AlcoholRel",$AP$110,"Jurisdiction Type","Local")/GETPIVOTDATA("Sum of EA_Crashes",$AP$110,"Jurisdiction Type","Local") -> 0.09122632104 | M54: Other Non-Collision | N54: 54 | O54: 21 | P54: 14 | Q54: 5 | R54: 2 | S54: 3 | T54: 0 | U54: 6 | V54: 0 | W54: 0 | X54: 1 | Y54: 0 | Z54: 0 | AA54: 0 | AB54: 0 | AC54: 1 | AH54: Other Non-Collision | AI54: 2 | AJ54: 1 | AK54: 1 | AL54: 0 | AM54: 1 | AN54: 1 | AO54: 0 | AP54: 2 | AQ54: 0 | AR54: 0 | AS54: 0 | AT54: 0 | AU54: 0 | AV54: 0 | AW54: 0 | AX54: 0
D55: REAR END | E55: 0.124 | F55: =GETPIVOTDATA("Sum of EA_RearEnd",$AQ$110)/GETPIVOTDATA("Sum of EA_Crashes",$AQ$110) -> 0.1386222473 | G55: =GETPIVOTDATA("Sum of EA_RearEnd",$AP$110,"Jurisdiction Type","Local")/GETPIVOTDATA("Sum of EA_Crashes",$AP$110,"Jurisdiction Type","Local") -> 0.129112662 | M55: Other Object | N55: 12 | O55: 9 | P55: 10 | Q55: 5 | R55: 2 | S55: 1 | T55: 0 | U55: 1 | V55: 0 | W55: 0 | X55: 0 | Y55: 0 | Z55: 2 | AA55: 3 | AB55: 0 | AC55: 2 | AH55: Other Object | AI55: 1 | AJ55: 0 | AK55: 0 | AL55: 1 | AM55: 0 | AN55: 1 | AO55: 0 | AP55: 0 | AQ55: 0 | AR55: 0 | AS55: 0 | AT55: 0 | AU55: 0 | AV55: 0 | AW55: 0 | AX55: 1
D56: MOTORCYCLE DRIVER/PASSENGER | E56: 0.109 | F56: =GETPIVOTDATA("Sum of EA_MotorcycleRel",$AQ$110)/GETPIVOTDATA("Sum of EA_Crashes",$AQ$110) -> 0.02230378317 | G56: =GETPIVOTDATA("Sum of EA_MotorcycleRel",$AP$110,"Jurisdiction Type","Local")/GETPIVOTDATA("Sum of EA_Crashes",$AP$110,"Jurisdiction Type","Local") -> 0.018444666 | M56: Overturning | N56: 154 | O56: 75 | P56: 31 | Q56: 51 | R56: 11 | S56: 25 | T56: 0 | U56: 33 | V56: 0 | W56: 0 | X56: 12 | Y56: 0 | Z56: 0 | AA56: 2 | AB56: 0 | AC56: 14 | AH56: Overturning | AI56: 16 | AJ56: 6 | AK56: 4 | AL56: 6 | AM56: 2 | AN56: 10 | AO56: 0 | AP56: 12 | AQ56: 0 | AR56: 0 | AS56: 1 | AT56: 0 | AU56: 0 | AV56: 0 | AW56: 0 | AX56: 3
D57: DRUG RELATED INVOLVEMENT | E57: 0.081 | F57: =GETPIVOTDATA("Sum of EA_DrugRel",$AQ$110)/GETPIVOTDATA("Sum of EA_Crashes",$AQ$110) -> 0 | G57: =GETPIVOTDATA("Sum of EA_DrugRel",$AP$110,"Jurisdiction Type","Local")/GETPIVOTDATA("Sum of EA_Crashes",$AP$110,"Jurisdiction Type","Local") -> 0 | M57: Parked Vehicle | N57: 88 | O57: 21 | P57: 15 | Q57: 13 | R57: 9 | S57: 11 | T57: 0 | U57: 2 | V57: 0 | W57: 0 | X57: 6 | Y57: 0 | Z57: 0 | AA57: 1 | AB57: 0 | AC57: 7 | AH57: Parked Vehicle | AI57: 3 | AJ57: 2 | AK57: 0 | AL57: 0 | AM57: 0 | AN57: 0 | AO57: 0 | AP57: 0 | AQ57: 0 | AR57: 0 | AS57: 0 | AT57: 0 | AU57: 0 | AV57: 0 | AW57: 0 | AX57: 3
D58: PEDESTRIAN INVOLVEMENT | E58: 0.066 | F58: =GETPIVOTDATA("Sum of EA_PedestrianRel",$AQ$110)/GETPIVOTDATA("Sum of EA_Crashes",$AQ$110) -> 0.002258610954 | G58: =GETPIVOTDATA("Sum of EA_PedestrianRel",$AP$110,"Jurisdiction Type","Local")/GETPIVOTDATA("Sum of EA_Crashes",$AP$110,"Jurisdiction Type","Local") -> 0.002492522433 | M58: Pedalcycles | N58: 0 | O58: 3 | P58: 3 | Q58: 0 | R58: 1 | S58: 0 | T58: 0 | U58: 0 | V58: 0 | W58: 0 | X58: 0 | Y58: 4 | Z58: 0 | AA58: 0 | AB58: 0 | AC58: 0 | AH58: Pedalcycles | AI58: 0 | AJ58: 0 | AK58: 0 | AL58: 0 | AM58: 1 | AN58: 0 | AO58: 0 | AP58: 0 | AQ58: 0 | AR58: 0 | AS58: 0 | AT58: 0 | AU58: 0 | AV58: 0 | AW58: 0 | AX58: 0
D59: DISTRACTED DRIVERS | E59: 0.064 | F59: =GETPIVOTDATA("Sum of EA_DistractedDr",$AQ$110)/GETPIVOTDATA("Sum of EA_Crashes",$AQ$110) -> 0.07735742518 | G59: =GETPIVOTDATA("Sum of EA_DistractedDr",$AP$110,"Jurisdiction Type","Local")/GETPIVOTDATA("Sum of EA_Crashes",$AP$110,"Jurisdiction Type","Local") -> 0.08773678963 | M59: Pedestrian | N59: 2 | O59: 2 | P59: 6 | Q59: 1 | R59: 2 | S59: 1 | T59: 0 | U59: 0 | V59: 0 | W59: 17 | X59: 3 | Y59: 0 | Z59: 0 | AA59: 0 | AB59: 0 | AC59: 0 | AH59: Pedestrian | AI59: 1 | AJ59: 0 | AK59: 1 | AL59: 1 | AM59: 1 | AN59: 1 | AO59: 0 | AP59: 0 | AQ59: 0 | AR59: 6 | AS59: 1 | AT59: 0 | AU59: 0 | AV59: 0 | AW59: 0 | AX59: 0
D60: RAILROAD CROSSING | E60: 0.003 | F60: =GETPIVOTDATA("Sum of EA_RailroadCross",$AQ$110)/GETPIVOTDATA("Sum of EA_Crashes",$AQ$110) -> 0.001976284585 | G60: =GETPIVOTDATA("Sum of EA_RailroadCross",$AP$110,"Jurisdiction Type","Local")/GETPIVOTDATA("Sum of EA_Crashes",$AP$110,"Jurisdiction Type","Local") -> 0.001994017946 | M60: Rear End | N60: 14 | O60: 321 | P60: 315 | Q60: 37 | R60: 172 | S60: 15 | T60: 688 | U60: 11 | V60: 0 | W60: 0 | X60: 92 | Y60: 0 | Z60: 2 | AA60: 20 | AB60: 0 | AC60: 32 | AH60: Rear End | AI60: 1 | AJ60: 3 | AK60: 3 | AL60: 3 | AM60: 4 | AN60: 1 | AO60: 10 | AP60: 2 | AQ60: 0 | AR60: 0 | AS60: 0 | AT60: 0 | AU60: 0 | AV60: 0 | AW60: 0 | AX60: 3
D61: BICYCLE INVOLVEMENT | E61: 0.02 | F61: =GETPIVOTDATA("Sum of EA_BicycleRel",$AQ$110)/GETPIVOTDATA("Sum of EA_Crashes",$AQ$110) -> 0.0002823263693 | G61: =GETPIVOTDATA("Sum of EA_BicycleRel",$AP$110,"Jurisdiction Type","Local")/GETPIVOTDATA("Sum of EA_Crashes",$AP$110,"Jurisdiction Type","Local") -> 0.0004985044865 | M61: Right Turn | N61: 11 | O61: 25 | P61: 58 | Q61: 2 | R61: 37 | S61: 1 | T61: 0 | U61: 2 | V61: 0 | W61: 0 | X61: 5 | Y61: 0 | Z61: 0 | AA61: 0 | AB61: 0 | AC61: 6 | AH61: Sideswipe - Meeting | AI61: 2 | AJ61: 0 | AK61: 0 | AL61: 0 | AM61: 0 | AN61: 1 | AO61: 0 | AP61: 1 | AQ61: 0 | AR61: 0 | AS61: 0 | AT61: 0 | AU61: 0 | AV61: 0 | AW61: 0 | AX61: 0
D62: WORK ZONE INVOLVEMENT | E62: 0.03 | F62: =GETPIVOTDATA("Sum of EA_WorkZone",$AQ$110)/GETPIVOTDATA("Sum of EA_Crashes",$AQ$110) -> 0.009881422925 | G62: =GETPIVOTDATA("Sum of EA_WorkZone",$AP$110,"Jurisdiction Type","Local")/GETPIVOTDATA("Sum of EA_Crashes",$AP$110,"Jurisdiction Type","Local") -> 0.009970089731 | M62: Sideswipe - Meeting | N62: 11 | O62: 4 | P62: 3 | Q62: 0 | R62: 2 | S62: 1 | T62: 0 | U62: 2 | V62: 0 | W62: 0 | X62: 0 | Y62: 0 | Z62: 0 | AA62: 0 | AB62: 0 | AC62: 1 | AH62: Sideswipe - Passing | AI62: 5 | AJ62: 1 | AK62: 3 | AL62: 1 | AM62: 2 | AN62: 1 | AO62: 0 | AP62: 3 | AQ62: 0 | AR62: 0 | AS62: 0 | AT62: 0 | AU62: 0 | AV62: 0 | AW62: 0 | AX62: 2
D63: MARIJUANA INVOLVEMENT | E63: 0.03 | F63: =GETPIVOTDATA("Sum of EA_MarijuanaRel",$AQ$110)/GETPIVOTDATA("Sum of EA_Crashes",$AQ$110) -> 0.0002823263693 | G63: =GETPIVOTDATA("Sum of EA_MarijuanaRel",$AP$110,"Jurisdiction Type","Local")/GETPIVOTDATA("Sum of EA_Crashes",$AP$110,"Jurisdiction Type","Local") -> 0.0004985044865 | M63: Sideswipe - Passing | N63: 53 | O63: 57 | P63: 60 | Q63: 18 | R63: 43 | S63: 7 | T63: 0 | U63: 9 | V63: 0 | W63: 0 | X63: 15 | Y63: 0 | Z63: 0 | AA63: 5 | AB63: 0 | AC63: 20 | AH63: Grand Total | AI63: 149 | AJ63: 59 | AK63: 44 | AL63: 45 | AM63: 38 | AN63: 54 | AO63: 10 | AP63: 47 | AQ63: 0 | AR63: 6 | AS63: 12 | AT63: 0 | AU63: 0 | AV63: 0 | AW63: 0 | AX63: 61
D64: ABOVE STATEWIDE AVERAGE | E64: BELOW STATEWIDE AVERAGE | M64: Unknown | N64: 0 | O64: 2 | P64: 4 | Q64: 0 | R64: 3 | S64: 0 | T64: 0 | U64: 0 | V64: 0 | W64: 0 | X64: 0 | Y64: 0 | Z64: 0 | AA64: 0 | AB64: 0 | AC64: 1
M65: Train | N65: 0 | O65: 0 | P65: 1 | Q65: 0 | R65: 0 | S65: 0 | T65: 0 | U65: 0 | V65: 0 | W65: 0 | X65: 0 | Y65: 0 | Z65: 1 | AA65: 0 | AB65: 0 | AC65: 0
M66: Other Non-Vehicle | N66: 1 | O66: 1 | P66: 1 | Q66: 0 | R66: 0 | S66: 0 | T66: 0 | U66: 0 | V66: 0 | W66: 0 | X66: 0 | Y66: 0 | Z66: 0 | AA66: 0 | AB66: 0 | AC66: 0
M67: Grand Total | N67: 2410 | O67: 1645 | P67: 1348 | Q67: 538 | R67: 713 | S67: 383 | T67: 688 | U67: 151 | V67: 0 | W67: 17 | X67: 357 | Y67: 4 | Z67: 9 | AA67: 43 | AB67: 2 | AC67: 314
C105: Column Labels | P105: Column Labels | Z105: Values
B106: Values | C106: Fatal | D106: Serious Injury Suspected | E106: Minor Injury Suspected | F106: Grand Total | O106: Values | P106: Fatal | Q106: Serious Injury Suspected | R106: Grand Total | Z106: Roadway Departure Related | AA106: 2410 | AP106: Severity | AQ106: (Multiple Items)
B107: Roadway Departure Related | C107: 28 | D107: 121 | E107: 296 | F107: 445 | O107: Roadway Departure Related | P107: 28 | Q107: 121 | R107: 149 | Z107: Young Driver Related | AA107: 1645
B108: Young Driver Related | C108: 9 | D108: 50 | E108: 218 | F108: 277 | O108: Unrestrained Occupants Involved | P108: 13 | Q108: 48 | R108: 61 | Z108: Intersection Related | AA108: 1348 | AP108: Row Labels | AQ108: Sum of EA_RoadwayDep | AR108: Sum of EA_RearEnd | AS108: Sum of EA_PedestrianRel | AT108: Sum of EA_RailroadCross | AU108: Sum of EA_IntersectionRel | AV108: Sum of EA_AlcoholRel | AW108: Sum of EA_MarijuanaRel | AX108: Sum of EA_DrugRel | AY108: Sum of EA_MotorcycleRel | AZ108: Sum of EA_SpeedRel | BA108: Sum of EA_SeniorDr | BB108: Sum of EA_YoungDr | BC108: Sum of EA_WorkZone | BD108: Sum of EA_DistractedDr | BE108: Sum of EA_BicycleRel | BF108: Sum of EA_Crashes | BG108: Sum of EA_Age | BH108: Sum of EA_Restraints
B109: Speed Involved | C109: 6 | D109: 39 | E109: 111 | F109: 156 | O109: Alcohol Involved | P109: 11 | Q109: 43 | R109: 54 | Z109: Senior Driver Related | AA109: 713 | AP109: Local | AQ109: 973 | AR109: 259 | AS109: 5 | AT109: 4 | AU109: 655 | AV109: 183 | AW109: 1 | AX109: 0 | AY109: 37 | AZ109: 206 | BA109: 328 | BB109: 726 | BC109: 20 | BD109: 176 | BE109: 1 | BF109: 2006 | BG109: 75002 | BH109: 114
B110: Intersection Related | C110: 7 | D110: 37 | E110: 107 | F110: 151 | O110: Young Driver Related | P110: 9 | Q110: 50 | R110: 59 | Z110: Rear End Related | AA110: 688 | AP110: State | AQ110: 825 | AR110: 232 | AS110: 3 | AT110: 3 | AU110: 385 | AV110: 99 | AW110: 0 | AX110: 0 | AY110: 42 | AZ110: 159 | BA110: 217 | BB110: 467 | BC110: 15 | BD110: 98 | BE110: 0 | BF110: 1536 | BG110: 59848 | BH110: 81
B111: Unrestrained Occupants Involved | C111: 13 | D111: 48 | E111: 68 | F111: 129 | O111: Motorcycle Related | P111: 8 | Q111: 39 | R111: 47 | Z111: Speed Involved | AA111: 538 | AP111: Grand Total | AQ111: 1798 | AR111: 491 | AS111: 8 | AT111: 7 | AU111: 1040 | AV111: 282 | AW111: 1 | AX111: 0 | AY111: 79 | AZ111: 365 | BA111: 545 | BB111: 1193 | BC111: 35 | BD111: 274 | BE111: 1 | BF111: 3542 | BG111: 134850 | BH111: 195
B112: Senior Driver Related | C112: 7 | D112: 31 | E112: 72 | F112: 110 | O112: Intersection Related | P112: 7 | Q112: 37 | R112: 44 | Z112: Alcohol Involved | AA112: 383
B113: Alcohol Involved | C113: 11 | D113: 43 | E113: 48 | F113: 102 | O113: Senior Driver Related | P113: 7 | Q113: 31 | R113: 38 | Z113: Distracted Driver Related | AA113: 357
B114: Motorcycle Related | C114: 8 | D114: 39 | E114: 55 | F114: 102 | O114: Speed Involved | P114: 6 | Q114: 39 | R114: 45 | Z114: Unrestrained Occupants Invovled | AA114: 314
B115: Rear End Related | C115: 0 | D115: 10 | E115: 73 | F115: 83 | O115: Distracted Driver Related | P115: 2 | Q115: 10 | R115: 12 | Z115: Motorcycle Related | AA115: 151
B116: Distracted Driver Related | C116: 2 | D116: 10 | E116: 37 | F116: 49 | O116: Pedestrian Related | P116: 1 | Q116: 5 | R116: 6 | Z116: Work Zone Involved | AA116: 43
B117: Pedestrian Related | C117: 1 | D117: 5 | E117: 6 | F117: 12 | O117: Rear End Related | P117: 0 | Q117: 10 | R117: 10 | Z117: Pedestrian Related | AA117: 17
B118: Work Zone Involved | C118: 0 | D118: 0 | E118: 4 | F118: 4 | O118: Marijuana Involved | P118: 0 | Q118: 0 | R118: 0 | Z118: Railroad Crossing Related | AA118: 9
B119: Bicycle Related | C119: 0 | D119: 0 | E119: 1 | F119: 1 | O119: Work Zone Involved | P119: 0 | Q119: 0 | R119: 0 | Z119: Bicycle Related | AA119: 4
B120: Marijuana Involved | C120: 0 | D120: 0 | E120: 1 | F120: 1 | O120: Bicycle Related | P120: 0 | Q120: 0 | R120: 0 | Z120: Marijuana Involved | AA120: 2
B121: Railroad Crossing Related | C121: 0 | D121: 0 | E121: 1 | F121: 1 | O121: Drugs Involved | P121: 0 | Q121: 0 | R121: 0 | Z121: Drugs Involved | AA121: 0
B122: Drugs Involved | C122: 0 | D122: 0 | E122: 0 | F122: 0 | O122: Railroad Crossing Related | P122: 0 | Q122: 0 | R122: 0

Sheet Emphasis Area Template (hidden)
C1: =_xlfn.CONCAT(MID(CELL("filename",A1),FIND("]",CELL("filename",A1))+1,255)," Breakdown") -> Emphasis Area Template Breakdown
B7: Emphasis Area Breakdown Total Annual Crash Trends | Q7: Emphasis Area Breakdown Fatal and Serious Injury Crashes 5-Year Rolling Average | AF7: Emphasis Area Breakdown Fatal and Serious Injury Crashes Overlaps | AU7: Emphasis Area Breakdown Fatal and Serious Injury Crashes Young and Older Drivers, by Age and Gender | BJ7: Emphasis Area Breakdown Fatal and Serious Injury Crashes Roadway Functional Class | BY7: Emphasis Area Breakdown Fatal and Injury Crashes Time of Day | CN7: Emphasis Area Breakdown Fatal and Injury Crashes Day of Week | DC7: Emphasis Area Breakdown Fatal and Injury Crashes by Month | DR7: Emphasis Area Breakdown Fatal and Injury Crashes by Type
AH8: =$AJ$248&" Fatal and Serious Injury Crashes Overlaps, "&$AJ$249 -> Emphasis Area Template Fatal and Serious Injury Crashes Overlaps, 0-0 | AW8: ="Young Driver Related Fatal and Serious Injury Crashes Age/Gender, "&$AJ$249 -> Young Driver Related Fatal and Serious Injury Crashes Age/Gender, 0-0 | BL8: =$AJ$248&" Related Fatal and Injury Crashes Roadway Functional Class, "&$AJ$249 -> Emphasis Area Template Related Fatal and Injury Crashes Roadway Functional Class, 0-0 | BZ8: =$AJ$248&" Related Fatal and Injury Crashes Time of Day, "&$AJ$249 -> Emphasis Area Template Related Fatal and Injury Crashes Time of Day, 0-0 | CP8: =$AJ$248&" Related Fatal and Injury Crashes Day of Week, "&$AJ$249 -> Emphasis Area Template Related Fatal and Injury Crashes Day of Week, 0-0 | DE8: =$AJ$248&" Related Fatal and Injury Crashes by Month, "&$AJ$249 -> Emphasis Area Template Related Fatal and Injury Crashes by Month, 0-0 | DT8: =$AJ$248&" Related Fatal and Injury Crashes by Type, "&$AJ$249 -> Emphasis Area Template Related Fatal and Injury Crashes by Type, 0-0
D9: =$AJ$248&" Total Annual Crashes by Severity, "&$AJ$249 -> Emphasis Area Template Total Annual Crashes by Severity, 0-0 | S9: =$AJ$248&" Related Fatal and Serious Injury Crashes 5-Year Rolling Average, "&$AJ$249 -> Emphasis Area Template Related Fatal and Serious Injury Crashes 5-Year Rolling Average, 0-0
BJ33: Emphasis Area Breakdown Fatal and Serious Injury Crashes Jurisdiction
BL34: =$AJ$248&" Related Fatal and Injury Crashes by Roadway Jurisdiction, "&$AJ$249 -> Emphasis Area Template Related Fatal and Injury Crashes by Roadway Jurisdiction, 0-0
AW37: ="Older Driver Related Fatal and Serious Injury Crashes Age/Gender, "&$AJ$249 -> Older Driver Related Fatal and Serious Injury Crashes Age/Gender, 0-0
AY243: Severity | AZ243: (Multiple Items) | BC243: Severity | BD243: (Multiple Items) | DC243: Pivot Table | DE243: Pass Through Table
B244: Sum of EA_Crashes | C244: Column Labels | S244: Pivot Table | AY244: Pivot Table | BC244: Pivot Table | BK244: Pivot Table | BP244: Pivot Table | CA244: Pivot Table | CC244: Pass Through Table | CP244: Pivot Table | DC244: YEAR | DD244: Sum of EA_Crashes | DE244: Month | DF244: EA Crashes | DG244: EA % | DS244: Pivot Table
B245: YEAR | C245: PDO/No Injury | D245: Injury Possible | E245: Minor Injury Suspected | F245: Serious Injury Suspected | G245: Fatal | H245: Grand Total | S245: YEAR | T245: Sum of EA_Crashes | AZ245: Sum of EA_Crashes | BD245: Sum of EA_Crashes | BL245: Sum of EA_Crashes2 | BM245: Sum of EA_Crashes | BN245: Sum of EA_Crashes3 | BQ245: Sum of EA_Crashes | CA245: Hour | CB245: Sum of EA_Crashes | CC245: TOD | CD245: EA_Sum | CP245: YEAR | CQ245: Sum of EA_Crashes | CR245: Sum of EA_Crashes2 | CS245: Sum of EA_Crashes3 | DC245: 12 | DD245: 431 | DE245: December | DF245: =GETPIVOTDATA("EA_Crashes",$DC$244,"Month",12) -> 431 | DG245: =IFERROR(DF245/$DF$257,0) -> 0.09349240781 | DS245: YEAR | DT245: Sum of EA_Crashes | DU245: Sum of EA_Crashes2 | DV245: Sum of EA_Crashes3
B246: 2010 | C246: 377 | D246: 52 | E246: 65 | F246: 20 | G246: 5 | H246: 519 | S246: Fatal | T246: 36 | AF246: EA Cross-Reference Calculations (pasted as values when sheets are created) | AY246: 16 | AZ246: 2 | BC246: 65 | BD246: 7 | BK246: Township Minor Collector Roads | BL246: 1 | BM246: 1 | BN246: 0.0002169197397 | BP246: City or Village Highway Agency | BQ246: 1200 | CA246: 0 | CB246: 120 | CC246: =IFERROR(IF(CA246=0,"12 am","12 am"),"12 am") -> 12 am | CD246: =IFERROR(GETPIVOTDATA("EA_Crashes",$CA$245,"Hour",0),0) -> 120 | CP246: Saturday | CQ246: 692 | CR246: 692 | CS246: 0.1501084599 | DC246: 11 | DD246: 430 | DE246: November | DF246: =GETPIVOTDATA("EA_Crashes",$DC$244,"Month",11) -> 430 | DG246: 0.09327548807 | DS246: Other Non-Vehicle | DT246: 1 | DU246: 1 | DV246: 0.0002169197397
B247: 2011 | C247: 336 | D247: 62 | E247: 71 | F247: 24 | G247: 3 | H247: 496 | S247: 2010 | T247: 5 | AY247: 17 | AZ247: 4 | BC247: 66 | BD247: 12 | BK247: State Minor Collector Roads | BL247: 18 | BM247: 18 | BN247: 0.003904555315 | BP247: County Highway Agency | BQ247: 957 | CA247: 1 | CB247: 73 | CC247: =IFERROR(IF(CA247=1,"1 am","1 am"),"1 am") -> 1 am | CD247: =IFERROR(GETPIVOTDATA("EA_Crashes",$CA$245,"Hour",1),0) -> 73 | CP247: Friday | CQ247: 778 | CR247: 778 | CS247: 0.1687635575 | DC247: 10 | DD247: 430 | DE247: October | DF247: =GETPIVOTDATA("EA_Crashes",$DC$244,"Month",10) -> 430 | DG247: 0.09327548807 | DS247: Train | DT247: 1 | DU247: 1 | DV247: 0.0002169197397
B248: 2012 | C248: 386 | D248: 65 | E248: 71 | F248: 17 | G248: 3 | H248: 542 | S248: 2011 | T248: 3 | AG248: =MID(CELL("filename",A6),FIND("]",CELL("filename",A6))+1,256) -> Emphasis Area Template | AJ248: =AG248 -> Emphasis Area Template | AK248: =W274 -> 0 | AL248: =MAX('Full Crash Data'!B:B) -> 0 | AY248: 18 | AZ248: 7 | BC248: 67 | BD248: 6 | BK248: City/Village Minor Collector Roads | BL248: 23 | BM248: 23 | BN248: 0.004989154013 | BP248: State Highway Agency | BQ248: 2078 | CA248: 2 | CB248: 75 | CC248: =IFERROR(IF(CA248=2,"2 am","2 am"),"2 am") -> 2 am | CD248: =IFERROR(GETPIVOTDATA("EA_Crashes",$CA$245,"Hour",2),0) -> 75 | CP248: Thursday | CQ248: 686 | CR248: 686 | CS248: 0.1488069414 | DC248: 9 | DD248: 344 | DE248: September | DF248: =GETPIVOTDATA("EA_Crashes",$DC$244,"Month",9) -> 344 | DG248: 0.07462039046 | DS248: Pedalcycles | DT248: 5 | DU248: 5 | DV248: 0.001084598698
B249: 2013 | C249: 398 | D249: 52 | E249: 67 | F249: 17 | G249: 3 | H249: 537 | S249: 2012 | T249: 3 | AG249: Pass Through Table | AJ249: =$AK$248&"-"&$AL$248 -> 0-0 | AY249: 19 | AZ249: 3 | BC249: 68 | BD249: 9 | BK249: City/Village Major Collector Roads | BL249: 98 | BM249: 98 | BN249: 0.02125813449 | BP249: Township Highway Agency | BQ249: 375 | CA249: 3 | CB249: 69 | CC249: =IFERROR(IF(CA249=3,"3 am","3 am"),"3 am") -> 3 am | CD249: =IFERROR(GETPIVOTDATA("EA_Crashes",$CA$245,"Hour",3),0) -> 69 | CP249: Wednesday | CQ249: 616 | CR249: 616 | CS249: 0.1336225597 | DC249: 8 | DD249: 358 | DE249: August | DF249: =GETPIVOTDATA("EA_Crashes",$DC$244,"Month",8) -> 358 | DG249: 0.07765726681 | DS249: Unknown | DT249: 15 | DU249: 15 | DV249: 0.003253796095
B250: 2014 | C250: 328 | D250: 67 | E250: 33 | F250: 13 | G250: 5 | H250: 446 | S250: 2013 | T250: 3 | AY250: 20 | AZ250: 9 | BC250: 69 | BD250: 4 | BK250: Unknown | BL250: 196 | BM250: 196 | BN250: 0.04251626898 | BP250: Grand Total | BQ250: 4610 | CA250: 4 | CB250: 70 | CC250: =IFERROR(IF(CA250=4,"4 am","4 am"),"4 am") -> 4 am | CD250: =IFERROR(GETPIVOTDATA("EA_Crashes",$CA$245,"Hour",4),0) -> 70 | CP250: Tuesday | CQ250: 659 | CR250: 659 | CS250: 0.1429501085 | DC250: 7 | DD250: 386 | DE250: July | DF250: =GETPIVOTDATA("EA_Crashes",$DC$244,"Month",7) -> 386 | DG250: 0.08373101952 | DS250: Pedestrian | DT250: 17 | DU250: 17 | DV250: 0.003687635575
B251: 2015 | C251: 349 | D251: 73 | E251: 29 | F251: 13 | G251: 3 | H251: 467 | S251: 2014 | T251: 5 | AY251: 21 | AZ251: 4 | BC251: 70 | BD251: 4 | BK251: County Major Collector Roads | BL251: 198 | BM251: 198 | BN251: 0.04295010846 | CA251: 5 | CB251: 120 | CC251: =IFERROR(IF(CA251=5,"5 am","5 am"),"5 am") -> 5 am | CD251: =IFERROR(GETPIVOTDATA("EA_Crashes",$CA$245,"Hour",5),0) -> 120 | CP251: Monday | CQ251: 632 | CR251: 632 | CS251: 0.1370932755 | DC251: 6 | DD251: 377 | DE251: June | DF251: =GETPIVOTDATA("EA_Crashes",$DC$244,"Month",6) -> 377 | DG251: 0.08177874187 | DS251: Sideswipe - Meeting | DT251: 18 | DU251: 18 | DV251: 0.003904555315
B252: 2016 | C252: 268 | D252: 59 | E252: 43 | F252: 13 | G252: 4 | H252: 387 | S252: 2015 | T252: 3 | AH252: Serious Inj % | AI252: Fatal % | AY252: 22 | AZ252: 7 | BC252: 71 | BD252: 3 | BK252: City/Village Local Roads | BL252: 267 | BM252: 267 | BN252: 0.0579175705 | CA252: 6 | CB252: 219 | CC252: =IFERROR(IF(CA252=6,"6 am","6 am"),"6 am") -> 6 am | CD252: =IFERROR(GETPIVOTDATA("EA_Crashes",$CA$245,"Hour",6),0) -> 219 | CP252: Sunday | CQ252: 547 | CR252: 547 | CS252: 0.1186550976 | DC252: 5 | DD252: 338 | DE252: May | DF252: =GETPIVOTDATA("EA_Crashes",$DC$244,"Month",5) -> 338 | DG252: 0.07331887202 | DS252: Other Object | DT252: 36 | DU252: 36 | DV252: 0.007809110629
B253: 2017 | C253: 264 | D253: 64 | E253: 36 | F253: 22 | G253: 5 | H253: 391 | S253: 2016 | T253: 4 | AG253: ROADWAY DEPARTURE | AH253: =HLOOKUP($AG$248, 'Emphasis Area Matrix'!$V$23:$AL$41, HLOOKUP(AG253,'Emphasis Area Matrix'!$V$2:$AL$21,20,FALSE), FALSE) ->  | AI253: =HLOOKUP($AG$248, 'Emphasis Area Matrix'!$V$2:$AL$21, HLOOKUP(AG253,'Emphasis Area Matrix'!$V$2:$AL$21,20,FALSE), FALSE) ->  | AY253: 23 | AZ253: 8 | BC253: 72 | BD253: 2 | BK253: #N/A | BL253: 307 | BM253: 307 | BN253: 0.06659436009 | CA253: 7 | CB253: 231 | CC253: =IFERROR(IF(CA253=7,"7 am","7 am"),"7 am") -> 7 am | CD253: =IFERROR(GETPIVOTDATA("EA_Crashes",$CA$245,"Hour",7),0) -> 231 | CP253: Grand Total | CQ253: 4610 | CR253: 4610 | CS253: 1 | DC253: 4 | DD253: 274 | DE253: April | DF253: =GETPIVOTDATA("EA_Crashes",$DC$244,"Month",4) -> 274 | DG253: 0.05943600868 | DS253: Other Non-Collision | DT253: 71 | DU253: 71 | DV253: 0.01540130152
B254: 2018 | C254: 325 | D254: 45 | E254: 31 | F254: 14 | G254: 3 | H254: 418 | S254: 2017 | T254: 5 | AG254: YOUNG DRIVER | AH254: =HLOOKUP($AG$248, 'Emphasis Area Matrix'!$V$23:$AL$41, HLOOKUP(AG254,'Emphasis Area Matrix'!$V$2:$AL$21,20,FALSE), FALSE) ->  | AI254: =HLOOKUP($AG$248, 'Emphasis Area Matrix'!$V$2:$AL$21, HLOOKUP(AG254,'Emphasis Area Matrix'!$V$2:$AL$21,20,FALSE), FALSE) ->  | AY254: 24 | AZ254: 3 | BC254: 73 | BD254: 2 | BK254: Township Local Roads | BL254: 368 | BM254: 368 | BN254: 0.07982646421 | CA254: 8 | CB254: 191 | CC254: =IFERROR(IF(CA254=8,"8 am","8 am"),"8 am") -> 8 am | CD254: =IFERROR(GETPIVOTDATA("EA_Crashes",$CA$245,"Hour",8),0) -> 191 | DC254: 3 | DD254: 311 | DE254: March | DF254: =GETPIVOTDATA("EA_Crashes",$DC$244,"Month",3) -> 311 | DG254: 0.06746203905 | DS254: Right Turn | DT254: 84 | DU254: 84 | DV254: 0.01822125813
B255: 2019 | C255: 302 | D255: 28 | E255: 55 | F255: 20 | G255: 2 | H255: 407 | S255: 2018 | T255: 3 | AG255: INTERSECTION RELATED | AH255: =HLOOKUP($AG$248, 'Emphasis Area Matrix'!$V$23:$AL$41, HLOOKUP(AG255,'Emphasis Area Matrix'!$V$2:$AL$21,20,FALSE), FALSE) ->  | AI255: =HLOOKUP($AG$248, 'Emphasis Area Matrix'!$V$2:$AL$21, HLOOKUP(AG255,'Emphasis Area Matrix'!$V$2:$AL$21,20,FALSE), FALSE) ->  | AY255: Grand Total | AZ255: 47 | BC255: 74 | BD255: 7 | BK255: County Local Roads | BL255: 444 | BM255: 444 | BN255: 0.09631236443 | CA255: 9 | CB255: 201 | CC255: =IFERROR(IF(CA255=9,"9 am","9 am"),"9 am") -> 9 am | CD255: =IFERROR(GETPIVOTDATA("EA_Crashes",$CA$245,"Hour",9),0) -> 201 | DC255: 2 | DD255: 409 | DE255: February | DF255: =GETPIVOTDATA("EA_Crashes",$DC$244,"Month",2) -> 409 | DG255: 0.08872017354 | DS255: Parked Vehicle | DT255: 89 | DU255: 89 | DV255: 0.01930585683
B256: Grand Total | C256: 3333 | D256: 567 | E256: 501 | F256: 173 | G256: 36 | H256: 4610 | S256: 2019 | T256: 2 | AG256: SPEED RELATED | AH256: =HLOOKUP($AG$248, 'Emphasis Area Matrix'!$V$23:$AL$41, HLOOKUP(AG256,'Emphasis Area Matrix'!$V$2:$AL$21,20,FALSE), FALSE) ->  | AI256: =HLOOKUP($AG$248, 'Emphasis Area Matrix'!$V$2:$AL$21, HLOOKUP(AG256,'Emphasis Area Matrix'!$V$2:$AL$21,20,FALSE), FALSE) ->  | BC256: 75 | BD256: 6 | BK256: State Major Collector Roads | BL256: 576 | BM256: 576 | BN256: 0.1249457701 | CA256: 10 | CB256: 212 | CC256: =IFERROR(IF(CA256=10,"10 am","10 am"),"10 am") -> 10 am | CD256: =IFERROR(GETPIVOTDATA("EA_Crashes",$CA$245,"Hour",10),0) -> 212 | DC256: 1 | DD256: 522 | DE256: January | DF256: =GETPIVOTDATA("EA_Crashes",$DC$244,"Month",1) -> 522 | DG256: 0.1132321041 | DS256: Head On | DT256: 129 | DU256: 129 | DV256: 0.02798264642
S257: Serious Injury Suspected | T257: 173 | AG257: NO RESTRAINTS | AH257: =HLOOKUP($AG$248, 'Emphasis Area Matrix'!$V$23:$AL$41, HLOOKUP(AG257,'Emphasis Area Matrix'!$V$2:$AL$21,20,FALSE), FALSE) ->  | AI257: =HLOOKUP($AG$248, 'Emphasis Area Matrix'!$V$2:$AL$21, HLOOKUP(AG257,'Emphasis Area Matrix'!$V$2:$AL$21,20,FALSE), FALSE) ->  | BC257: 76 | BD257: 7 | BK257: City/Village Minor Arterial Roads | BL257: 654 | BM257: 654 | BN257: 0.1418655098 | CA257: 11 | CB257: 209 | CC257: =IFERROR(IF(CA257=11,"11 am","11 am"),"11 am") -> 11 am | CD257: =IFERROR(GETPIVOTDATA("EA_Crashes",$CA$245,"Hour",11),0) -> 209 | DC257: Grand Total | DD257: 4610 | DF257: =GETPIVOTDATA("EA_Crashes",$DC$244) -> 4610 | DS257: Sideswipe - Passing | DT257: 178 | DU257: 178 | DV257: 0.03861171367
S258: 2010 | T258: 20 | AG258: OLDER DRIVER | AH258: =HLOOKUP($AG$248, 'Emphasis Area Matrix'!$V$23:$AL$41, HLOOKUP(AG258,'Emphasis Area Matrix'!$V$2:$AL$21,20,FALSE), FALSE) ->  | AI258: =HLOOKUP($AG$248, 'Emphasis Area Matrix'!$V$2:$AL$21, HLOOKUP(AG258,'Emphasis Area Matrix'!$V$2:$AL$21,20,FALSE), FALSE) ->  | BC258: 77 | BD258: 2 | BK258: State Minor Arterial Roads | BL258: 1460 | BM258: 1460 | BN258: 0.31670282 | CA258: 12 | CB258: 274 | CC258: =IFERROR(IF(CA258=12,"12 pm","12 pm"),"12 pm") -> 12 pm | CD258: =IFERROR(GETPIVOTDATA("EA_Crashes",$CA$245,"Hour",12),0) -> 274 | DS258: Overturning | DT258: 199 | DU258: 199 | DV258: 0.0431670282
S259: 2011 | T259: 24 | AG259: ALCOHOL RELATED | AH259: =HLOOKUP($AG$248, 'Emphasis Area Matrix'!$V$23:$AL$41, HLOOKUP(AG259,'Emphasis Area Matrix'!$V$2:$AL$21,20,FALSE), FALSE) ->  | AI259: =HLOOKUP($AG$248, 'Emphasis Area Matrix'!$V$2:$AL$21, HLOOKUP(AG259,'Emphasis Area Matrix'!$V$2:$AL$21,20,FALSE), FALSE) ->  | BC259: 78 | BD259: 2 | BK259: Grand Total | BL259: 4610 | BM259: 4610 | BN259: 1 | CA259: 13 | CB259: 279 | CC259: =IFERROR(IF(CA259=13,"1 pm","1 pm"),"1 pm") -> 1 pm | CD259: =IFERROR(GETPIVOTDATA("EA_Crashes",$CA$245,"Hour",13),0) -> 279 | DS259: Backing | DT259: 207 | DU259: 207 | DV259: 0.04490238612
S260: 2012 | T260: 17 | AG260: REAR END | AH260: =HLOOKUP($AG$248, 'Emphasis Area Matrix'!$V$23:$AL$41, HLOOKUP(AG260,'Emphasis Area Matrix'!$V$2:$AL$21,20,FALSE), FALSE) ->  | AI260: =HLOOKUP($AG$248, 'Emphasis Area Matrix'!$V$2:$AL$21, HLOOKUP(AG260,'Emphasis Area Matrix'!$V$2:$AL$21,20,FALSE), FALSE) ->  | BC260: 79 | BD260: 4 | CA260: 14 | CB260: 337 | CC260: =IFERROR(IF(CA260=14,"2 pm","2 pm"),"2 pm") -> 2 pm | CD260: =IFERROR(GETPIVOTDATA("EA_Crashes",$CA$245,"Hour",14),0) -> 337 | DS260: Left Turn | DT260: 248 | DU260: 248 | DV260: 0.05379609544
S261: 2013 | T261: 17 | AG261: MOTORCYCLE RELATED | AH261: =HLOOKUP($AG$248, 'Emphasis Area Matrix'!$V$23:$AL$41, HLOOKUP(AG261,'Emphasis Area Matrix'!$V$2:$AL$21,20,FALSE), FALSE) ->  | AI261: =HLOOKUP($AG$248, 'Emphasis Area Matrix'!$V$2:$AL$21, HLOOKUP(AG261,'Emphasis Area Matrix'!$V$2:$AL$21,20,FALSE), FALSE) ->  | BC261: 81 | BD261: 4 | CA261: 15 | CB261: 350 | CC261: =IFERROR(IF(CA261=15,"3 pm","3 pm"),"3 pm") -> 3 pm | CD261: =IFERROR(GETPIVOTDATA("EA_Crashes",$CA$245,"Hour",15),0) -> 350 | DS261: Animal | DT261: 374 | DU261: 374 | DV261: 0.08112798265
S262: 2014 | T262: 13 | AG262: DRUG RELATED | AH262: =HLOOKUP($AG$248, 'Emphasis Area Matrix'!$V$23:$AL$41, HLOOKUP(AG262,'Emphasis Area Matrix'!$V$2:$AL$21,20,FALSE), FALSE) ->  | AI262: =HLOOKUP($AG$248, 'Emphasis Area Matrix'!$V$2:$AL$21, HLOOKUP(AG262,'Emphasis Area Matrix'!$V$2:$AL$21,20,FALSE), FALSE) ->  | BC262: 82 | BD262: 4 | CA262: 16 | CB262: 327 | CC262: =IFERROR(IF(CA262=16,"4 pm","4 pm"),"4 pm") -> 4 pm | CD262: =IFERROR(GETPIVOTDATA("EA_Crashes",$CA$245,"Hour",16),0) -> 327 | DS262: Angle | DT262: 437 | DU262: 437 | DV262: 0.09479392625
S263: 2015 | T263: 13 | AG263: PEDESTRIAN RELATED | AH263: =HLOOKUP($AG$248, 'Emphasis Area Matrix'!$V$23:$AL$41, HLOOKUP(AG263,'Emphasis Area Matrix'!$V$2:$AL$21,20,FALSE), FALSE) ->  | AI263: =HLOOKUP($AG$248, 'Emphasis Area Matrix'!$V$2:$AL$21, HLOOKUP(AG263,'Emphasis Area Matrix'!$V$2:$AL$21,20,FALSE), FALSE) ->  | BC263: 83 | BD263: 2 | CA263: 17 | CB263: 272 | CC263: =IFERROR(IF(CA263=17,"5 pm","5 pm"),"5 pm") -> 5 pm | CD263: =IFERROR(GETPIVOTDATA("EA_Crashes",$CA$245,"Hour",17),0) -> 272 | DS263: Rear End | DT263: 688 | DU263: 688 | DV263: 0.1492407809
S264: 2016 | T264: 13 | AG264: DISTRACTED DRIVER | AH264: =HLOOKUP($AG$248, 'Emphasis Area Matrix'!$V$23:$AL$41, HLOOKUP(AG264,'Emphasis Area Matrix'!$V$2:$AL$21,20,FALSE), FALSE) ->  | AI264: =HLOOKUP($AG$248, 'Emphasis Area Matrix'!$V$2:$AL$21, HLOOKUP(AG264,'Emphasis Area Matrix'!$V$2:$AL$21,20,FALSE), FALSE) ->  | BC264: 84 | BD264: 2 | CA264: 18 | CB264: 212 | CC264: =IFERROR(IF(CA264=18,"6 pm","6 pm"),"6 pm") -> 6 pm | CD264: =IFERROR(GETPIVOTDATA("EA_Crashes",$CA$245,"Hour",18),0) -> 212 | DS264: Fixed Object | DT264: 1813 | DU264: 1813 | DV264: 0.3932754881
S265: 2017 | T265: 22 | AG265: RAILROAD CROSSING | AH265: =HLOOKUP($AG$248, 'Emphasis Area Matrix'!$V$23:$AL$41, HLOOKUP(AG265,'Emphasis Area Matrix'!$V$2:$AL$21,20,FALSE), FALSE) ->  | AI265: =HLOOKUP($AG$248, 'Emphasis Area Matrix'!$V$2:$AL$21, HLOOKUP(AG265,'Emphasis Area Matrix'!$V$2:$AL$21,20,FALSE), FALSE) ->  | BC265: 85 | BD265: 2 | CA265: 19 | CB265: 200 | CC265: =IFERROR(IF(CA265=19,"7 pm","7 pm"),"7 pm") -> 7 pm | CD265: =IFERROR(GETPIVOTDATA("EA_Crashes",$CA$245,"Hour",19),0) -> 200 | DS265: Grand Total | DT265: 4610 | DU265: 4610 | DV265: 1
S266: 2018 | T266: 14 | AG266: BICYCLE RELATED | AH266: =HLOOKUP($AG$248, 'Emphasis Area Matrix'!$V$23:$AL$41, HLOOKUP(AG266,'Emphasis Area Matrix'!$V$2:$AL$21,20,FALSE), FALSE) ->  | AI266: =HLOOKUP($AG$248, 'Emphasis Area Matrix'!$V$2:$AL$21, HLOOKUP(AG266,'Emphasis Area Matrix'!$V$2:$AL$21,20,FALSE), FALSE) ->  | BC266: 86 | BD266: 4 | CA266: 20 | CB266: 148 | CC266: =IFERROR(IF(CA266=20,"8 pm","8 pm"),"8 pm") -> 8 pm | CD266: =IFERROR(GETPIVOTDATA("EA_Crashes",$CA$245,"Hour",20),0) -> 148
S267: 2019 | T267: 20 | AG267: WORK ZONE RELATED | AH267: =HLOOKUP($AG$248, 'Emphasis Area Matrix'!$V$23:$AL$41, HLOOKUP(AG267,'Emphasis Area Matrix'!$V$2:$AL$21,20,FALSE), FALSE) ->  | AI267: =HLOOKUP($AG$248, 'Emphasis Area Matrix'!$V$2:$AL$21, HLOOKUP(AG267,'Emphasis Area Matrix'!$V$2:$AL$21,20,FALSE), FALSE) ->  | BC267: 88 | BD267: 1 | CA267: 21 | CB267: 158 | CC267: =IFERROR(IF(CA267=21,"9 pm","9 pm"),"9 pm") -> 9 pm | CD267: =IFERROR(GETPIVOTDATA("EA_Crashes",$CA$245,"Hour",21),0) -> 158
S268: Grand Total | T268: 209 | AG268: MARIJUANA RELATED | AH268: =HLOOKUP($AG$248, 'Emphasis Area Matrix'!$V$23:$AL$41, HLOOKUP(AG268,'Emphasis Area Matrix'!$V$2:$AL$21,20,FALSE), FALSE) ->  | AI268: =HLOOKUP($AG$248, 'Emphasis Area Matrix'!$V$2:$AL$21, HLOOKUP(AG268,'Emphasis Area Matrix'!$V$2:$AL$21,20,FALSE), FALSE) ->  | BC268: 89 | BD268: 1 | CA268: 22 | CB268: 147 | CC268: =IFERROR(IF(CA268=22,"10 pm","10 pm"),"10 pm") -> 10 pm | CD268: =IFERROR(GETPIVOTDATA("EA_Crashes",$CA$245,"Hour",22),0) -> 147
AG269: ACTIVE TRANSPORTATION RELATED | AH269: =HLOOKUP($AG$248, 'Emphasis Area Matrix'!$V$23:$AL$41, HLOOKUP(AG269,'Emphasis Area Matrix'!$V$2:$AL$21,20,FALSE), FALSE) ->  | AI269: =HLOOKUP($AG$248, 'Emphasis Area Matrix'!$V$2:$AL$21, HLOOKUP(AG269,'Emphasis Area Matrix'!$V$2:$AL$21,20,FALSE), FALSE) ->  | BC269: 92 | BD269: 1 | CA269: 23 | CB269: 116 | CC269: =IFERROR(IF(CA269=23,"11 pm","11 pm"),"11 pm") -> 11 pm | CD269: =IFERROR(GETPIVOTDATA("EA_Crashes",$CA$245,"Hour",23),0) -> 116
BC270: 98 | BD270: 1 | CA270: Grand Total | CB270: 4610
BC271: Grand Total | BD271: 99
W272: Pass Through Table | Z272: =SLOPE(X274:X283,W274:W283) -> -0.09696969697 | AA272: =SLOPE(AA278:AA283,W278:W283) -> -0.3828571429
W273: Year | X273: Fatalities | Y273: Serious Injuries | Z273: Fatalities 5yr avg | AA273: Serious Inj 5yr avg | AB273: Ser Inj 5yr avg Pro
W274: =MIN('Full Crash Data'!B:B) -> 0 | X274: =IFERROR(GETPIVOTDATA("EA_Crashes",$S$245,"Year",2010,"Severity","Fatal"),0) -> 5 | Y274: =IFERROR(GETPIVOTDATA("EA_Crashes",$S$245,"Year",2010,"Severity","Serious Injury Suspected"),0) -> 20
W275: =W274+1 -> 1 | X275: =IFERROR(GETPIVOTDATA("EA_Crashes",$S$245,"Year",2011,"Severity","Fatal"),0) -> 3 | Y275: =IFERROR(GETPIVOTDATA("EA_Crashes",$S$245,"Year",2011,"Severity","Serious Injury Suspected"),0) -> 24
W276: 2 | X276: =IFERROR(GETPIVOTDATA("EA_Crashes",$S$245,"Year",2012,"Severity","Fatal"),0) -> 3 | Y276: =IFERROR(GETPIVOTDATA("EA_Crashes",$S$245,"Year",2012,"Severity","Serious Injury Suspected"),0) -> 17
W277: 3 | X277: =IFERROR(GETPIVOTDATA("EA_Crashes",$S$245,"Year",2013,"Severity","Fatal"),0) -> 3 | Y277: =IFERROR(GETPIVOTDATA("EA_Crashes",$S$245,"Year",2013,"Severity","Serious Injury Suspected"),0) -> 17
W278: 4 | X278: =IFERROR(GETPIVOTDATA("EA_Crashes",$S$245,"Year",2014,"Severity","Fatal"),0) -> 5 | Y278: =IFERROR(GETPIVOTDATA("EA_Crashes",$S$245,"Year",2014,"Severity","Serious Injury Suspected"),0) -> 13 | Z278: =AVERAGE(X274:X278) -> 3.8 | AA278: 18.2
W279: 5 | X279: =IFERROR(GETPIVOTDATA("EA_Crashes",$S$245,"Year",2015,"Severity","Fatal"),0) -> 3 | Y279: =IFERROR(GETPIVOTDATA("EA_Crashes",$S$245,"Year",2015,"Severity","Serious Injury Suspected"),0) -> 13 | Z279: 3.4 | AA279: 16.8
W280: 6 | X280: =IFERROR(GETPIVOTDATA("EA_Crashes",$S$245,"Year",2016,"Severity","Fatal"),0) -> 4 | Y280: =IFERROR(GETPIVOTDATA("EA_Crashes",$S$245,"Year",2016,"Severity","Serious Injury Suspected"),0) -> 13 | Z280: 3.6 | AA280: 14.6
W281: 7 | X281: =IFERROR(GETPIVOTDATA("EA_Crashes",$S$245,"Year",2017,"Severity","Fatal"),0) -> 5 | Y281: =IFERROR(GETPIVOTDATA("EA_Crashes",$S$245,"Year",2017,"Severity","Serious Injury Suspected"),0) -> 22 | Z281: 4 | AA281: 15.6
W282: 8 | X282: =IFERROR(GETPIVOTDATA("EA_Crashes",$S$245,"Year",2018,"Severity","Fatal"),0) -> 3 | Y282: =IFERROR(GETPIVOTDATA("EA_Crashes",$S$245,"Year",2018,"Severity","Serious Injury Suspected"),0) -> 14 | Z282: 4 | AA282: 15
W283: 9 | X283: =IFERROR(GETPIVOTDATA("EA_Crashes",$S$245,"Year",2019,"Severity","Fatal"),0) -> 2 | Y283: =IFERROR(GETPIVOTDATA("EA_Crashes",$S$245,"Year",2019,"Severity","Serious Injury Suspected"),0) -> 20 | Z283: 3.4 | AA283: 16.4
W284: 10 | Z284: =AVERAGE($X$279:$X$283)+$Z$272 -> 3.303030303 | AB284: =AVERAGE($Y$279:$Y$283)+$AA$272 -> 16.01714286
W285: 11 | Z285: =Z284+$Z$272 -> 3.206060606 | AB285: =AB284+$AA$272 -> 15.63428571
W286: 12 | Z286: =Z285+$Z$272 -> 3.109090909 | AB286: =AB285+$AA$272 -> 15.25142857
W287: 13 | Z287: =Z286+$Z$272 -> 3.012121212 | AB287: 14.86857143
W288: 14 | Z288: =Z287+$Z$272 -> 2.915151515 | AB288: 14.48571429
W289: 15 | Z289: =Z288+$Z$272 -> 2.818181818 | AB289: 14.10285714

Sheet Emphasis Area Matrix (hidden)
B1: CARROLL_GCAT_SPAM | C1: 69 | D1: 77 | E1: 70 | F1: 75 | G1: 17 | H1: 76 | I1: 71 | J1: 66 | K1: 74 | L1: 73 | M1: 67 | N1: 79 | O1: 68 | P1: 80 | Q1: 78 | R1: 72 | S1: 82 | U1: 1 | V1: 2 | W1: 3 | X1: 4 | Y1: 5 | Z1: 6 | AA1: 7 | AB1: 8 | AC1: 9 | AD1: 10 | AE1: 11 | AF1: 12 | AG1: 13 | AH1: 14 | AI1: 15 | AJ1: 16 | AK1: 17 | AL1: 18
B2: Emphasis Area Fatal Crashes | C2: ROADWAY DEPARTURE | D2: YOUNG DRIVER | E2: INTERSECTION RELATED | F2: SPEED RELATED | G2: NO RESTRAINTS | H2: OLDER DRIVER | I2: ALCOHOL RELATED | J2: REAR END | K2: MOTORCYCLE RELATED | L2: DRUG RELATED | M2: PEDESTRIAN RELATED | N2: DISTRACTED DRIVER | O2: RAILROAD CROSSING | P2: BICYCLE RELATED | Q2: WORK ZONE RELATED | R2: MARIJUANA RELATED | S2: ACTIVE TRANSPORTATION RELATED | T2: 1 | U2: Emphasis Area Fatal Crashes NOTE: Top Column Headers are Primary Axis | V2: ROADWAY DEPARTURE | W2: YOUNG DRIVER | X2: INTERSECTION RELATED | Y2: SPEED RELATED | Z2: NO RESTRAINTS | AA2: OLDER DRIVER | AB2: ALCOHOL RELATED | AC2: REAR END | AD2: MOTORCYCLE RELATED | AE2: DRUG RELATED | AF2: PEDESTRIAN RELATED | AG2: DISTRACTED DRIVER | AH2: RAILROAD CROSSING | AI2: BICYCLE RELATED | AJ2: WORK ZONE RELATED | AK2: MARIJUANA RELATED | AL2: ACTIVE TRANSPORTATION RELATED
T3: 2
A4: 69 | B4: ROADWAY DEPARTURE | C4: =COUNTIFS(INDEX(CrashDataArea,,C$1), 1,INDEX(CrashDataArea,,$A4), 1,INDEX(CrashDataArea,,3), "Fatal") ->  | G4: =COUNTIFS(INDEX(CrashDataArea,,G$1), ">0",INDEX(CrashDataArea,,$A4), 1,INDEX(CrashDataArea,,3), "Fatal") ->  | H4: =COUNTIFS(INDEX(CrashDataArea,,H$1), 1,INDEX(CrashDataArea,,$A4), 1,INDEX(CrashDataArea,,3), "Fatal") ->  | T4: 3 | U4: ROADWAY DEPARTURE | V4: =IFERROR(C4/$C$4,0) -> 0 | W4: =IFERROR(D4/$D$5,0) -> 0 | X4: =IFERROR(E4/$E$6,0) -> 0 | Y4: =IFERROR(F4/$F$7,0) -> 0 | Z4: =IFERROR(G4/$G$8,0) -> 0 | AA4: =IFERROR(H4/$H$9,0) -> 0 | AB4: =IFERROR(I4/$I$10,0) -> 0 | AC4: =IFERROR(J4/$J$11,0) -> 0 | AD4: =IFERROR(K4/$K$12,0) -> 0 | AE4: =IFERROR(L4/$L$13,0) -> 0 | AF4: =IFERROR(M4/$M$14,0) -> 0 | AG4: =IFERROR(N4/$N$15,0) -> 0 | AH4: =IFERROR(O4/$O$16,0) -> 0 | AI4: =IFERROR(P4/$P$17,0) -> 0 | AJ4: =IFERROR(Q4/$Q$18,0) -> 0 | AK4: =IFERROR(R4/$R$19,0) -> 0 | AL4: =IFERROR(S4/$S$20,0) -> 0
A5: 77 | B5: YOUNG DRIVER | G5: =COUNTIFS(INDEX(CrashDataArea,,G$1), ">0",INDEX(CrashDataArea,,$A5), 1,INDEX(CrashDataArea,,3), "Fatal") ->  | T5: 4 | U5: YOUNG DRIVER | V5: =IFERROR(C5/$C$4,0) -> 0 | W5: =IFERROR(D5/$D$5,0) -> 0 | X5: 0 | Y5: 0 | Z5: 0 | AA5: 0 | AB5: 0 | AC5: 0 | AD5: 0 | AE5: 0 | AF5: 0 | AG5: 0 | AH5: 0 | AI5: 0 | AJ5: 0 | AK5: 0 | AL5: =IFERROR(S5/$S$20,0) -> 0
A6: 70 | B6: INTERSECTION RELATED | G6: =COUNTIFS(INDEX(CrashDataArea,,G$1), ">0",INDEX(CrashDataArea,,$A6), 1,INDEX(CrashDataArea,,3), "Fatal") ->  | T6: 5 | U6: INTERSECTION RELATED | V6: 0 | W6: =IFERROR(D6/$D$5,0) -> 0 | X6: =IFERROR(E6/$E$6,0) -> 0 | Y6: 0 | Z6: 0 | AA6: 0 | AB6: 0 | AC6: 0 | AD6: 0 | AE6: 0 | AF6: 0 | AG6: 0 | AH6: 0 | AI6: 0 | AJ6: 0 | AK6: 0 | AL6: 0
A7: 75 | B7: SPEED RELATED | G7: =COUNTIFS(INDEX(CrashDataArea,,G$1), ">0",INDEX(CrashDataArea,,$A7), 1,INDEX(CrashDataArea,,3), "Fatal") ->  | T7: 6 | U7: SPEED RELATED | V7: 0 | W7: 0 | X7: =IFERROR(E7/$E$6,0) -> 0 | Y7: =IFERROR(F7/$F$7,0) -> 0 | Z7: 0 | AA7: 0 | AB7: 0 | AC7: 0 | AD7: 0 | AE7: 0 | AF7: 0 | AG7: 0 | AH7: 0 | AI7: 0 | AJ7: 0 | AK7: 0 | AL7: 0
A8: 17 | B8: NO RESTRAINTS | C8: =COUNTIFS(INDEX(CrashDataArea,,C$1), 1,INDEX(CrashDataArea,,$A8), ">0",INDEX(CrashDataArea,,3), "Fatal") ->  | D8: =COUNTIFS(INDEX(CrashDataArea,,D$1), 1,INDEX(CrashDataArea,,$A8), ">0",INDEX(CrashDataArea,,3), "Fatal") ->  | E8: =COUNTIFS(INDEX(CrashDataArea,,E$1), 1,INDEX(CrashDataArea,,$A8), ">0",INDEX(CrashDataArea,,3), "Fatal") ->  | F8: =COUNTIFS(INDEX(CrashDataArea,,F$1), 1,INDEX(CrashDataArea,,$A8), ">0",INDEX(CrashDataArea,,3), "Fatal") ->  | G8: =COUNTIFS(INDEX(CrashDataArea,,G$1),">0",INDEX(CrashDataArea,,$A8), ">0",INDEX(CrashDataArea,,3), "Fatal") ->  | H8: =COUNTIFS(INDEX(CrashDataArea,,H$1), 1,INDEX(CrashDataArea,,$A8), ">0",INDEX(CrashDataArea,,3), "Fatal") ->  | T8: 7 | U8: NO RESTRAINTS | V8: 0 | W8: 0 | X8: 0 | Y8: =IFERROR(F8/$F$7,0) -> 0 | Z8: =IFERROR(G8/$G$8,0) -> 0 | AA8: 0 | AB8: 0 | AC8: 0 | AD8: 0 | AE8: 0 | AF8: 0 | AG8: 0 | AH8: 0 | AI8: 0 | AJ8: 0 | AK8: 0 | AL8: 0
A9: 76 | B9: OLDER DRIVER | C9: =COUNTIFS(INDEX(CrashDataArea,,C$1), 1,INDEX(CrashDataArea,,$A9), 1,INDEX(CrashDataArea,,3), "Fatal") ->  | G9: =COUNTIFS(INDEX(CrashDataArea,,G$1), ">0",INDEX(CrashDataArea,,$A9), 1,INDEX(CrashDataArea,,3), "Fatal") ->  | H9: =COUNTIFS(INDEX(CrashDataArea,,H$1), 1,INDEX(CrashDataArea,,$A9), 1,INDEX(CrashDataArea,,3), "Fatal") ->  | T9: 8 | U9: OLDER DRIVER | V9: 0 | W9: 0 | X9: 0 | Y9: 0 | Z9: =IFERROR(G9/$G$8,0) -> 0 | AA9: =IFERROR(H9/$H$9,0) -> 0 | AB9: 0 | AC9: 0 | AD9: 0 | AE9: 0 | AF9: 0 | AG9: 0 | AH9: 0 | AI9: 0 | AJ9: 0 | AK9: 0 | AL9: 0
A10: 71 | B10: ALCOHOL RELATED | T10: 9 | U10: ALCOHOL RELATED | V10: 0 | W10: 0 | X10: 0 | Y10: 0 | Z10: 0 | AA10: =IFERROR(H10/$H$9,0) -> 0 | AB10: =IFERROR(I10/$I$10,0) -> 0 | AC10: 0 | AD10: 0 | AE10: 0 | AF10: 0 | AG10: 0 | AH10: 0 | AI10: 0 | AJ10: 0 | AK10: 0 | AL10: 0
A11: 66 | B11: REAR END | T11: 10 | U11: REAR END | V11: 0 | W11: 0 | X11: 0 | Y11: 0 | Z11: 0 | AA11: 0 | AB11: =IFERROR(I11/$I$10,0) -> 0 | AC11: =IFERROR(J11/$J$11,0) -> 0 | AD11: 0 | AE11: 0 | AF11: 0 | AG11: 0 | AH11: 0 | AI11: 0 | AJ11: 0 | AK11: 0 | AL11: 0
A12: 74 | B12: MOTORCYCLE RELATED | T12: 11 | U12: MOTORCYCLE RELATED | V12: 0 | W12: 0 | X12: 0 | Y12: 0 | Z12: 0 | AA12: 0 | AB12: 0 | AC12: =IFERROR(J12/$J$11,0) -> 0 | AD12: =IFERROR(K12/$K$12,0) -> 0 | AE12: 0 | AF12: 0 | AG12: 0 | AH12: 0 | AI12: 0 | AJ12: 0 | AK12: 0 | AL12: 0
A13: 73 | B13: DRUG RELATED | T13: 12 | U13: DRUG RELATED | V13: 0 | W13: 0 | X13: 0 | Y13: 0 | Z13: 0 | AA13: 0 | AB13: 0 | AC13: 0 | AD13: =IFERROR(K13/$K$12,0) -> 0 | AE13: =IFERROR(L13/$L$13,0) -> 0 | AF13: 0 | AG13: 0 | AH13: 0 | AI13: 0 | AJ13: 0 | AK13: 0 | AL13: 0
A14: 67 | B14: PEDESTRIAN RELATED | T14: 13 | U14: PEDESTRIAN RELATED | V14: 0 | W14: 0 | X14: 0 | Y14: 0 | Z14: 0 | AA14: 0 | AB14: 0 | AC14: 0 | AD14: 0 | AE14: =IFERROR(L14/$L$13,0) -> 0 | AF14: =IFERROR(M14/$M$14,0) -> 0 | AG14: 0 | AH14: 0 | AI14: 0 | AJ14: 0 | AK14: 0 | AL14: 0
A15: 79 | B15: DISTRACTED DRIVER | T15: 14 | U15: DISTRACTED DRIVER | V15: 0 | W15: 0 | X15: 0 | Y15: 0 | Z15: 0 | AA15: 0 | AB15: 0 | AC15: 0 | AD15: 0 | AE15: 0 | AF15: =IFERROR(M15/$M$14,0) -> 0 | AG15: =IFERROR(N15/$N$15,0) -> 0 | AH15: 0 | AI15: 0 | AJ15: 0 | AK15: 0 | AL15: 0
A16: 68 | B16: RAILROAD CROSSING | T16: 15 | U16: RAILROAD CROSSING | V16: 0 | W16: 0 | X16: 0 | Y16: 0 | Z16: 0 | AA16: 0 | AB16: 0 | AC16: 0 | AD16: 0 | AE16: 0 | AF16: 0 | AG16: =IFERROR(N16/$N$15,0) -> 0 | AH16: =IFERROR(O16/$O$16,0) -> 0 | AI16: 0 | AJ16: 0 | AK16: 0 | AL16: 0
A17: 80 | B17: BICYCLE RELATED | T17: 16 | U17: BICYCLE RELATED | V17: 0 | W17: 0 | X17: 0 | Y17: 0 | Z17: 0 | AA17: 0 | AB17: 0 | AC17: 0 | AD17: 0 | AE17: 0 | AF17: 0 | AG17: 0 | AH17: =IFERROR(O17/$O$16,0) -> 0 | AI17: =IFERROR(P17/$P$17,0) -> 0 | AJ17: 0 | AK17: 0 | AL17: 0
A18: 78 | B18: WORK ZONE RELATED | T18: 17 | U18: WORK ZONE RELATED | V18: 0 | W18: 0 | X18: 0 | Y18: 0 | Z18: 0 | AA18: 0 | AB18: 0 | AC18: 0 | AD18: 0 | AE18: 0 | AF18: 0 | AG18: 0 | AH18: 0 | AI18: =IFERROR(P18/$P$17,0) -> 0 | AJ18: =IFERROR(Q18/$Q$18,0) -> 0 | AK18: 0 | AL18: 0
A19: 72 | B19: MARIJUANA RELATED | T19: 18 | U19: MARIJUANA RELATED | V19: 0 | W19: 0 | X19: 0 | Y19: 0 | Z19: 0 | AA19: 0 | AB19: 0 | AC19: 0 | AD19: 0 | AE19: 0 | AF19: 0 | AG19: 0 | AH19: 0 | AI19: 0 | AJ19: =IFERROR(Q19/$Q$18,0) -> 0 | AK19: =IFERROR(R19/$R$19,0) -> 0 | AL19: 0
A20: 82 | B20: ACTIVE TRANSPORTATION RELATED | T20: 19 | U20: ACTIVE TRANSPORTATION RELATED | V20: =IFERROR(C20/$C$4,0) -> 0 | W20: =IFERROR(D20/$D$5,0) -> 0 | X20: =IFERROR(E20/$E$6,0) -> 0 | Y20: =IFERROR(F20/$F$7,0) -> 0 | Z20: =IFERROR(G20/$G$8,0) -> 0 | AA20: =IFERROR(H20/$H$9,0) -> 0 | AB20: =IFERROR(I20/$I$10,0) -> 0 | AC20: =IFERROR(J20/$J$11,0) -> 0 | AD20: =IFERROR(K20/$K$12,0) -> 0 | AE20: =IFERROR(L20/$L$13,0) -> 0 | AF20: =IFERROR(M20/$M$14,0) -> 0 | AG20: =IFERROR(N20/$N$15,0) -> 0 | AH20: =IFERROR(O20/$O$16,0) -> 0 | AI20: =IFERROR(P20/$P$17,0) -> 0 | AJ20: =IFERROR(Q20/$Q$18,0) -> 0 | AK20: =IFERROR(R20/$R$19,0) -> 0 | AL20: 0
T21: 20 | V21: 3 | W21: 4 | X21: 5 | Y21: 6 | Z21: 7 | AA21: 8 | AB21: 9 | AC21: 10 | AD21: 11 | AE21: 12 | AF21: 13 | AG21: 14 | AH21: 15 | AI21: 16 | AJ21: 17 | AK21: 18 | AL21: 19
C22: 69 | D22: 77 | E22: 70 | F22: 75 | G22: 17 | H22: 76 | I22: 71 | J22: 66 | K22: 74 | L22: 73 | M22: 67 | N22: 79 | O22: 68 | P22: 80 | Q22: 78 | R22: 72 | S22: 82
B23: Emphasis Area Severe Injury Crashes | C23: ROADWAY DEPARTURE | D23: YOUNG DRIVER | E23: INTERSECTION RELATED | F23: SPEED RELATED | G23: NO RESTRAINTS | H23: OLDER DRIVER | I23: ALCOHOL RELATED | J23: REAR END | K23: MOTORCYCLE RELATED | L23: DRUG RELATED | M23: PEDESTRIAN RELATED | N23: DISTRACTED DRIVER | O23: RAILROAD CROSSING | P23: BICYCLE RELATED | Q23: WORK ZONE RELATED | R23: MARIJUANA RELATED | S23: ACTIVE TRANSPORTATION RELATED | U23: Emphasis Area Severe Injury Crashes NOTE: Top Column Headers are Primary Axis | V23: ROADWAY DEPARTURE | W23: YOUNG DRIVER | X23: INTERSECTION RELATED | Y23: SPEED RELATED | Z23: NO RESTRAINTS | AA23: OLDER DRIVER | AB23: ALCOHOL RELATED | AC23: REAR END | AD23: MOTORCYCLE RELATED | AE23: DRUG RELATED | AF23: PEDESTRIAN RELATED | AG23: DISTRACTED DRIVER | AH23: RAILROAD CROSSING | AI23: BICYCLE RELATED | AJ23: WORK ZONE RELATED | AK23: MARIJUANA RELATED | AL23: ACTIVE TRANSPORTATION RELATED
A25: 69 | B25: ROADWAY DEPARTURE | C25: =COUNTIFS(INDEX(CrashDataArea,,C$1), 1,INDEX(CrashDataArea,,$A25), 1,INDEX(CrashDataArea,,3), "Serious Injury Suspected") ->  | G25: =COUNTIFS(INDEX(CrashDataArea,,G$1), ">0",INDEX(CrashDataArea,,$A25), 1,INDEX(CrashDataArea,,3), "Serious Injury Suspected") ->  | H25: =COUNTIFS(INDEX(CrashDataArea,,H$1), 1,INDEX(CrashDataArea,,$A25), 1,INDEX(CrashDataArea,,3), "Serious Injury Suspected") ->  | U25: ROADWAY DEPARTURE | V25: =IFERROR(C25/$C$25,0) -> 0 | W25: =IFERROR(D25/$D$26,0) -> 0 | X25: =IFERROR(E25/$E$27,0) -> 0 | Y25: =IFERROR(F25/$F$28,0) -> 0 | Z25: =IFERROR(G25/$G$29,0) -> 0 | AA25: =IFERROR(H25/$H$30,0) -> 0 | AB25: =IFERROR(I25/$I$31,0) -> 0 | AC25: =IFERROR(J25/$J$32,0) -> 0 | AD25: =IFERROR(K25/$K$33,0) -> 0 | AE25: =IFERROR(L25/$L$34,0) -> 0 | AF25: =IFERROR(M25/$M$35,0) -> 0 | AG25: =IFERROR(N25/$N$36,0) -> 0 | AH25: =IFERROR(O25/$O$37,0) -> 0 | AI25: =IFERROR(P25/$P$38,0) -> 0 | AJ25: =IFERROR(Q25/$Q$39,0) -> 0 | AK25: =IFERROR(R25/$R$40,0) -> 0 | AL25: =IFERROR(S25/$S$41,0) -> 0
A26: 77 | B26: YOUNG DRIVER | G26: =COUNTIFS(INDEX(CrashDataArea,,G$1), ">0",INDEX(CrashDataArea,,$A26), 1,INDEX(CrashDataArea,,3), "Serious Injury Suspected") ->  | U26: YOUNG DRIVER | V26: =IFERROR(C26/$C$25,0) -> 0 | W26: =IFERROR(D26/$D$26,0) -> 0 | X26: 0 | Y26: 0 | Z26: 0 | AA26: 0 | AB26: 0 | AC26: 0 | AD26: 0 | AE26: 0 | AF26: 0 | AG26: 0 | AH26: 0 | AI26: 0 | AJ26: 0 | AK26: 0 | AL26: =IFERROR(S26/$S$41,0) -> 0
A27: 70 | B27: INTERSECTION RELATED | G27: =COUNTIFS(INDEX(CrashDataArea,,G$1), ">0",INDEX(CrashDataArea,,$A27), 1,INDEX(CrashDataArea,,3), "Serious Injury Suspected") ->  | U27: INTERSECTION RELATED | V27: 0 | W27: =IFERROR(D27/$D$26,0) -> 0 | X27: =IFERROR(E27/$E$27,0) -> 0 | Y27: 0 | Z27: 0 | AA27: 0 | AB27: 0 | AC27: 0 | AD27: 0 | AE27: 0 | AF27: 0 | AG27: 0 | AH27: 0 | AI27: 0 | AJ27: 0 | AK27: 0 | AL27: 0
A28: 75 | B28: SPEED RELATED | G28: =COUNTIFS(INDEX(CrashDataArea,,G$1), ">0",INDEX(CrashDataArea,,$A28), 1,INDEX(CrashDataArea,,3), "Serious Injury Suspected") ->  | U28: SPEED RELATED | V28: 0 | W28: 0 | X28: =IFERROR(E28/$E$27,0) -> 0 | Y28: =IFERROR(F28/$F$28,0) -> 0 | Z28: 0 | AA28: 0 | AB28: 0 | AC28: 0 | AD28: 0 | AE28: 0 | AF28: 0 | AG28: 0 | AH28: 0 | AI28: 0 | AJ28: 0 | AK28: 0 | AL28: 0
A29: 17 | B29: NO RESTRAINTS | C29: =COUNTIFS(INDEX(CrashDataArea,,C$1), 1,INDEX(CrashDataArea,,$A29), ">0",INDEX(CrashDataArea,,3), "Serious Injury Suspected") ->  | D29: =COUNTIFS(INDEX(CrashDataArea,,D$1), 1,INDEX(CrashDataArea,,$A29), ">0",INDEX(CrashDataArea,,3), "Serious Injury Suspected") ->  | E29: =COUNTIFS(INDEX(CrashDataArea,,E$1), 1,INDEX(CrashDataArea,,$A29), ">0",INDEX(CrashDataArea,,3), "Serious Injury Suspected") ->  | F29: =COUNTIFS(INDEX(CrashDataArea,,F$1), 1,INDEX(CrashDataArea,,$A29), ">0",INDEX(CrashDataArea,,3), "Serious Injury Suspected") ->  | G29: =COUNTIFS(INDEX(CrashDataArea,,G$1),">0",INDEX(CrashDataArea,,$A29), ">0",INDEX(CrashDataArea,,3), "Serious Injury Suspected") ->  | H29: =COUNTIFS(INDEX(CrashDataArea,,H$1), 1,INDEX(CrashDataArea,,$A29), ">0",INDEX(CrashDataArea,,3), "Serious Injury Suspected") ->  | U29: NO RESTRAINTS | V29: 0 | W29: 0 | X29: 0 | Y29: =IFERROR(F29/$F$28,0) -> 0 | Z29: =IFERROR(G29/$G$29,0) -> 0 | AA29: 0 | AB29: 0 | AC29: 0 | AD29: 0 | AE29: 0 | AF29: 0 | AG29: 0 | AH29: 0 | AI29: 0 | AJ29: 0 | AK29: 0 | AL29: 0
A30: 76 | B30: OLDER DRIVER | C30: =COUNTIFS(INDEX(CrashDataArea,,C$1), 1,INDEX(CrashDataArea,,$A30), 1,INDEX(CrashDataArea,,3), "Serious Injury Suspected") ->  | G30: =COUNTIFS(INDEX(CrashDataArea,,G$1), ">0",INDEX(CrashDataArea,,$A30), 1,INDEX(CrashDataArea,,3), "Serious Injury Suspected") ->  | H30: =COUNTIFS(INDEX(CrashDataArea,,H$1), 1,INDEX(CrashDataArea,,$A30), 1,INDEX(CrashDataArea,,3), "Serious Injury Suspected") ->  | U30: OLDER DRIVER | V30: 0 | W30: 0 | X30: 0 | Y30: 0 | Z30: =IFERROR(G30/$G$29,0) -> 0 | AA30: =IFERROR(H30/$H$30,0) -> 0 | AB30: 0 | AC30: 0 | AD30: 0 | AE30: 0 | AF30: 0 | AG30: 0 | AH30: 0 | AI30: 0 | AJ30: 0 | AK30: 0 | AL30: 0
A31: 71 | B31: ALCOHOL RELATED | U31: ALCOHOL RELATED | V31: 0 | W31: =IFERROR(D31/$D$26,0) -> 0 | X31: 0 | Y31: 0 | Z31: 0 | AA31: 0 | AB31: =IFERROR(I31/$I$31,0) -> 0 | AC31: 0 | AD31: 0 | AE31: 0 | AF31: 0 | AG31: 0 | AH31: 0 | AI31: 0 | AJ31: 0 | AK31: 0 | AL31: 0
A32: 66 | B32: REAR END | U32: REAR END | V32: 0 | W32: 0 | X32: 0 | Y32: 0 | Z32: 0 | AA32: 0 | AB32: =IFERROR(I32/$I$31,0) -> 0 | AC32: =IFERROR(J32/$J$32,0) -> 0 | AD32: 0 | AE32: 0 | AF32: 0 | AG32: 0 | AH32: 0 | AI32: 0 | AJ32: 0 | AK32: 0 | AL32: 0
A33: 74 | B33: MOTORCYCLE RELATED | U33: MOTORCYCLE RELATED | V33: 0 | W33: 0 | X33: 0 | Y33: 0 | Z33: 0 | AA33: 0 | AB33: 0 | AC33: =IFERROR(J33/$J$32,0) -> 0 | AD33: =IFERROR(K33/$K$33,0) -> 0 | AE33: 0 | AF33: 0 | AG33: 0 | AH33: 0 | AI33: 0 | AJ33: 0 | AK33: 0 | AL33: 0
A34: 73 | B34: DRUG RELATED | U34: DRUG RELATED | V34: 0 | W34: 0 | X34: 0 | Y34: 0 | Z34: 0 | AA34: 0 | AB34: 0 | AC34: 0 | AD34: 0 | AE34: =IFERROR(L34/$L$34,0) -> 0 | AF34: 0 | AG34: 0 | AH34: 0 | AI34: 0 | AJ34: 0 | AK34: 0 | AL34: 0
A35: 67 | B35: PEDESTRIAN RELATED | U35: PEDESTRIAN RELATED | V35: 0 | W35: 0 | X35: 0 | Y35: 0 | Z35: 0 | AA35: 0 | AB35: 0 | AC35: 0 | AD35: 0 | AE35: =IFERROR(L35/$L$34,0) -> 0 | AF35: =IFERROR(M35/$M$35,0) -> 0 | AG35: 0 | AH35: 0 | AI35: 0 | AJ35: 0 | AK35: 0 | AL35: 0
A36: 79 | B36: DISTRACTED DRIVER | U36: DISTRACTED DRIVER | V36: 0 | W36: 0 | X36: 0 | Y36: 0 | Z36: 0 | AA36: 0 | AB36: 0 | AC36: 0 | AD36: 0 | AE36: 0 | AF36: =IFERROR(M36/$M$35,0) -> 0 | AG36: =IFERROR(N36/$N$36,0) -> 0 | AH36: 0 | AI36: 0 | AJ36: 0 | AK36: 0 | AL36: 0
A37: 68 | B37: RAILROAD CROSSING | U37: RAILROAD CROSSING | V37: 0 | W37: 0 | X37: 0 | Y37: 0 | Z37: 0 | AA37: 0 | AB37: 0 | AC37: 0 | AD37: 0 | AE37: 0 | AF37: 0 | AG37: =IFERROR(N37/$N$36,0) -> 0 | AH37: =IFERROR(O37/$O$37,0) -> 0 | AI37: 0 | AJ37: 0 | AK37: 0 | AL37: 0
A38: 80 | B38: BICYCLE RELATED | U38: BICYCLE RELATED | V38: 0 | W38: 0 | X38: 0 | Y38: 0 | Z38: 0 | AA38: 0 | AB38: 0 | AC38: 0 | AD38: 0 | AE38: 0 | AF38: 0 | AG38: 0 | AH38: =IFERROR(O38/$O$37,0) -> 0 | AI38: =IFERROR(P38/$P$38,0) -> 0 | AJ38: 0 | AK38: 0 | AL38: 0
A39: 78 | B39: WORK ZONE RELATED | U39: WORK ZONE RELATED | V39: 0 | W39: 0 | X39: 0 | Y39: 0 | Z39: 0 | AA39: 0 | AB39: 0 | AC39: 0 | AD39: 0 | AE39: 0 | AF39: 0 | AG39: 0 | AH39: 0 | AI39: =IFERROR(P39/$P$38,0) -> 0 | AJ39: =IFERROR(Q39/$Q$39,0) -> 0 | AK39: 0 | AL39: 0
A40: 72 | B40: MARIJUANA RELATED | R40: =COUNTIFS(INDEX(CrashDataArea,,R$1), 1,INDEX(CrashDataArea,,$A40), 1,INDEX(CrashDataArea,,3), "Serious Injury Suspected") ->  | S40: =COUNTIFS(INDEX(CrashDataArea,,S$1), 1,INDEX(CrashDataArea,,$A40), 1,INDEX(CrashDataArea,,3), "Serious Injury Suspected") ->  | U40: MARIJUANA RELATED | V40: 0 | W40: 0 | X40: 0 | Y40: 0 | Z40: 0 | AA40: 0 | AB40: 0 | AC40: 0 | AD40: 0 | AE40: =IFERROR(L40/$L$34,0) -> 0 | AF40: 0 | AG40: 0 | AH40: 0 | AI40: 0 | AJ40: =IFERROR(Q40/$Q$39,0) -> 0 | AK40: =IFERROR(R40/$R$40,0) -> 0 | AL40: 0
A41: 82 | B41: ACTIVE TRANSPORTATION RELATED | R41: =COUNTIFS(INDEX(CrashDataArea,,R$1), 1,INDEX(CrashDataArea,,$A41), 1,INDEX(CrashDataArea,,3), "Serious Injury Suspected") ->  | S41: =COUNTIFS(INDEX(CrashDataArea,,S$1), 1,INDEX(CrashDataArea,,$A41), 1,INDEX(CrashDataArea,,3), "Serious Injury Suspected") ->  | U41: ACTIVE TRANSPORTATION RELATED | V41: =IFERROR(C41/$C$25,0) -> 0 | W41: =IFERROR(D41/$D$26,0) -> 0 | X41: =IFERROR(E41/$E$27,0) -> 0 | Y41: =IFERROR(F41/$F$28,0) -> 0 | Z41: =IFERROR(G41/$G$29,0) -> 0 | AA41: =IFERROR(H41/$H$30,0) -> 0 | AB41: =IFERROR(I41/$I$31,0) -> 0 | AC41: =IFERROR(J41/$J$32,0) -> 0 | AD41: =IFERROR(K41/$K$33,0) -> 0 | AE41: =IFERROR(L41/$L$34,0) -> 0 | AF41: =IFERROR(M41/$M$35,0) -> 0 | AG41: =IFERROR(N41/$N$36,0) -> 0 | AH41: =IFERROR(O41/$O$37,0) -> 0 | AI41: =IFERROR(P41/$P$38,0) -> 0 | AJ41: =IFERROR(Q41/$Q$39,0) -> 0 | AK41: =IFERROR(R41/$R$40,0) -> 0 | AL41: 0
D49: ROADWAY DEPARTURE | E49: YOUNG DRIVER | F49: INTERSECTION RELATED | G49: SPEED RELATED INVOLVEMENT | H49: NO RESTRAINTS | I49: OLDER DRIVER | J49: ALCOHOL RELATED | K49: REAR END | L49: MOTORCYCLE RELATED | M49: DRUG RELATED | N49: PEDESTRIAN RELATED | O49: DISTRACTED DRIVER | P49: RAILROAD CROSSING | Q49: BICYCLE RELATED | R49: WORK ZONE RELATED | T49: MARIJUANA RELATED
